Department,Entity,Date of Payment,Expense Type,Project,Expense Area,Supplier,Transaction Number,Amount,,
United Kingdom Atomic Energy Authority,United Kingdom Atomic Energy Authority,27/10/2014,PLANT & EQUIPMENT,23151,FUSION,1st Choice Leisure Buildings,1900060458,4408.33,,
United Kingdom Atomic Energy Authority,United Kingdom Atomic Energy Authority,29/10/2014,PLANT SPARES,23125,FUSION,A D INSTALLATION LTD,5100311514,650.00,,
United Kingdom Atomic Energy Authority,United Kingdom Atomic Energy Authority,17/11/2014,PLANT SPARES,23125,FUSION,A D INSTALLATION LTD,5100312696,3100.00,,
United Kingdom Atomic Energy Authority,United Kingdom Atomic Energy Authority,27/10/2014,PLANT SPARES,25103,FUSION,A W CLARKE,5100310846,32.80,,
United Kingdom Atomic Energy Authority,United Kingdom Atomic Energy Authority,27/10/2014,PLANT SPARES,25103,FUSION,A W CLARKE,5100310847,209.10,,
United Kingdom Atomic Energy Authority,United Kingdom Atomic Energy Authority,29/10/2014,PLANT SPARES,25103,FUSION,A W CLARKE,5100311050,21035.00,,
United Kingdom Atomic Energy Authority,United Kingdom Atomic Energy Authority,27/10/2014,PLANT SPARES,25103,FUSION,A W CLARKE,5100311371,42.50,,
United Kingdom Atomic Energy Authority,United Kingdom Atomic Energy Authority,27/10/2014,PLANT SPARES,25103,FUSION,A W CLARKE,5100311372,78.30,,
United Kingdom Atomic Energy Authority,United Kingdom Atomic Energy Authority,27/10/2014,PLANT SPARES,25103,FUSION,A W CLARKE,5100311373,42.50,,
United Kingdom Atomic Energy Authority,United Kingdom Atomic Energy Authority,27/10/2014,PLANT SPARES,25103,FUSION,A W CLARKE,5100311578,439.50,,
United Kingdom Atomic Energy Authority,United Kingdom Atomic Energy Authority,27/10/2014,PLANT SPARES,25103,FUSION,A W CLARKE,5100311580,1957.50,,
United Kingdom Atomic Energy Authority,United Kingdom Atomic Energy Authority,12/11/2014,PLANT SPARES,25103,FUSION,A W CLARKE,5100312196,662.40,,
United Kingdom Atomic Energy Authority,United Kingdom Atomic Energy Authority,12/11/2014,PLANT SPARES,25103,FUSION,A W CLARKE,5100312197,5412.00,,
United Kingdom Atomic Energy Authority,United Kingdom Atomic Energy Authority,12/11/2014,PLANT SPARES,25103,FUSION,A W CLARKE,5100312198,2190.00,,
United Kingdom Atomic Energy Authority,United Kingdom Atomic Energy Authority,27/10/2014,MATERIALS & SPARES,29030,FUSION,A1-CBISS Ltd,5100311462,35.00,,
United Kingdom Atomic Energy Authority,United Kingdom Atomic Energy Authority,10/11/2014,PLANT & EQUIPMENT,23106,FUSION,AALCO LIMITED,5100312123,295.00,,
United Kingdom Atomic Energy Authority,United Kingdom Atomic Energy Authority,12/11/2014,PLANT & EQUIPMENT,23106,FUSION,AALCO LIMITED,5100312319,260.00,,
United Kingdom Atomic Energy Authority,United Kingdom Atomic Energy Authority,17/11/2014,PLANT & EQUIPMENT,23106,FUSION,AALCO LIMITED,5100312405,150.00,,
United Kingdom Atomic Energy Authority,United Kingdom Atomic Energy Authority,10/11/2014,PLANT & EQUIPMENT,23161,FUSION,AALCO LIMITED,5100312238,3638.25,,
United Kingdom Atomic Energy Authority,United Kingdom Atomic Energy Authority,10/11/2014,PLANT & EQUIPMENT,23161,FUSION,AALCO LIMITED,5100312239,4800.00,,
United Kingdom Atomic Energy Authority,United Kingdom Atomic Energy Authority,10/11/2014,PLANT & EQUIPMENT,23161,FUSION,AALCO LIMITED,5100312273,810.00,,
United Kingdom Atomic Energy Authority,United Kingdom Atomic Energy Authority,10/11/2014,PLANT & EQUIPMENT,23161,FUSION,AALCO LIMITED,5100312274,648.00,,
United Kingdom Atomic Energy Authority,United Kingdom Atomic Energy Authority,10/11/2014,PLANT & EQUIPMENT,23617,FUSION,AALCO LIMITED,5100312201,165.00,,
United Kingdom Atomic Energy Authority,United Kingdom Atomic Energy Authority,27/10/2014,CONSUMABLES,23123,FUSION,ABLOY SECURITY,5100311054,35.56,,
United Kingdom Atomic Energy Authority,United Kingdom Atomic Energy Authority,05/11/2014,MATERIALS & SPARES,23106,FUSION,ACRONA ENGINEERING LTD,5100311926,7860.58,,
United Kingdom Atomic Energy Authority,United Kingdom Atomic Energy Authority,12/11/2014,MATERIALS & SPARES,25103,FUSION,ACRONA ENGINEERING LTD,5100310560,8370.46,,
United Kingdom Atomic Energy Authority,United Kingdom Atomic Energy Authority,10/11/2014,MATERIALS & SPARES,25103,FUSION,ACRONA ENGINEERING LTD,5100311723,667.25,,
United Kingdom Atomic Energy Authority,United Kingdom Atomic Energy Authority,10/11/2014,MATERIALS & SPARES,25103,FUSION,ACRONA ENGINEERING LTD,5100311724,4344.84,,
United Kingdom Atomic Energy Authority,United Kingdom Atomic Energy Authority,17/11/2014,SECURITY AND EMERGENCY,28030,PROPERTY,ADT FIRE & SECURITY PLC,5100312360,64.00,,
United Kingdom Atomic Energy Authority,United Kingdom Atomic Energy Authority,17/11/2014,SECURITY AND EMERGENCY,28030,PROPERTY,ADT FIRE & SECURITY PLC,5100312362,633.75,,
United Kingdom Atomic Energy Authority,United Kingdom Atomic Energy Authority,27/10/2014,SECURITY AND EMERGENCY,28200,PROPERTY,ADT FIRE & SECURITY PLC,5100307302,1028.00,,
United Kingdom Atomic Energy Authority,United Kingdom Atomic Energy Authority,03/11/2014,PLANT & EQUIPMENT,25103,FUSION,AEROSPACE TOOLING,5100311681,7111.00,,
United Kingdom Atomic Energy Authority,United Kingdom Atomic Energy Authority,03/11/2014,PLANT & EQUIPMENT,25103,FUSION,AEROSPACE TOOLING,5100311781,3297.50,,
United Kingdom Atomic Energy Authority,United Kingdom Atomic Energy Authority,03/11/2014,PLANT & EQUIPMENT,25103,FUSION,AEROSPACE TOOLING,5100311796,2581.00,,
United Kingdom Atomic Energy Authority,United Kingdom Atomic Energy Authority,03/11/2014,PLANT & EQUIPMENT,25103,FUSION,AEROSPACE TOOLING,5100311797,3297.50,,
United Kingdom Atomic Energy Authority,United Kingdom Atomic Energy Authority,12/11/2014,MATERIALS & SPARES,23164,FUSION,AIHA - PROFICIENCY TESTING PROGRAMMES,5100312194,3156.45,,
United Kingdom Atomic Energy Authority,United Kingdom Atomic Energy Authority,30/10/2014,PLANT & EQUIPMENT,29030,FUSION,Allendale Electronics Ltd,1900060472,755.34,,
United Kingdom Atomic Energy Authority,United Kingdom Atomic Energy Authority,17/11/2014,MATERIALS & SPARES,23103,FUSION,ALPHA ENGINEERING SUPPLIES,5100311987,236.32,,
United Kingdom Atomic Energy Authority,United Kingdom Atomic Energy Authority,17/11/2014,MATERIALS & SPARES,23103,FUSION,ALPHA ENGINEERING SUPPLIES,5100312366,245.60,,
United Kingdom Atomic Energy Authority,United Kingdom Atomic Energy Authority,29/10/2014,MATERIALS & SPARES,23123,FUSION,ALPHA ENGINEERING SUPPLIES,5100311286,433.00,,
United Kingdom Atomic Energy Authority,United Kingdom Atomic Energy Authority,10/11/2014,MATERIALS & SPARES,23123,FUSION,ALPHA ENGINEERING SUPPLIES,5100312043,107.04,,
United Kingdom Atomic Energy Authority,United Kingdom Atomic Energy Authority,10/11/2014,MATERIALS & SPARES,23123,FUSION,ALPHA ENGINEERING SUPPLIES,5100312237,272.00,,
United Kingdom Atomic Energy Authority,United Kingdom Atomic Energy Authority,17/11/2014,MATERIALS & SPARES,23123,FUSION,ALPHA ENGINEERING SUPPLIES,5100312367,54.40,,
United Kingdom Atomic Energy Authority,United Kingdom Atomic Energy Authority,10/11/2014,MATERIALS & SPARES,23161,FUSION,ALPHA PACKAGING,5100312352,489.87,,
United Kingdom Atomic Energy Authority,United Kingdom Atomic Energy Authority,17/11/2014,MATERIALS & SPARES,23161,FUSION,ALPHA PACKAGING,5100312356,41.80,,
United Kingdom Atomic Energy Authority,United Kingdom Atomic Energy Authority,10/11/2014,MATERIALS & SPARES,23120,FUSION,ALR SERVICES,5100312029,166.57,,
United Kingdom Atomic Energy Authority,United Kingdom Atomic Energy Authority,30/10/2014,RENT OF VEHICLE & EQUIPMENT,23151,FUSION,Altitude Safety Ltd,1900060469,317.40,,
United Kingdom Atomic Energy Authority,United Kingdom Atomic Energy Authority,12/11/2014,PROFESSIONAL SERVICES,23153,FUSION,AMEC NUCLEAR UK LIMITED,5100311705,7869.00,,
United Kingdom Atomic Energy Authority,United Kingdom Atomic Energy Authority,12/11/2014,REPAIRS & MAINTENANCE,23617,FUSION,AMELEC INST,5100312298,1238.00,,
United Kingdom Atomic Energy Authority,United Kingdom Atomic Energy Authority,29/10/2014,HEALTH PHYSICS,21033,SUPPORT SERVICES,American Institute of Physics,5100311472,5888.01,,
United Kingdom Atomic Energy Authority,United Kingdom Atomic Energy Authority,29/10/2014,HEALTH PHYSICS,21033,SUPPORT SERVICES,American Physical Society,5100311581,9137.34,,
United Kingdom Atomic Energy Authority,United Kingdom Atomic Energy Authority,27/10/2014,PROFESSIONAL SERVICES,25821,FUSION,SOLE TRADER,5100311463,1430.00,,
United Kingdom Atomic Energy Authority,United Kingdom Atomic Energy Authority,27/10/2014,PROFESSIONAL SERVICES,25821,FUSION,SOLE TRADER,5100311465,600.00,,
United Kingdom Atomic Energy Authority,United Kingdom Atomic Energy Authority,03/11/2014,MATERIALS & SPARES,23111,FUSION,ANIXTER (UK) LTD,5100311734,4860.00,,
United Kingdom Atomic Energy Authority,United Kingdom Atomic Energy Authority,03/11/2014,MATERIALS & SPARES,23111,FUSION,ANIXTER (UK) LTD,5100311735,1170.00,,
United Kingdom Atomic Energy Authority,United Kingdom Atomic Energy Authority,03/11/2014,MATERIALS & SPARES,23111,FUSION,ANIXTER (UK) LTD,5100311751,2988.60,,
United Kingdom Atomic Energy Authority,United Kingdom Atomic Energy Authority,27/10/2014,MATERIALS & SPARES,23128,FUSION,ANIXTER (UK) LTD,5100311520,1850.90,,
United Kingdom Atomic Energy Authority,United Kingdom Atomic Energy Authority,17/11/2014,MATERIALS & SPARES,23128,FUSION,ANIXTER (UK) LTD,5100312402,740.00,,
United Kingdom Atomic Energy Authority,United Kingdom Atomic Energy Authority,05/11/2014,MATERIALS & SPARES,23150,FUSION,ANIXTER (UK) LTD,5100311521,958.00,,
United Kingdom Atomic Energy Authority,United Kingdom Atomic Energy Authority,03/11/2014,MATERIALS & SPARES,23161,FUSION,ANIXTER (UK) LTD,5100311747,1113.45,,
United Kingdom Atomic Energy Authority,United Kingdom Atomic Energy Authority,03/11/2014,MATERIALS & SPARES,25103,FUSION,ANIXTER (UK) LTD,5100311753,83.60,,
United Kingdom Atomic Energy Authority,United Kingdom Atomic Energy Authority,17/11/2014,MATERIALS & SPARES,25103,FUSION,ANIXTER (UK) LTD,5100312383,249.20,,
United Kingdom Atomic Energy Authority,United Kingdom Atomic Energy Authority,17/11/2014,OPERATING LEASE,21034,FUSION,ANNODATA BUSINESS COMMUNICATIONS,5100312644,2778.30,,
United Kingdom Atomic Energy Authority,United Kingdom Atomic Energy Authority,17/11/2014,OPERATING LEASE,21034,FUSION,ANNODATA BUSINESS COMMUNICATIONS,5100312646,931.12,,
United Kingdom Atomic Energy Authority,United Kingdom Atomic Energy Authority,17/11/2014,OPERATING LEASE,21034,FUSION,ANNODATA BUSINESS COMMUNICATIONS,5100312648,12019.83,,
United Kingdom Atomic Energy Authority,United Kingdom Atomic Energy Authority,17/11/2014,OPERATING LEASE,21034,FUSION,ANNODATA BUSINESS COMMUNICATIONS,5100312649,2730.17,,
United Kingdom Atomic Energy Authority,United Kingdom Atomic Energy Authority,03/11/2014,PROFESSIONAL SERVICES,63523,SUPPORT SERVICES,AON HEWITT LTD,5100311800,153682.51,,
United Kingdom Atomic Energy Authority,United Kingdom Atomic Energy Authority,10/11/2014,PROFESSIONAL SERVICES,63523,SUPPORT SERVICES,AON HEWITT LTD,5100312134,153682.51,,
United Kingdom Atomic Energy Authority,United Kingdom Atomic Energy Authority,17/11/2014,PROFESSIONAL SERVICES,63523,SUPPORT SERVICES,AON HEWITT LTD,5100312581,153682.51,,
United Kingdom Atomic Energy Authority,United Kingdom Atomic Energy Authority,19/11/2014,MATERIALS & SPARES,25836,FUSION,Applied Vacuum Engineering,1900060550,1478.75,,
United Kingdom Atomic Energy Authority,United Kingdom Atomic Energy Authority,10/11/2014,PLANT SPARES,25836,FUSION,Aquila Nuclear Engineering Ltd,5100312054,112881.64,,
United Kingdom Atomic Energy Authority,United Kingdom Atomic Energy Authority,03/11/2014,PERSONAL PROTECTIVE EQUIPMENT,21033,SUPPORT SERVICES,ARCO LTD,5100311727,19.39,,
United Kingdom Atomic Energy Authority,United Kingdom Atomic Energy Authority,10/11/2014,PERSONAL PROTECTIVE EQUIPMENT,21033,SUPPORT SERVICES,ARCO LTD,5100312004,192.26,,
United Kingdom Atomic Energy Authority,United Kingdom Atomic Energy Authority,10/11/2014,PERSONAL PROTECTIVE EQUIPMENT,21033,SUPPORT SERVICES,ARCO LTD,5100312121,302.67,,
United Kingdom Atomic Energy Authority,United Kingdom Atomic Energy Authority,17/11/2014,PERSONAL PROTECTIVE EQUIPMENT,21033,SUPPORT SERVICES,ARCO LTD,5100312739,34.11,,
United Kingdom Atomic Energy Authority,United Kingdom Atomic Energy Authority,17/11/2014,PERSONAL PROTECTIVE EQUIPMENT,21033,SUPPORT SERVICES,ARCO LTD,5100312742,271.04,,
United Kingdom Atomic Energy Authority,United Kingdom Atomic Energy Authority,10/11/2014,PERSONAL PROTECTIVE EQUIPMENT,23104,FUSION,ARCO LTD,5100312111,179.36,,
United Kingdom Atomic Energy Authority,United Kingdom Atomic Energy Authority,10/11/2014,PERSONAL PROTECTIVE EQUIPMENT,23104,FUSION,ARCO LTD,5100312118,59.99,,
United Kingdom Atomic Energy Authority,United Kingdom Atomic Energy Authority,10/11/2014,PERSONAL PROTECTIVE EQUIPMENT,23106,FUSION,ARCO LTD,5100312108,56.71,,
United Kingdom Atomic Energy Authority,United Kingdom Atomic Energy Authority,10/11/2014,PERSONAL PROTECTIVE EQUIPMENT,23106,FUSION,ARCO LTD,5100312297,146.84,,
United Kingdom Atomic Energy Authority,United Kingdom Atomic Energy Authority,17/11/2014,PERSONAL PROTECTIVE EQUIPMENT,23106,FUSION,ARCO LTD,5100312480,59.60,,
United Kingdom Atomic Energy Authority,United Kingdom Atomic Energy Authority,27/10/2014,PERSONAL PROTECTIVE EQUIPMENT,23128,FUSION,ARCO LTD,5100311305,5.18,,
United Kingdom Atomic Energy Authority,United Kingdom Atomic Energy Authority,17/11/2014,PERSONAL PROTECTIVE EQUIPMENT,23128,FUSION,ARCO LTD,5100312392,122.41,,
United Kingdom Atomic Energy Authority,United Kingdom Atomic Energy Authority,17/11/2014,PERSONAL PROTECTIVE EQUIPMENT,23134,FUSION,ARCO LTD,5100312744,55.20,,
United Kingdom Atomic Energy Authority,United Kingdom Atomic Energy Authority,03/11/2014,PERSONAL PROTECTIVE EQUIPMENT,23151,FUSION,ARCO LTD,5100311698,35.00,,
United Kingdom Atomic Energy Authority,United Kingdom Atomic Energy Authority,10/11/2014,PERSONAL PROTECTIVE EQUIPMENT,23151,FUSION,ARCO LTD,5100312109,126.00,,
United Kingdom Atomic Energy Authority,United Kingdom Atomic Energy Authority,27/10/2014,PERSONAL PROTECTIVE EQUIPMENT,23161,FUSION,ARCO LTD,5100311164,103.40,,
United Kingdom Atomic Energy Authority,United Kingdom Atomic Energy Authority,27/10/2014,PERSONAL PROTECTIVE EQUIPMENT,23161,FUSION,ARCO LTD,5100311293,375.80,,
United Kingdom Atomic Energy Authority,United Kingdom Atomic Energy Authority,27/10/2014,PERSONAL PROTECTIVE EQUIPMENT,23161,FUSION,ARCO LTD,5100311307,54.80,,
United Kingdom Atomic Energy Authority,United Kingdom Atomic Energy Authority,29/10/2014,PERSONAL PROTECTIVE EQUIPMENT,23161,FUSION,ARCO LTD,5100311611,26.39,,
United Kingdom Atomic Energy Authority,United Kingdom Atomic Energy Authority,27/10/2014,PERSONAL PROTECTIVE EQUIPMENT,23161,FUSION,ARCO LTD,5100311612,1.55,,
United Kingdom Atomic Energy Authority,United Kingdom Atomic Energy Authority,29/10/2014,PERSONAL PROTECTIVE EQUIPMENT,23161,FUSION,ARCO LTD,5100311615,59.99,,
United Kingdom Atomic Energy Authority,United Kingdom Atomic Energy Authority,05/11/2014,PERSONAL PROTECTIVE EQUIPMENT,23161,FUSION,ARCO LTD,5100311685,35.52,,
United Kingdom Atomic Energy Authority,United Kingdom Atomic Energy Authority,03/11/2014,PERSONAL PROTECTIVE EQUIPMENT,23161,FUSION,ARCO LTD,5100311686,1641.00,,
United Kingdom Atomic Energy Authority,United Kingdom Atomic Energy Authority,03/11/2014,PERSONAL PROTECTIVE EQUIPMENT,23161,FUSION,ARCO LTD,5100311687,372.24,,
United Kingdom Atomic Energy Authority,United Kingdom Atomic Energy Authority,03/11/2014,PERSONAL PROTECTIVE EQUIPMENT,23161,FUSION,ARCO LTD,5100311688,371.28,,
United Kingdom Atomic Energy Authority,United Kingdom Atomic Energy Authority,03/11/2014,PERSONAL PROTECTIVE EQUIPMENT,23161,FUSION,ARCO LTD,5100311689,387.80,,
United Kingdom Atomic Energy Authority,United Kingdom Atomic Energy Authority,03/11/2014,PERSONAL PROTECTIVE EQUIPMENT,23161,FUSION,ARCO LTD,5100311690,35.52,,
United Kingdom Atomic Energy Authority,United Kingdom Atomic Energy Authority,03/11/2014,PERSONAL PROTECTIVE EQUIPMENT,23161,FUSION,ARCO LTD,5100311692,1165.80,,
United Kingdom Atomic Energy Authority,United Kingdom Atomic Energy Authority,03/11/2014,PERSONAL PROTECTIVE EQUIPMENT,23161,FUSION,ARCO LTD,5100311693,351.60,,
United Kingdom Atomic Energy Authority,United Kingdom Atomic Energy Authority,03/11/2014,PERSONAL PROTECTIVE EQUIPMENT,23161,FUSION,ARCO LTD,5100311694,242.48,,
United Kingdom Atomic Energy Authority,United Kingdom Atomic Energy Authority,03/11/2014,PERSONAL PROTECTIVE EQUIPMENT,23161,FUSION,ARCO LTD,5100311695,158.55,,
United Kingdom Atomic Energy Authority,United Kingdom Atomic Energy Authority,03/11/2014,PERSONAL PROTECTIVE EQUIPMENT,23161,FUSION,ARCO LTD,5100311699,16.06,,
United Kingdom Atomic Energy Authority,United Kingdom Atomic Energy Authority,03/11/2014,PERSONAL PROTECTIVE EQUIPMENT,23161,FUSION,ARCO LTD,5100311745,233.19,,
United Kingdom Atomic Energy Authority,United Kingdom Atomic Energy Authority,10/11/2014,PERSONAL PROTECTIVE EQUIPMENT,23161,FUSION,ARCO LTD,5100311880,193.20,,
United Kingdom Atomic Energy Authority,United Kingdom Atomic Energy Authority,10/11/2014,PERSONAL PROTECTIVE EQUIPMENT,23161,FUSION,ARCO LTD,5100311882,193.20,,
United Kingdom Atomic Energy Authority,United Kingdom Atomic Energy Authority,10/11/2014,PERSONAL PROTECTIVE EQUIPMENT,23161,FUSION,ARCO LTD,5100311883,67.20,,
United Kingdom Atomic Energy Authority,United Kingdom Atomic Energy Authority,10/11/2014,PERSONAL PROTECTIVE EQUIPMENT,23161,FUSION,ARCO LTD,5100311885,372.24,,
United Kingdom Atomic Energy Authority,United Kingdom Atomic Energy Authority,12/11/2014,PERSONAL PROTECTIVE EQUIPMENT,23161,FUSION,ARCO LTD,5100312002,196.40,,
United Kingdom Atomic Energy Authority,United Kingdom Atomic Energy Authority,12/11/2014,PERSONAL PROTECTIVE EQUIPMENT,23161,FUSION,ARCO LTD,5100312114,40.21,,
United Kingdom Atomic Energy Authority,United Kingdom Atomic Energy Authority,05/11/2014,PERSONAL PROTECTIVE EQUIPMENT,23161,FUSION,ARCO LTD,5100312137,586.00,,
United Kingdom Atomic Energy Authority,United Kingdom Atomic Energy Authority,12/11/2014,PERSONAL PROTECTIVE EQUIPMENT,23161,FUSION,ARCO LTD,5100312243,733.08,,
United Kingdom Atomic Energy Authority,United Kingdom Atomic Energy Authority,12/11/2014,PERSONAL PROTECTIVE EQUIPMENT,23161,FUSION,ARCO LTD,5100312289,124.08,,
United Kingdom Atomic Energy Authority,United Kingdom Atomic Energy Authority,12/11/2014,PERSONAL PROTECTIVE EQUIPMENT,23161,FUSION,ARCO LTD,5100312290,127.71,,
United Kingdom Atomic Energy Authority,United Kingdom Atomic Energy Authority,17/11/2014,PERSONAL PROTECTIVE EQUIPMENT,23161,FUSION,ARCO LTD,5100312389,4.79,,
United Kingdom Atomic Energy Authority,United Kingdom Atomic Energy Authority,17/11/2014,PERSONAL PROTECTIVE EQUIPMENT,23161,FUSION,ARCO LTD,5100312479,79.98,,
United Kingdom Atomic Energy Authority,United Kingdom Atomic Energy Authority,17/11/2014,PERSONAL PROTECTIVE EQUIPMENT,23161,FUSION,ARCO LTD,5100312639,129.90,,
United Kingdom Atomic Energy Authority,United Kingdom Atomic Energy Authority,19/11/2014,PERSONAL PROTECTIVE EQUIPMENT,23161,FUSION,ARCO LTD,5100312740,661.76,,
United Kingdom Atomic Energy Authority,United Kingdom Atomic Energy Authority,19/11/2014,PERSONAL PROTECTIVE EQUIPMENT,23161,FUSION,ARCO LTD,5100312741,53.04,,
United Kingdom Atomic Energy Authority,United Kingdom Atomic Energy Authority,19/11/2014,PERSONAL PROTECTIVE EQUIPMENT,23161,FUSION,ARCO LTD,5100312746,230.40,,
United Kingdom Atomic Energy Authority,United Kingdom Atomic Energy Authority,10/11/2014,PERSONAL PROTECTIVE EQUIPMENT,23164,FUSION,ARCO LTD,5100312288,92.35,,
United Kingdom Atomic Energy Authority,United Kingdom Atomic Energy Authority,17/11/2014,PERSONAL PROTECTIVE EQUIPMENT,23164,FUSION,ARCO LTD,5100312385,44.37,,
United Kingdom Atomic Energy Authority,United Kingdom Atomic Energy Authority,03/11/2014,PERSONAL PROTECTIVE EQUIPMENT,25103,FUSION,ARCO LTD,5100311876,193.56,,
United Kingdom Atomic Energy Authority,United Kingdom Atomic Energy Authority,03/11/2014,PERSONAL PROTECTIVE EQUIPMENT,29030,FUSION,ARCO LTD,5100311878,5.94,,
United Kingdom Atomic Energy Authority,United Kingdom Atomic Energy Authority,10/11/2014,PERSONAL PROTECTIVE EQUIPMENT,29030,FUSION,ARCO LTD,5100312117,32.12,,
United Kingdom Atomic Energy Authority,United Kingdom Atomic Energy Authority,10/11/2014,PERSONAL PROTECTIVE EQUIPMENT,29030,FUSION,ARCO LTD,5100312287,36.96,,
United Kingdom Atomic Energy Authority,United Kingdom Atomic Energy Authority,03/11/2014,STATIONERY,21034,FUSION,ARTISAN LITHO PRINT  DESIGN,5100311729,300.00,,
United Kingdom Atomic Energy Authority,United Kingdom Atomic Energy Authority,10/11/2014,PLANT & EQUIPMENT,23164,FUSION,ARVAL UK LIMITED,5100312203,264.83,,
United Kingdom Atomic Energy Authority,United Kingdom Atomic Energy Authority,29/10/2014,PLANT SPARES,23131,FUSION,AS SCIENTIFIC PRODUCTS LTD,5100311066,380.00,,
United Kingdom Atomic Energy Authority,United Kingdom Atomic Energy Authority,10/11/2014,PLANT SPARES,23152,FUSION,AS SCIENTIFIC PRODUCTS LTD,5100311912,2430.00,,
United Kingdom Atomic Energy Authority,United Kingdom Atomic Energy Authority,05/11/2014,MATERIALS & SPARES,23164,FUSION,ASTLES CONTROL SYSTEMS,5100311249,1135.00,,
United Kingdom Atomic Energy Authority,United Kingdom Atomic Energy Authority,27/10/2014,PLANT SPARES,23134,FUSION,AURIGA EUROPE PLC,5100311532,121.90,,
United Kingdom Atomic Energy Authority,United Kingdom Atomic Energy Authority,03/11/2014,CATERING,21033,SUPPORT SERVICES,AVENANCE PLC,5100311765,1125.00,,
United Kingdom Atomic Energy Authority,United Kingdom Atomic Energy Authority,03/11/2014,CATERING,23126,FUSION,AVENANCE PLC,5100311426,564.82,,
United Kingdom Atomic Energy Authority,United Kingdom Atomic Energy Authority,03/11/2014,CATERING,23126,FUSION,AVENANCE PLC,5100311428,906.07,,
United Kingdom Atomic Energy Authority,United Kingdom Atomic Energy Authority,03/11/2014,CATERING,28040,PROPERTY,AVENANCE PLC,5100311427,218.90,,
United Kingdom Atomic Energy Authority,United Kingdom Atomic Energy Authority,10/11/2014,CATERING,28040,PROPERTY,AVENANCE PLC,5100312124,7748.18,,
United Kingdom Atomic Energy Authority,United Kingdom Atomic Energy Authority,10/11/2014,CATERING,28040,PROPERTY,AVENANCE PLC,5100312145,389.28,,
United Kingdom Atomic Energy Authority,United Kingdom Atomic Energy Authority,03/11/2014,PLANT SPARES,25103,FUSION,AVNET EMG LTD,5100311595,3810.64,,
United Kingdom Atomic Energy Authority,United Kingdom Atomic Energy Authority,17/11/2014,PLANT SPARES,23129,FUSION,AW GRACE & SON,5100312749,97.90,,
United Kingdom Atomic Energy Authority,United Kingdom Atomic Energy Authority,27/10/2014,PRINTING & GRAPHICS,21033,SUPPORT SERVICES,AWARDFRAMERS INTERNATIONAL,5100311446,262.50,,
United Kingdom Atomic Energy Authority,United Kingdom Atomic Energy Authority,31/10/2014,MATERIALS & SPARES,25103,FUSION,Axon Cable Ltd,1900060485,3063.24,,
United Kingdom Atomic Energy Authority,United Kingdom Atomic Energy Authority,03/11/2014,IT EQUIPMENT NON CAPITAL,23132,FUSION,AZTEX SOLUTIONS LIMITED,5100311673,5855.67,,
United Kingdom Atomic Energy Authority,United Kingdom Atomic Energy Authority,03/11/2014,TREATED WATER,23125,FUSION,B & V WATER TREATMENT,5100311768,1185.81,,
United Kingdom Atomic Energy Authority,United Kingdom Atomic Energy Authority,03/11/2014,PLANT & EQUIPMENT,23617,FUSION,BASI Instrument AB,1900060490,4639.94,,
United Kingdom Atomic Energy Authority,United Kingdom Atomic Energy Authority,29/10/2014,PLANT SPARES,23128,FUSION,BATT CABLES PLC,5100311464,304.00,,
United Kingdom Atomic Energy Authority,United Kingdom Atomic Energy Authority,17/11/2014,PLANT SPARES,23128,FUSION,BATT CABLES PLC,5100312219,136.65,,
United Kingdom Atomic Energy Authority,United Kingdom Atomic Energy Authority,10/11/2014,PROFESSIONAL SERVICES,21032,SUPPORT SERVICES,BDO LLP,5100312229,2778.00,,
United Kingdom Atomic Energy Authority,United Kingdom Atomic Energy Authority,10/11/2014,PLANT SPARES,23103,FUSION,Beacon Group International Ltd,5100312333,242.60,,
United Kingdom Atomic Energy Authority,United Kingdom Atomic Energy Authority,03/11/2014,PLANT SPARES,25103,FUSION,Beacon Group International Ltd,5100311828,52.30,,
United Kingdom Atomic Energy Authority,United Kingdom Atomic Energy Authority,27/10/2014,REPAIRS & MAINTENANCE,23125,FUSION,BEAVER 84 LIMITED,5100311607,3589.50,,
United Kingdom Atomic Energy Authority,United Kingdom Atomic Energy Authority,19/11/2014,REPAIRS & MAINTENANCE,23125,FUSION,BEAVER 84 LIMITED,5100312128,830.20,,
United Kingdom Atomic Energy Authority,United Kingdom Atomic Energy Authority,10/11/2014,REPAIRS & MAINTENANCE,25103,FUSION,BEAVER 84 LIMITED,5100311058,75.73,,
United Kingdom Atomic Energy Authority,United Kingdom Atomic Energy Authority,17/11/2014,REPAIRS & MAINTENANCE,25103,FUSION,BEAVER 84 LIMITED,5100312125,470.82,,
United Kingdom Atomic Energy Authority,United Kingdom Atomic Energy Authority,19/11/2014,REPAIRS & MAINTENANCE,25103,FUSION,BEAVER 84 LIMITED,5100312126,166.64,,
United Kingdom Atomic Energy Authority,United Kingdom Atomic Energy Authority,10/11/2014,REPAIRS & MAINTENANCE,25103,FUSION,BEAVER 84 LIMITED,5100312127,22.78,,
United Kingdom Atomic Energy Authority,United Kingdom Atomic Energy Authority,17/11/2014,REPAIRS & MAINTENANCE,25103,FUSION,BEAVER 84 LIMITED,5100312130,122.00,,
United Kingdom Atomic Energy Authority,United Kingdom Atomic Energy Authority,10/11/2014,MATERIALS & SPARES,25704,FUSION,BECK & POLLITZER ENG.,5100312161,20632.30,,
United Kingdom Atomic Energy Authority,United Kingdom Atomic Energy Authority,03/11/2014,PLANT SPARES,23111,FUSION,BECKHOFF AUTOMATION LTD,5100311732,5724.55,,
United Kingdom Atomic Energy Authority,United Kingdom Atomic Energy Authority,17/11/2014,PROFESSIONAL SERVICES,25103,FUSION,BELDEN,5100312699,889.84,,
United Kingdom Atomic Energy Authority,United Kingdom Atomic Energy Authority,03/11/2014,PLANT & EQUIPMENT,25103,FUSION,BELLEVILLE SPRINGS LTD,5100310785,4208.00,,
United Kingdom Atomic Energy Authority,United Kingdom Atomic Energy Authority,27/10/2014,PLANT & EQUIPMENT,25103,FUSION,BELLEVILLE SPRINGS LTD,5100311603,509.50,,
United Kingdom Atomic Energy Authority,United Kingdom Atomic Energy Authority,03/11/2014,PLANT & EQUIPMENT,25103,FUSION,BELLEVILLE SPRINGS LTD,5100311805,28.79,,
United Kingdom Atomic Energy Authority,United Kingdom Atomic Energy Authority,10/11/2014,PLANT & EQUIPMENT,25103,FUSION,BELLEVILLE SPRINGS LTD,5100312023,1637.00,,
United Kingdom Atomic Energy Authority,United Kingdom Atomic Energy Authority,17/11/2014,PLANT & EQUIPMENT,25103,FUSION,BELLEVILLE SPRINGS LTD,5100312635,249.71,,
United Kingdom Atomic Energy Authority,United Kingdom Atomic Energy Authority,17/11/2014,PLANT & EQUIPMENT,23106,FUSION,BLACK BOX UK LTD,5100312620,268.66,,
United Kingdom Atomic Energy Authority,United Kingdom Atomic Energy Authority,03/11/2014,PLANT & EQUIPMENT,23111,FUSION,BLACK BOX UK LTD,5100311908,270.00,,
United Kingdom Atomic Energy Authority,United Kingdom Atomic Energy Authority,10/11/2014,PLANT & EQUIPMENT,23152,FUSION,BLACK BOX UK LTD,5100312160,914.64,,
United Kingdom Atomic Energy Authority,United Kingdom Atomic Energy Authority,12/11/2014,HIRED STAFF,0,FUSION,BLACK DIAMOND UMBRELLA LTD,5100312455,5034.96,,
United Kingdom Atomic Energy Authority,United Kingdom Atomic Energy Authority,12/11/2014,HIRED STAFF,0,FUSION,BLACK DIAMOND UMBRELLA LTD,5100312457,4060.90,,
United Kingdom Atomic Energy Authority,United Kingdom Atomic Energy Authority,12/11/2014,HIRED STAFF,0,FUSION,BLACK DIAMOND UMBRELLA LTD,5100312459,1196.63,,
United Kingdom Atomic Energy Authority,United Kingdom Atomic Energy Authority,12/11/2014,HIRED STAFF,0,FUSION,BLACK DIAMOND UMBRELLA LTD,5100312460,340.65,,
United Kingdom Atomic Energy Authority,United Kingdom Atomic Energy Authority,12/11/2014,HIRED STAFF,0,FUSION,BLACK DIAMOND UMBRELLA LTD,5100312461,1196.63,,
United Kingdom Atomic Energy Authority,United Kingdom Atomic Energy Authority,12/11/2014,HIRED STAFF,0,FUSION,BLACK DIAMOND UMBRELLA LTD,5100312462,1196.63,,
United Kingdom Atomic Energy Authority,United Kingdom Atomic Energy Authority,12/11/2014,HIRED STAFF,0,FUSION,BLACK DIAMOND UMBRELLA LTD,5100312463,851.63,,
United Kingdom Atomic Energy Authority,United Kingdom Atomic Energy Authority,12/11/2014,HIRED STAFF,0,FUSION,BLACK DIAMOND UMBRELLA LTD,5100312465,1196.63,,
United Kingdom Atomic Energy Authority,United Kingdom Atomic Energy Authority,12/11/2014,HIRED STAFF,0,FUSION,BLACK DIAMOND UMBRELLA LTD,5100312466,851.63,,
United Kingdom Atomic Energy Authority,United Kingdom Atomic Energy Authority,12/11/2014,HIRED STAFF,0,FUSION,BLACK DIAMOND UMBRELLA LTD,5100312467,1196.63,,
United Kingdom Atomic Energy Authority,United Kingdom Atomic Energy Authority,12/11/2014,HIRED STAFF,0,FUSION,BLACK DIAMOND UMBRELLA LTD,5100312468,851.63,,
United Kingdom Atomic Energy Authority,United Kingdom Atomic Energy Authority,03/11/2014,BOOKS & PUBLICATIONS,23150,FUSION,BLACKWELL UK LTD,5100311676,112.99,,
United Kingdom Atomic Energy Authority,United Kingdom Atomic Energy Authority,10/11/2014,BOOKS & PUBLICATIONS,25702,FUSION,BLACKWELL UK LTD,5100311998,183.45,,
United Kingdom Atomic Energy Authority,United Kingdom Atomic Energy Authority,18/11/2014,CONFERENCES/MEETINGS,25403,FUSION,Blooming,1900060540,2010.05,,
United Kingdom Atomic Energy Authority,United Kingdom Atomic Energy Authority,17/11/2014,LAUNDRY,23161,FUSION,BLUEBELL LAUNDRY,5100312619,151.52,,
United Kingdom Atomic Energy Authority,United Kingdom Atomic Energy Authority,03/11/2014,IT EQUIPMENT NON CAPITAL,23132,FUSION,BLUEFORT SECURITY,5100311877,9987.50,,
United Kingdom Atomic Energy Authority,United Kingdom Atomic Energy Authority,27/10/2014,PROFESSIONAL SERVICES,23103,FUSION,BNS NUCLEAR SERVICES,5100311361,121988.63,,
United Kingdom Atomic Energy Authority,United Kingdom Atomic Energy Authority,03/11/2014,PROFESSIONAL SERVICES,23103,FUSION,BNS NUCLEAR SERVICES,5100311879,44277.69,,
United Kingdom Atomic Energy Authority,United Kingdom Atomic Energy Authority,10/11/2014,PROFESSIONAL SERVICES,23103,FUSION,BNS NUCLEAR SERVICES,5100312156,44657.38,,
United Kingdom Atomic Energy Authority,United Kingdom Atomic Energy Authority,03/11/2014,GASES,21033,SUPPORT SERVICES,BOC LTD,5100311737,3145.00,,
United Kingdom Atomic Energy Authority,United Kingdom Atomic Energy Authority,03/11/2014,GASES,23103,FUSION,BOC LTD,5100310783,48.84,,
United Kingdom Atomic Energy Authority,United Kingdom Atomic Energy Authority,03/11/2014,GASES,23103,FUSION,BOC LTD,5100310784,48.00,,
United Kingdom Atomic Energy Authority,United Kingdom Atomic Energy Authority,03/11/2014,GASES,23103,FUSION,BOC LTD,5100311046,47.64,,
United Kingdom Atomic Energy Authority,United Kingdom Atomic Energy Authority,03/11/2014,GASES,23103,FUSION,BOC LTD,5100311053,11.91,,
United Kingdom Atomic Energy Authority,United Kingdom Atomic Energy Authority,19/11/2014,GASES,23103,FUSION,BOC LTD,5100312046,47.64,,
United Kingdom Atomic Energy Authority,United Kingdom Atomic Energy Authority,19/11/2014,GASES,23103,FUSION,BOC LTD,5100312193,21.76,,
United Kingdom Atomic Energy Authority,United Kingdom Atomic Energy Authority,19/11/2014,GASES,23103,FUSION,BOC LTD,5100312200,82.92,,
United Kingdom Atomic Energy Authority,United Kingdom Atomic Energy Authority,29/10/2014,GASES,23123,FUSION,BOC LTD,5100310774,223.24,,
United Kingdom Atomic Energy Authority,United Kingdom Atomic Energy Authority,03/11/2014,GASES,23123,FUSION,BOC LTD,5100310904,32924.92,,
United Kingdom Atomic Energy Authority,United Kingdom Atomic Energy Authority,19/11/2014,GASES,23123,FUSION,BOC LTD,5100311840,332.40,,
United Kingdom Atomic Energy Authority,United Kingdom Atomic Energy Authority,19/11/2014,GASES,23123,FUSION,BOC LTD,5100312408,10427.62,,
United Kingdom Atomic Energy Authority,United Kingdom Atomic Energy Authority,27/10/2014,GASES,23128,FUSION,BOC LTD,5100309816,5438.94,,
United Kingdom Atomic Energy Authority,United Kingdom Atomic Energy Authority,27/10/2014,GASES,23128,FUSION,BOC LTD,5100310768,123.88,,
United Kingdom Atomic Energy Authority,United Kingdom Atomic Energy Authority,27/10/2014,GASES,23128,FUSION,BOC LTD,5100311330,48.00,,
United Kingdom Atomic Energy Authority,United Kingdom Atomic Energy Authority,19/11/2014,GASES,23128,FUSION,BOC LTD,5100312175,311.08,,
United Kingdom Atomic Energy Authority,United Kingdom Atomic Energy Authority,19/11/2014,GASES,23131,FUSION,BOC LTD,5100312184,255.80,,
United Kingdom Atomic Energy Authority,United Kingdom Atomic Energy Authority,19/11/2014,GASES,23150,FUSION,BOC LTD,5100312170,235.96,,
United Kingdom Atomic Energy Authority,United Kingdom Atomic Energy Authority,19/11/2014,GASES,23151,FUSION,BOC LTD,5100312174,413.69,,
United Kingdom Atomic Energy Authority,United Kingdom Atomic Energy Authority,19/11/2014,GASES,23151,FUSION,BOC LTD,5100312178,32.76,,
United Kingdom Atomic Energy Authority,United Kingdom Atomic Energy Authority,19/11/2014,GASES,23152,FUSION,BOC LTD,5100312182,252.44,,
United Kingdom Atomic Energy Authority,United Kingdom Atomic Energy Authority,19/11/2014,GASES,23161,FUSION,BOC LTD,5100312188,51.48,,
United Kingdom Atomic Energy Authority,United Kingdom Atomic Energy Authority,29/10/2014,GASES,23164,FUSION,BOC LTD,5100311327,1374.78,,
United Kingdom Atomic Energy Authority,United Kingdom Atomic Energy Authority,19/11/2014,GASES,23164,FUSION,BOC LTD,5100312176,216.32,,
United Kingdom Atomic Energy Authority,United Kingdom Atomic Energy Authority,19/11/2014,GASES,25702,FUSION,BOC LTD,5100312187,84.20,,
United Kingdom Atomic Energy Authority,United Kingdom Atomic Energy Authority,19/11/2014,GASES,25702,FUSION,BOC LTD,5100312475,249.61,,
United Kingdom Atomic Energy Authority,United Kingdom Atomic Energy Authority,03/11/2014,GASES,28040,PROPERTY,BOC LTD,5100310767,415.91,,
United Kingdom Atomic Energy Authority,United Kingdom Atomic Energy Authority,03/11/2014,GASES,28040,PROPERTY,BOC LTD,5100311328,126.56,,
United Kingdom Atomic Energy Authority,United Kingdom Atomic Energy Authority,19/11/2014,GASES,28040,PROPERTY,BOC LTD,5100312419,126.56,,
United Kingdom Atomic Energy Authority,United Kingdom Atomic Energy Authority,29/10/2014,GASES,29030,FUSION,BOC LTD,5100310776,138.04,,
United Kingdom Atomic Energy Authority,United Kingdom Atomic Energy Authority,29/10/2014,GASES,29030,FUSION,BOC LTD,5100311056,40.00,,
United Kingdom Atomic Energy Authority,United Kingdom Atomic Energy Authority,19/11/2014,GASES,29030,FUSION,BOC LTD,5100312180,138.04,,
United Kingdom Atomic Energy Authority,United Kingdom Atomic Energy Authority,19/11/2014,GASES,29030,FUSION,BOC LTD,5100312195,40.00,,
United Kingdom Atomic Energy Authority,United Kingdom Atomic Energy Authority,10/11/2014,PROFESSIONAL SERVICES,29200,FUSION,Bond Bryan Architech Ltd,5100312059,6000.00,,
United Kingdom Atomic Energy Authority,United Kingdom Atomic Energy Authority,10/11/2014,MATERIALS & SPARES,29030,FUSION,BOXER MACHINE TOOLS SERVICES,5100312148,440.00,,
United Kingdom Atomic Energy Authority,United Kingdom Atomic Energy Authority,10/11/2014,MATERIALS & SPARES,29030,FUSION,BOXER MACHINE TOOLS SERVICES,5100312149,605.00,,
United Kingdom Atomic Energy Authority,United Kingdom Atomic Energy Authority,10/11/2014,MATERIALS & SPARES,29030,FUSION,BOXER MACHINE TOOLS SERVICES,5100312150,385.00,,
United Kingdom Atomic Energy Authority,United Kingdom Atomic Energy Authority,10/11/2014,MATERIALS & SPARES,29030,FUSION,BOXER MACHINE TOOLS SERVICES,5100312152,385.00,,
United Kingdom Atomic Energy Authority,United Kingdom Atomic Energy Authority,27/10/2014,ARCHIVING & RECORDS,21033,SUPPORT SERVICES,BOX-IT UK LTD,5100311040,2086.88,,
United Kingdom Atomic Energy Authority,United Kingdom Atomic Energy Authority,27/10/2014,PLANT SPARES,23121,FUSION,BRITE PRECISION,5100311613,9286.00,,
United Kingdom Atomic Energy Authority,United Kingdom Atomic Energy Authority,27/10/2014,PLANT SPARES,23121,FUSION,BRITE PRECISION,5100311614,1045.00,,
United Kingdom Atomic Energy Authority,United Kingdom Atomic Energy Authority,17/11/2014,PLANT SPARES,23621,FUSION,BRITE PRECISION,5100312593,11925.00,,
United Kingdom Atomic Energy Authority,United Kingdom Atomic Energy Authority,17/11/2014,PLANT SPARES,23621,FUSION,BRITE PRECISION,5100312594,10600.00,,
United Kingdom Atomic Energy Authority,United Kingdom Atomic Energy Authority,27/10/2014,BOOKS & PUBLICATIONS,23109,FUSION,BRITISH STANDARDS INSTITUTION,5100311515,260.00,,
United Kingdom Atomic Energy Authority,United Kingdom Atomic Energy Authority,12/11/2014,PROFESSIONAL SERVICES,28201,PROPERTY,BSP CONSULTING,5100312324,1210.00,,
United Kingdom Atomic Energy Authority,United Kingdom Atomic Energy Authority,10/11/2014,MATERIALS & SPARES,23151,FUSION,BSS OXFORD,5100312060,74.80,,
United Kingdom Atomic Energy Authority,United Kingdom Atomic Energy Authority,05/11/2014,PERSONAL PROTECTIVE EQUIPMENT,23129,FUSION,BUCK & HICKMAN LTD,5100311834,192.52,,
United Kingdom Atomic Energy Authority,United Kingdom Atomic Energy Authority,10/11/2014,PERSONAL PROTECTIVE EQUIPMENT,23129,FUSION,BUCK & HICKMAN LTD,5100312262,89.94,,
United Kingdom Atomic Energy Authority,United Kingdom Atomic Energy Authority,03/11/2014,MATERIALS & SPARES,23103,FUSION,BUDGET FORKTRUCKS LTD,5100311675,584.72,,
United Kingdom Atomic Energy Authority,United Kingdom Atomic Energy Authority,03/11/2014,MATERIALS & SPARES,23103,FUSION,BUDGET FORKTRUCKS LTD,5100311859,390.00,,
United Kingdom Atomic Energy Authority,United Kingdom Atomic Energy Authority,05/11/2014,MATERIALS & SPARES,23151,FUSION,BUDGET FORKTRUCKS LTD,5100311860,312.00,,
United Kingdom Atomic Energy Authority,United Kingdom Atomic Energy Authority,19/11/2014,MATERIALS & SPARES,23151,FUSION,BUDGET FORKTRUCKS LTD,5100311861,342.33,,
United Kingdom Atomic Energy Authority,United Kingdom Atomic Energy Authority,19/11/2014,MATERIALS & SPARES,23151,FUSION,BUDGET FORKTRUCKS LTD,5100312086,263.80,,
United Kingdom Atomic Energy Authority,United Kingdom Atomic Energy Authority,03/11/2014,MATERIALS & SPARES,23161,FUSION,BUDGET FORKTRUCKS LTD,5100311858,268.67,,
United Kingdom Atomic Energy Authority,United Kingdom Atomic Energy Authority,03/11/2014,MATERIALS & SPARES,23161,FUSION,BUDGET FORKTRUCKS LTD,5100311862,342.33,,
United Kingdom Atomic Energy Authority,United Kingdom Atomic Energy Authority,27/10/2014,PLANT & EQUIPMENT,21034,FUSION,CALUMET,5100310828,90.00,,
United Kingdom Atomic Energy Authority,United Kingdom Atomic Energy Authority,27/10/2014,PLANT & EQUIPMENT,23104,FUSION,CALUMET,5100311345,67.75,,
United Kingdom Atomic Energy Authority,United Kingdom Atomic Energy Authority,27/10/2014,TRAINING COURSE FEES,21033,SUPPORT SERVICES,CANON FIRE PROTECTION,5100310436,495.00,,
United Kingdom Atomic Energy Authority,United Kingdom Atomic Energy Authority,29/10/2014,HEALTH PHYSICS,21033,SUPPORT SERVICES,Capital business Services Ltd,5100311499,785.37,,
United Kingdom Atomic Energy Authority,United Kingdom Atomic Energy Authority,27/10/2014,MATERIALS & SPARES,29030,FUSION,CARILLON INDUSTRIAL SERVICES LTD,5100311270,366.91,,
United Kingdom Atomic Energy Authority,United Kingdom Atomic Energy Authority,27/10/2014,MATERIALS & SPARES,29030,FUSION,CARILLON INDUSTRIAL SERVICES LTD,5100311552,264.11,,
United Kingdom Atomic Energy Authority,United Kingdom Atomic Energy Authority,10/11/2014,CONSUMABLES,29030,FUSION,CARILLON INDUSTRIAL SERVICES LTD,5100312220,57.90,,
United Kingdom Atomic Energy Authority,United Kingdom Atomic Energy Authority,17/11/2014,CONSUMABLES,29030,FUSION,CARILLON INDUSTRIAL SERVICES LTD,5100312781,26.67,,
United Kingdom Atomic Energy Authority,United Kingdom Atomic Energy Authority,13/11/2014,MATERIALS & SPARES,23106,FUSION,Case Market Ltd,1900060538,1183.73,,
United Kingdom Atomic Energy Authority,United Kingdom Atomic Energy Authority,03/11/2014,COMPENSATION AND CLAIMANT,21032,SUPPORT SERVICES,CATER LEYDON MILLARD LTD,5100311909,105.00,,
United Kingdom Atomic Energy Authority,United Kingdom Atomic Energy Authority,03/11/2014,COMPENSATION AND CLAIMANT,21032,SUPPORT SERVICES,CATER LEYDON MILLARD LTD,5100311910,447.50,,
United Kingdom Atomic Energy Authority,United Kingdom Atomic Energy Authority,03/11/2014,COMPENSATION AND CLAIMANT,21032,SUPPORT SERVICES,CATER LEYDON MILLARD LTD,5100311911,297.50,,
United Kingdom Atomic Energy Authority,United Kingdom Atomic Energy Authority,05/11/2014,OTHER STAFF COSTS,23105,FUSION,CBS Butler,1900060502,6267.60,,
United Kingdom Atomic Energy Authority,United Kingdom Atomic Energy Authority,17/11/2014,PROFESSIONAL SERVICES,28200,PROPERTY,CELTECH CONSULTANCY LTD,5100312443,700.00,,
United Kingdom Atomic Energy Authority,United Kingdom Atomic Energy Authority,19/11/2014,MATERIALS & SPARES,23128,FUSION,Cembre Ltd,5100312217,131.88,,
United Kingdom Atomic Energy Authority,United Kingdom Atomic Energy Authority,19/11/2014,MATERIALS & SPARES,23128,FUSION,Cembre Ltd,5100312357,141.12,,
United Kingdom Atomic Energy Authority,United Kingdom Atomic Energy Authority,05/11/2014,OTHER EXTERNAL COSTS,25701,FUSION,CIEMAT,1900060503,260.00,,
United Kingdom Atomic Energy Authority,United Kingdom Atomic Energy Authority,17/11/2014,MATERIALS & SPARES,25103,FUSION,CITY ENGINEERING LTD,5100312726,1336.96,,
United Kingdom Atomic Energy Authority,United Kingdom Atomic Energy Authority,17/11/2014,MATERIALS & SPARES,25702,FUSION,CITY ENGINEERING LTD,5100312435,115.38,,
United Kingdom Atomic Energy Authority,United Kingdom Atomic Energy Authority,03/11/2014,LAUNDRY,29030,FUSION,CLEAN LINEN SERVICES LTD,5100311838,96.15,,
United Kingdom Atomic Energy Authority,United Kingdom Atomic Energy Authority,05/11/2014,CATERING,28040,PROPERTY,CLEANSING SERVICE GROUP LTD,5100307056,74.30,,
United Kingdom Atomic Energy Authority,United Kingdom Atomic Energy Authority,05/11/2014,CATERING,28040,PROPERTY,CLEANSING SERVICE GROUP LTD,5100307057,54.60,,
United Kingdom Atomic Energy Authority,United Kingdom Atomic Energy Authority,12/11/2014,UTILITIES/GAS,28020,PROPERTY,COFELY LTD,5100312228,798.27,,
United Kingdom Atomic Energy Authority,United Kingdom Atomic Energy Authority,03/11/2014,UTILITIES/GAS,28050,PROPERTY,COFELY LTD,5100311219,2234.63,,
United Kingdom Atomic Energy Authority,United Kingdom Atomic Energy Authority,03/11/2014,UTILITIES/GAS,28050,PROPERTY,COFELY LTD,5100311221,141.18,,
United Kingdom Atomic Energy Authority,United Kingdom Atomic Energy Authority,17/11/2014,REPAIRS & MAINTENANCE,25836,FUSION,COLAS LTD,5100312450,715.00,,
United Kingdom Atomic Energy Authority,United Kingdom Atomic Energy Authority,27/10/2014,MATERIALS & SPARES,25103,FUSION,Colbree precision Ltd,5100311353,297.92,,
United Kingdom Atomic Energy Authority,United Kingdom Atomic Energy Authority,03/11/2014,MATERIALS & SPARES,25103,FUSION,Colbree precision Ltd,5100311758,2804.45,,
United Kingdom Atomic Energy Authority,United Kingdom Atomic Energy Authority,03/11/2014,MATERIALS & SPARES,25103,FUSION,Colbree precision Ltd,5100311760,744.80,,
United Kingdom Atomic Energy Authority,United Kingdom Atomic Energy Authority,12/11/2014,MATERIALS & SPARES,25103,FUSION,Colbree precision Ltd,5100312052,1334.00,,
United Kingdom Atomic Energy Authority,United Kingdom Atomic Energy Authority,12/11/2014,MATERIALS & SPARES,25103,FUSION,Colbree precision Ltd,5100312053,2570.00,,
United Kingdom Atomic Energy Authority,United Kingdom Atomic Energy Authority,12/11/2014,MATERIALS & SPARES,25103,FUSION,Colbree precision Ltd,5100312057,3988.00,,
United Kingdom Atomic Energy Authority,United Kingdom Atomic Energy Authority,12/11/2014,MATERIALS & SPARES,25103,FUSION,Colbree precision Ltd,5100312058,21.28,,
United Kingdom Atomic Energy Authority,United Kingdom Atomic Energy Authority,27/10/2014,PLANT & EQUIPMENT,23150,FUSION,COLE-PALMER INSTRUMENTAL COMPANY LTD,5100311605,625.23,,
United Kingdom Atomic Energy Authority,United Kingdom Atomic Energy Authority,27/10/2014,MATERIALS & SPARES,25103,FUSION,COMPLETE PCB SERVICES LTD,5100311263,780.00,,
United Kingdom Atomic Energy Authority,United Kingdom Atomic Energy Authority,19/11/2014,MATERIALS & SPARES,25701,FUSION,COMPLETE PCB SERVICES LTD,5100311264,1077.84,,
United Kingdom Atomic Energy Authority,United Kingdom Atomic Energy Authority,03/11/2014,MATERIALS & SPARES,25701,FUSION,COMPLETE PCB SERVICES LTD,5100311808,1820.25,,
United Kingdom Atomic Energy Authority,United Kingdom Atomic Energy Authority,17/11/2014,MATERIALS & SPARES,25701,FUSION,COMPLETE PCB SERVICES LTD,5100312382,594.00,,
United Kingdom Atomic Energy Authority,United Kingdom Atomic Energy Authority,27/10/2014,PLANT SPARES,23120,FUSION,CONDEC INDUSTRIAL MAINTENANCE,5100311531,3440.00,,
United Kingdom Atomic Energy Authority,United Kingdom Atomic Energy Authority,27/10/2014,MATERIALS & SPARES,23120,FUSION,CPC PLC,5100311267,17.99,,
United Kingdom Atomic Energy Authority,United Kingdom Atomic Energy Authority,19/11/2014,MATERIALS & SPARES,23129,FUSION,CPC PLC,5100312411,6.44,,
United Kingdom Atomic Energy Authority,United Kingdom Atomic Energy Authority,27/10/2014,MATERIALS & SPARES,23134,FUSION,CPC PLC,5100311253,129.55,,
United Kingdom Atomic Energy Authority,United Kingdom Atomic Energy Authority,27/10/2014,MATERIALS & SPARES,23134,FUSION,CPC PLC,5100311453,69.15,,
United Kingdom Atomic Energy Authority,United Kingdom Atomic Energy Authority,27/10/2014,MATERIALS & SPARES,25702,FUSION,CPC PLC,5100310537,593.00,,
United Kingdom Atomic Energy Authority,United Kingdom Atomic Energy Authority,05/11/2014,MATERIALS & SPARES,23131,FUSION,Creotech Lab,5100311984,11204.51,,
United Kingdom Atomic Energy Authority,United Kingdom Atomic Energy Authority,27/10/2014,MATERIALS & SPARES,23103,FUSION,CROMWELL LTD,5100311477,158.70,,
United Kingdom Atomic Energy Authority,United Kingdom Atomic Energy Authority,29/10/2014,MATERIALS & SPARES,23103,FUSION,CROMWELL LTD,5100311478,460.00,,
United Kingdom Atomic Energy Authority,United Kingdom Atomic Energy Authority,27/10/2014,MATERIALS & SPARES,23103,FUSION,CROMWELL LTD,5100311480,661.50,,
United Kingdom Atomic Energy Authority,United Kingdom Atomic Energy Authority,27/10/2014,MATERIALS & SPARES,23103,FUSION,CROMWELL LTD,5100311481,467.96,,
United Kingdom Atomic Energy Authority,United Kingdom Atomic Energy Authority,27/10/2014,MATERIALS & SPARES,23103,FUSION,CROMWELL LTD,5100311487,11.12,,
United Kingdom Atomic Energy Authority,United Kingdom Atomic Energy Authority,27/10/2014,MATERIALS & SPARES,23103,FUSION,CROMWELL LTD,5100311629,279.20,,
United Kingdom Atomic Energy Authority,United Kingdom Atomic Energy Authority,27/10/2014,MATERIALS & SPARES,23103,FUSION,CROMWELL LTD,5100311631,11.12,,
United Kingdom Atomic Energy Authority,United Kingdom Atomic Energy Authority,29/10/2014,MATERIALS & SPARES,23106,FUSION,CROMWELL LTD,5100310469,359.88,,
United Kingdom Atomic Energy Authority,United Kingdom Atomic Energy Authority,27/10/2014,MATERIALS & SPARES,23126,FUSION,CROMWELL LTD,5100311482,223.85,,
United Kingdom Atomic Energy Authority,United Kingdom Atomic Energy Authority,27/10/2014,MATERIALS & SPARES,23151,FUSION,CROMWELL LTD,5100311484,282.10,,
United Kingdom Atomic Energy Authority,United Kingdom Atomic Energy Authority,27/10/2014,MATERIALS & SPARES,23151,FUSION,CROMWELL LTD,5100311630,48.59,,
United Kingdom Atomic Energy Authority,United Kingdom Atomic Energy Authority,29/10/2014,MATERIALS & SPARES,23151,FUSION,CROMWELL LTD,5100311632,63.03,,
United Kingdom Atomic Energy Authority,United Kingdom Atomic Energy Authority,27/10/2014,MATERIALS & SPARES,23151,FUSION,CROMWELL LTD,5100311633,57.42,,
United Kingdom Atomic Energy Authority,United Kingdom Atomic Energy Authority,17/11/2014,MATERIALS & SPARES,23152,FUSION,CROMWELL LTD,5100312398,408.74,,
United Kingdom Atomic Energy Authority,United Kingdom Atomic Energy Authority,27/10/2014,MATERIALS & SPARES,23161,FUSION,CROMWELL LTD,5100311485,118.90,,
United Kingdom Atomic Energy Authority,United Kingdom Atomic Energy Authority,27/10/2014,MATERIALS & SPARES,23161,FUSION,CROMWELL LTD,5100311628,70.00,,
United Kingdom Atomic Energy Authority,United Kingdom Atomic Energy Authority,27/10/2014,MATERIALS & SPARES,23161,FUSION,CROMWELL LTD,5100311635,280.00,,
United Kingdom Atomic Energy Authority,United Kingdom Atomic Energy Authority,27/10/2014,MATERIALS & SPARES,23161,FUSION,CROMWELL LTD,5100311636,166.21,,
United Kingdom Atomic Energy Authority,United Kingdom Atomic Energy Authority,17/11/2014,MATERIALS & SPARES,23161,FUSION,CROMWELL LTD,5100312391,20.94,,
United Kingdom Atomic Energy Authority,United Kingdom Atomic Energy Authority,17/11/2014,MATERIALS & SPARES,23161,FUSION,CROMWELL LTD,5100312393,403.44,,
United Kingdom Atomic Energy Authority,United Kingdom Atomic Energy Authority,17/11/2014,MATERIALS & SPARES,23161,FUSION,CROMWELL LTD,5100312395,11.60,,
United Kingdom Atomic Energy Authority,United Kingdom Atomic Energy Authority,17/11/2014,MATERIALS & SPARES,23621,FUSION,CROMWELL LTD,5100312407,79.62,,
United Kingdom Atomic Energy Authority,United Kingdom Atomic Energy Authority,27/10/2014,MATERIALS & SPARES,25103,FUSION,CROMWELL LTD,5100311479,9.68,,
United Kingdom Atomic Energy Authority,United Kingdom Atomic Energy Authority,27/10/2014,MATERIALS & SPARES,25103,FUSION,CROMWELL LTD,5100311486,741.17,,
United Kingdom Atomic Energy Authority,United Kingdom Atomic Energy Authority,17/11/2014,MATERIALS & SPARES,25103,FUSION,CROMWELL LTD,5100312400,206.37,,
United Kingdom Atomic Energy Authority,United Kingdom Atomic Energy Authority,29/10/2014,MATERIALS & SPARES,25702,FUSION,CROMWELL LTD,5100311634,548.20,,
United Kingdom Atomic Energy Authority,United Kingdom Atomic Energy Authority,03/11/2014,MATERIALS & SPARES,25836,FUSION,CROMWELL LTD,5100311483,459.00,,
United Kingdom Atomic Energy Authority,United Kingdom Atomic Energy Authority,10/11/2014,MATERIALS & SPARES,25702,FUSION,CROSSMAN ENGINEERING,5100312216,530.00,,
United Kingdom Atomic Energy Authority,United Kingdom Atomic Energy Authority,27/10/2014,PROFESSIONAL SERVICES,21033,SUPPORT SERVICES,CSC COMPUTER SERVICES,5100311403,12297.73,,
United Kingdom Atomic Energy Authority,United Kingdom Atomic Energy Authority,10/11/2014,PROFESSIONAL SERVICES,21033,SUPPORT SERVICES,CSS WORKSAFE,5100310836,795.00,,
United Kingdom Atomic Energy Authority,United Kingdom Atomic Energy Authority,05/11/2014,PLANT SPARES,29030,FUSION,CUTWEL LTD,5100311867,484.90,,
United Kingdom Atomic Energy Authority,United Kingdom Atomic Energy Authority,10/11/2014,PLANT SPARES,29030,FUSION,CUTWEL LTD,5100312140,19.99,,
United Kingdom Atomic Energy Authority,United Kingdom Atomic Energy Authority,10/11/2014,PLANT SPARES,29030,FUSION,CUTWEL LTD,5100312142,484.90,,
United Kingdom Atomic Energy Authority,United Kingdom Atomic Energy Authority,05/11/2014,MATERIALS & SPARES,28030,PROPERTY,CYFAS SYSTEMS LTD,5100311619,3665.00,,
United Kingdom Atomic Energy Authority,United Kingdom Atomic Energy Authority,05/11/2014,BUILDING REPAIRS,23161,FUSION,D CLOUGH LTD,5100311935,5445.94,,
United Kingdom Atomic Energy Authority,United Kingdom Atomic Energy Authority,03/11/2014,OTHER EFDA COST,23900,FUSION,VISITORS EXPENSES,1900060488,3294.68,,
United Kingdom Atomic Energy Authority,United Kingdom Atomic Energy Authority,12/11/2014,PLANT & EQUIPMENT,25704,FUSION,DIGIKEY CORPORATION,5100312159,57.96,,
United Kingdom Atomic Energy Authority,United Kingdom Atomic Energy Authority,03/11/2014,PROFESSIONAL SERVICES,21033,SUPPORT SERVICES,DISCLOSURE SCOTLAND,5100311892,250.00,,
United Kingdom Atomic Energy Authority,United Kingdom Atomic Energy Authority,17/11/2014,PROFESSIONAL SERVICES,21033,SUPPORT SERVICES,DISCLOSURE SCOTLAND,5100312784,200.00,,
United Kingdom Atomic Energy Authority,United Kingdom Atomic Energy Authority,17/11/2014,PLANT & EQUIPMENT,23123,FUSION,DONALDSON FILTRATION (GB) LIMITED,5100311903,1476.80,,
United Kingdom Atomic Energy Authority,United Kingdom Atomic Energy Authority,03/11/2014,MATERIALS & SPARES,23125,FUSION,DRAEGER SAFETY,5100311884,380.00,,
United Kingdom Atomic Energy Authority,United Kingdom Atomic Energy Authority,10/11/2014,MATERIALS & SPARES,23102,FUSION,DURBIN METAL INDUSTRIES LTD,5100312012,163.55,,
United Kingdom Atomic Energy Authority,United Kingdom Atomic Energy Authority,10/11/2014,MATERIALS & SPARES,23131,FUSION,DURBIN METAL INDUSTRIES LTD,5100312139,112.50,,
United Kingdom Atomic Energy Authority,United Kingdom Atomic Energy Authority,19/11/2014,MATERIALS & SPARES,23621,FUSION,DURBIN METAL INDUSTRIES LTD,5100312603,53.75,,
United Kingdom Atomic Energy Authority,United Kingdom Atomic Energy Authority,27/10/2014,MATERIALS & SPARES,29030,FUSION,DURBIN METAL INDUSTRIES LTD,5100311266,32.50,,
United Kingdom Atomic Energy Authority,United Kingdom Atomic Energy Authority,29/10/2014,MATERIALS & SPARES,29030,FUSION,DURBIN METAL INDUSTRIES LTD,5100311310,44.50,,
United Kingdom Atomic Energy Authority,United Kingdom Atomic Energy Authority,29/10/2014,MATERIALS & SPARES,29030,FUSION,DURBIN METAL INDUSTRIES LTD,5100311317,12.70,,
United Kingdom Atomic Energy Authority,United Kingdom Atomic Energy Authority,29/10/2014,MATERIALS & SPARES,29030,FUSION,DURBIN METAL INDUSTRIES LTD,5100311319,60.30,,
United Kingdom Atomic Energy Authority,United Kingdom Atomic Energy Authority,29/10/2014,MATERIALS & SPARES,29030,FUSION,DURBIN METAL INDUSTRIES LTD,5100311321,44.60,,
United Kingdom Atomic Energy Authority,United Kingdom Atomic Energy Authority,29/10/2014,MATERIALS & SPARES,29030,FUSION,DURBIN METAL INDUSTRIES LTD,5100311489,59.50,,
United Kingdom Atomic Energy Authority,United Kingdom Atomic Energy Authority,05/11/2014,MATERIALS & SPARES,29030,FUSION,DURBIN METAL INDUSTRIES LTD,5100311761,264.70,,
United Kingdom Atomic Energy Authority,United Kingdom Atomic Energy Authority,05/11/2014,MATERIALS & SPARES,29030,FUSION,DURBIN METAL INDUSTRIES LTD,5100311905,209.70,,
United Kingdom Atomic Energy Authority,United Kingdom Atomic Energy Authority,05/11/2014,MATERIALS & SPARES,29030,FUSION,DURBIN METAL INDUSTRIES LTD,5100311906,55.50,,
United Kingdom Atomic Energy Authority,United Kingdom Atomic Energy Authority,05/11/2014,MATERIALS & SPARES,29030,FUSION,DURBIN METAL INDUSTRIES LTD,5100311907,69.80,,
United Kingdom Atomic Energy Authority,United Kingdom Atomic Energy Authority,10/11/2014,MATERIALS & SPARES,29030,FUSION,DURBIN METAL INDUSTRIES LTD,5100312011,41.00,,
United Kingdom Atomic Energy Authority,United Kingdom Atomic Energy Authority,10/11/2014,MATERIALS & SPARES,29030,FUSION,DURBIN METAL INDUSTRIES LTD,5100312138,38.95,,
United Kingdom Atomic Energy Authority,United Kingdom Atomic Energy Authority,19/11/2014,MATERIALS & SPARES,29030,FUSION,DURBIN METAL INDUSTRIES LTD,5100312752,47.90,,
United Kingdom Atomic Energy Authority,United Kingdom Atomic Energy Authority,19/11/2014,MATERIALS & SPARES,29030,FUSION,DURBIN METAL INDUSTRIES LTD,5100312755,29.80,,
United Kingdom Atomic Energy Authority,United Kingdom Atomic Energy Authority,29/10/2014,MATERIALS & SPARES,25103,FUSION,DynAmp LLC,5100310307,7622.66,,
United Kingdom Atomic Energy Authority,United Kingdom Atomic Energy Authority,03/11/2014,ELECTRICITY,23101,FUSION,E.ON (UK) Ltd,5100311766,333684.47,,
United Kingdom Atomic Energy Authority,United Kingdom Atomic Energy Authority,12/11/2014,UTILITIES/ELECTRICITY,23101,FUSION,EDF ENERGY,5100312303,117317.63,,
United Kingdom Atomic Energy Authority,United Kingdom Atomic Energy Authority,17/11/2014,UTILITIES/ELECTRICITY,23101,FUSION,EDF ENERGY,5100312551,88643.02,,
United Kingdom Atomic Energy Authority,United Kingdom Atomic Energy Authority,10/11/2014,UTILITIES/ELECTRICITY,28050,PROPERTY,EDF ENERGY,5100312103,2455.75,,
United Kingdom Atomic Energy Authority,United Kingdom Atomic Energy Authority,10/11/2014,UTILITIES/ELECTRICITY,28050,PROPERTY,EDF ENERGY,5100312104,20537.16,,
United Kingdom Atomic Energy Authority,United Kingdom Atomic Energy Authority,10/11/2014,UTILITIES/ELECTRICITY,28050,PROPERTY,EDF ENERGY,5100312105,1782.69,,
United Kingdom Atomic Energy Authority,United Kingdom Atomic Energy Authority,10/11/2014,UTILITIES/ELECTRICITY,28050,PROPERTY,EDF ENERGY,5100312107,2522.91,,
United Kingdom Atomic Energy Authority,United Kingdom Atomic Energy Authority,10/11/2014,UTILITIES/ELECTRICITY,28050,PROPERTY,EDF ENERGY,5100312110,823.28,,
United Kingdom Atomic Energy Authority,United Kingdom Atomic Energy Authority,10/11/2014,UTILITIES/ELECTRICITY,28050,PROPERTY,EDF ENERGY,5100312162,26616.63,,
United Kingdom Atomic Energy Authority,United Kingdom Atomic Energy Authority,10/11/2014,UTILITIES/ELECTRICITY,28050,PROPERTY,EDF ENERGY,5100312163,27610.73,,
United Kingdom Atomic Energy Authority,United Kingdom Atomic Energy Authority,10/11/2014,UTILITIES/ELECTRICITY,28050,PROPERTY,EDF ENERGY,5100312164,235.74,,
United Kingdom Atomic Energy Authority,United Kingdom Atomic Energy Authority,27/10/2014,PROFESSIONAL SERVICES,25103,FUSION,EDM PRECISION TECHNOLOGIES,5100311609,1996.80,,
United Kingdom Atomic Energy Authority,United Kingdom Atomic Energy Authority,10/11/2014,PROFESSIONAL SERVICES,29030,FUSION,EDM PRECISION TECHNOLOGIES,5100312155,1560.00,,
United Kingdom Atomic Energy Authority,United Kingdom Atomic Energy Authority,10/11/2014,PLANT & EQUIPMENT,23105,FUSION,EDMUNDSON ELECTRICALS LTD,5100312067,158.44,,
United Kingdom Atomic Energy Authority,United Kingdom Atomic Energy Authority,27/10/2014,PLANT & EQUIPMENT,23128,FUSION,EDMUNDSON ELECTRICALS LTD,5100311132,809.48,,
United Kingdom Atomic Energy Authority,United Kingdom Atomic Energy Authority,27/10/2014,PLANT & EQUIPMENT,23128,FUSION,EDMUNDSON ELECTRICALS LTD,5100311133,294.46,,
United Kingdom Atomic Energy Authority,United Kingdom Atomic Energy Authority,27/10/2014,PLANT & EQUIPMENT,23128,FUSION,EDMUNDSON ELECTRICALS LTD,5100311171,546.64,,
United Kingdom Atomic Energy Authority,United Kingdom Atomic Energy Authority,27/10/2014,PLANT & EQUIPMENT,23128,FUSION,EDMUNDSON ELECTRICALS LTD,5100311437,86.53,,
United Kingdom Atomic Energy Authority,United Kingdom Atomic Energy Authority,10/11/2014,PLANT & EQUIPMENT,23128,FUSION,EDMUNDSON ELECTRICALS LTD,5100312264,2184.03,,
United Kingdom Atomic Energy Authority,United Kingdom Atomic Energy Authority,12/11/2014,PLANT & EQUIPMENT,23128,FUSION,EDMUNDSON ELECTRICALS LTD,5100312266,2650.19,,
United Kingdom Atomic Energy Authority,United Kingdom Atomic Energy Authority,10/11/2014,PLANT & EQUIPMENT,23128,FUSION,EDMUNDSON ELECTRICALS LTD,5100312304,47.60,,
United Kingdom Atomic Energy Authority,United Kingdom Atomic Energy Authority,17/11/2014,PLANT & EQUIPMENT,23128,FUSION,EDMUNDSON ELECTRICALS LTD,5100312622,129.44,,
United Kingdom Atomic Energy Authority,United Kingdom Atomic Energy Authority,17/11/2014,PLANT & EQUIPMENT,23128,FUSION,EDMUNDSON ELECTRICALS LTD,5100312623,22.50,,
United Kingdom Atomic Energy Authority,United Kingdom Atomic Energy Authority,17/11/2014,PLANT & EQUIPMENT,23128,FUSION,EDMUNDSON ELECTRICALS LTD,5100312765,15.49,,
United Kingdom Atomic Energy Authority,United Kingdom Atomic Energy Authority,17/11/2014,PLANT & EQUIPMENT,23128,FUSION,EDMUNDSON ELECTRICALS LTD,5100312777,24.83,,
United Kingdom Atomic Energy Authority,United Kingdom Atomic Energy Authority,27/10/2014,PLANT & EQUIPMENT,23150,FUSION,EDMUNDSON ELECTRICALS LTD,5100311347,1471.45,,
United Kingdom Atomic Energy Authority,United Kingdom Atomic Energy Authority,27/10/2014,PLANT & EQUIPMENT,23150,FUSION,EDMUNDSON ELECTRICALS LTD,5100311439,790.28,,
United Kingdom Atomic Energy Authority,United Kingdom Atomic Energy Authority,27/10/2014,PLANT & EQUIPMENT,23150,FUSION,EDMUNDSON ELECTRICALS LTD,5100311538,6.90,,
United Kingdom Atomic Energy Authority,United Kingdom Atomic Energy Authority,27/10/2014,PLANT & EQUIPMENT,23150,FUSION,EDMUNDSON ELECTRICALS LTD,5100311543,122.64,,
United Kingdom Atomic Energy Authority,United Kingdom Atomic Energy Authority,27/10/2014,PLANT & EQUIPMENT,23150,FUSION,EDMUNDSON ELECTRICALS LTD,5100311548,151.20,,
United Kingdom Atomic Energy Authority,United Kingdom Atomic Energy Authority,27/10/2014,PLANT & EQUIPMENT,23150,FUSION,EDMUNDSON ELECTRICALS LTD,5100311549,38.61,,
United Kingdom Atomic Energy Authority,United Kingdom Atomic Energy Authority,05/11/2014,PLANT & EQUIPMENT,23150,FUSION,EDMUNDSON ELECTRICALS LTD,5100311621,462.88,,
United Kingdom Atomic Energy Authority,United Kingdom Atomic Energy Authority,29/10/2014,PLANT & EQUIPMENT,23150,FUSION,EDMUNDSON ELECTRICALS LTD,5100311622,37.83,,
United Kingdom Atomic Energy Authority,United Kingdom Atomic Energy Authority,05/11/2014,PLANT & EQUIPMENT,23150,FUSION,EDMUNDSON ELECTRICALS LTD,5100311937,64.42,,
United Kingdom Atomic Energy Authority,United Kingdom Atomic Energy Authority,03/11/2014,PLANT & EQUIPMENT,23150,FUSION,EDMUNDSON ELECTRICALS LTD,5100311938,325.56,,
United Kingdom Atomic Energy Authority,United Kingdom Atomic Energy Authority,10/11/2014,PLANT & EQUIPMENT,23150,FUSION,EDMUNDSON ELECTRICALS LTD,5100312071,266.76,,
United Kingdom Atomic Energy Authority,United Kingdom Atomic Energy Authority,10/11/2014,PLANT & EQUIPMENT,23150,FUSION,EDMUNDSON ELECTRICALS LTD,5100312073,87.94,,
United Kingdom Atomic Energy Authority,United Kingdom Atomic Energy Authority,12/11/2014,PLANT & EQUIPMENT,23150,FUSION,EDMUNDSON ELECTRICALS LTD,5100312227,234.00,,
United Kingdom Atomic Energy Authority,United Kingdom Atomic Energy Authority,12/11/2014,PLANT & EQUIPMENT,23150,FUSION,EDMUNDSON ELECTRICALS LTD,5100312306,75.07,,
United Kingdom Atomic Energy Authority,United Kingdom Atomic Energy Authority,19/11/2014,PLANT & EQUIPMENT,23150,FUSION,EDMUNDSON ELECTRICALS LTD,5100312771,3.35,,
United Kingdom Atomic Energy Authority,United Kingdom Atomic Energy Authority,27/10/2014,PLANT & EQUIPMENT,23161,FUSION,EDMUNDSON ELECTRICALS LTD,5100311173,103.24,,
United Kingdom Atomic Energy Authority,United Kingdom Atomic Energy Authority,27/10/2014,PLANT & EQUIPMENT,23161,FUSION,EDMUNDSON ELECTRICALS LTD,5100311280,214.40,,
United Kingdom Atomic Energy Authority,United Kingdom Atomic Energy Authority,27/10/2014,PLANT & EQUIPMENT,23161,FUSION,EDMUNDSON ELECTRICALS LTD,5100311281,66.52,,
United Kingdom Atomic Energy Authority,United Kingdom Atomic Energy Authority,27/10/2014,PLANT & EQUIPMENT,23161,FUSION,EDMUNDSON ELECTRICALS LTD,5100311346,80.66,,
United Kingdom Atomic Energy Authority,United Kingdom Atomic Energy Authority,27/10/2014,PLANT & EQUIPMENT,23161,FUSION,EDMUNDSON ELECTRICALS LTD,5100311348,326.83,,
United Kingdom Atomic Energy Authority,United Kingdom Atomic Energy Authority,27/10/2014,PLANT & EQUIPMENT,23161,FUSION,EDMUNDSON ELECTRICALS LTD,5100311350,72.00,,
United Kingdom Atomic Energy Authority,United Kingdom Atomic Energy Authority,27/10/2014,PLANT & EQUIPMENT,23161,FUSION,EDMUNDSON ELECTRICALS LTD,5100311438,5582.72,,
United Kingdom Atomic Energy Authority,United Kingdom Atomic Energy Authority,29/10/2014,PLANT & EQUIPMENT,23161,FUSION,EDMUNDSON ELECTRICALS LTD,5100311539,56.80,,
United Kingdom Atomic Energy Authority,United Kingdom Atomic Energy Authority,27/10/2014,PLANT & EQUIPMENT,23161,FUSION,EDMUNDSON ELECTRICALS LTD,5100311545,79.24,,
United Kingdom Atomic Energy Authority,United Kingdom Atomic Energy Authority,27/10/2014,PLANT & EQUIPMENT,23161,FUSION,EDMUNDSON ELECTRICALS LTD,5100311546,33.12,,
United Kingdom Atomic Energy Authority,United Kingdom Atomic Energy Authority,03/11/2014,PLANT & EQUIPMENT,23161,FUSION,EDMUNDSON ELECTRICALS LTD,5100311716,109.86,,
United Kingdom Atomic Energy Authority,United Kingdom Atomic Energy Authority,10/11/2014,PLANT & EQUIPMENT,23161,FUSION,EDMUNDSON ELECTRICALS LTD,5100312065,5.68,,
United Kingdom Atomic Energy Authority,United Kingdom Atomic Energy Authority,10/11/2014,PLANT & EQUIPMENT,23161,FUSION,EDMUNDSON ELECTRICALS LTD,5100312068,88.33,,
United Kingdom Atomic Energy Authority,United Kingdom Atomic Energy Authority,10/11/2014,PLANT & EQUIPMENT,23161,FUSION,EDMUNDSON ELECTRICALS LTD,5100312069,16.87,,
United Kingdom Atomic Energy Authority,United Kingdom Atomic Energy Authority,10/11/2014,PLANT & EQUIPMENT,23161,FUSION,EDMUNDSON ELECTRICALS LTD,5100312075,191.64,,
United Kingdom Atomic Energy Authority,United Kingdom Atomic Energy Authority,12/11/2014,PLANT & EQUIPMENT,23161,FUSION,EDMUNDSON ELECTRICALS LTD,5100312225,479.52,,
United Kingdom Atomic Energy Authority,United Kingdom Atomic Energy Authority,12/11/2014,PLANT & EQUIPMENT,23161,FUSION,EDMUNDSON ELECTRICALS LTD,5100312305,74.74,,
United Kingdom Atomic Energy Authority,United Kingdom Atomic Energy Authority,12/11/2014,PLANT & EQUIPMENT,23161,FUSION,EDMUNDSON ELECTRICALS LTD,5100312307,410.77,,
United Kingdom Atomic Energy Authority,United Kingdom Atomic Energy Authority,17/11/2014,PLANT & EQUIPMENT,23161,FUSION,EDMUNDSON ELECTRICALS LTD,5100312415,419.84,,
United Kingdom Atomic Energy Authority,United Kingdom Atomic Energy Authority,19/11/2014,PLANT & EQUIPMENT,23161,FUSION,EDMUNDSON ELECTRICALS LTD,5100312766,66.85,,
United Kingdom Atomic Energy Authority,United Kingdom Atomic Energy Authority,19/11/2014,PLANT & EQUIPMENT,23161,FUSION,EDMUNDSON ELECTRICALS LTD,5100312775,41.01,,
United Kingdom Atomic Energy Authority,United Kingdom Atomic Energy Authority,27/10/2014,PLANT & EQUIPMENT,25103,FUSION,EDMUNDSON ELECTRICALS LTD,5100311537,92.05,,
United Kingdom Atomic Energy Authority,United Kingdom Atomic Energy Authority,27/10/2014,PLANT & EQUIPMENT,25103,FUSION,EDMUNDSON ELECTRICALS LTD,5100311551,1311.48,,
United Kingdom Atomic Energy Authority,United Kingdom Atomic Energy Authority,29/10/2014,PLANT & EQUIPMENT,25103,FUSION,EDMUNDSON ELECTRICALS LTD,5100311620,277.00,,
United Kingdom Atomic Energy Authority,United Kingdom Atomic Energy Authority,03/11/2014,PLANT & EQUIPMENT,25103,FUSION,EDMUNDSON ELECTRICALS LTD,5100311739,833.89,,
United Kingdom Atomic Energy Authority,United Kingdom Atomic Energy Authority,03/11/2014,PLANT & EQUIPMENT,25103,FUSION,EDMUNDSON ELECTRICALS LTD,5100311740,678.18,,
United Kingdom Atomic Energy Authority,United Kingdom Atomic Energy Authority,03/11/2014,PLANT & EQUIPMENT,25103,FUSION,EDMUNDSON ELECTRICALS LTD,5100311741,40.60,,
United Kingdom Atomic Energy Authority,United Kingdom Atomic Energy Authority,10/11/2014,PLANT & EQUIPMENT,25103,FUSION,EDMUNDSON ELECTRICALS LTD,5100312066,65.36,,
United Kingdom Atomic Energy Authority,United Kingdom Atomic Energy Authority,12/11/2014,PLANT & EQUIPMENT,25103,FUSION,EDMUNDSON ELECTRICALS LTD,5100312226,16.70,,
United Kingdom Atomic Energy Authority,United Kingdom Atomic Energy Authority,10/11/2014,PLANT & EQUIPMENT,25103,FUSION,EDMUNDSON ELECTRICALS LTD,5100312267,117.50,,
United Kingdom Atomic Energy Authority,United Kingdom Atomic Energy Authority,12/11/2014,PLANT & EQUIPMENT,25103,FUSION,EDMUNDSON ELECTRICALS LTD,5100312309,78.95,,
United Kingdom Atomic Energy Authority,United Kingdom Atomic Energy Authority,17/11/2014,PLANT & EQUIPMENT,25103,FUSION,EDMUNDSON ELECTRICALS LTD,5100312413,19.99,,
United Kingdom Atomic Energy Authority,United Kingdom Atomic Energy Authority,19/11/2014,PLANT & EQUIPMENT,25103,FUSION,EDMUNDSON ELECTRICALS LTD,5100312768,167.16,,
United Kingdom Atomic Energy Authority,United Kingdom Atomic Energy Authority,19/11/2014,PLANT & EQUIPMENT,25103,FUSION,EDMUNDSON ELECTRICALS LTD,5100312770,592.11,,
United Kingdom Atomic Energy Authority,United Kingdom Atomic Energy Authority,19/11/2014,PLANT & EQUIPMENT,25103,FUSION,EDMUNDSON ELECTRICALS LTD,5100312774,43.22,,
United Kingdom Atomic Energy Authority,United Kingdom Atomic Energy Authority,27/10/2014,PLANT & EQUIPMENT,25702,FUSION,EDMUNDSON ELECTRICALS LTD,5100311550,637.00,,
United Kingdom Atomic Energy Authority,United Kingdom Atomic Energy Authority,27/10/2014,PLANT & EQUIPMENT,25704,FUSION,EDMUNDSON ELECTRICALS LTD,5100311278,549.00,,
United Kingdom Atomic Energy Authority,United Kingdom Atomic Energy Authority,27/10/2014,PLANT & EQUIPMENT,25704,FUSION,EDMUNDSON ELECTRICALS LTD,5100311279,187.12,,
United Kingdom Atomic Energy Authority,United Kingdom Atomic Energy Authority,27/10/2014,PLANT & EQUIPMENT,25704,FUSION,EDMUNDSON ELECTRICALS LTD,5100311440,42.25,,
United Kingdom Atomic Energy Authority,United Kingdom Atomic Energy Authority,27/10/2014,PLANT & EQUIPMENT,25704,FUSION,EDMUNDSON ELECTRICALS LTD,5100311542,242.55,,
United Kingdom Atomic Energy Authority,United Kingdom Atomic Energy Authority,03/11/2014,PLANT & EQUIPMENT,25704,FUSION,EDMUNDSON ELECTRICALS LTD,5100311717,608.65,,
United Kingdom Atomic Energy Authority,United Kingdom Atomic Energy Authority,29/10/2014,PLANT & EQUIPMENT,29200,FUSION,EDMUNDSON ELECTRICALS LTD,5100311535,110.41,,
United Kingdom Atomic Energy Authority,United Kingdom Atomic Energy Authority,27/10/2014,PLANT & EQUIPMENT,29200,FUSION,EDMUNDSON ELECTRICALS LTD,5100311547,397.95,,
United Kingdom Atomic Energy Authority,United Kingdom Atomic Energy Authority,10/11/2014,PLANT & EQUIPMENT,23152,FUSION,EDWARDS LIMITED,5100312154,317.16,,
United Kingdom Atomic Energy Authority,United Kingdom Atomic Energy Authority,03/11/2014,PLANT & EQUIPMENT,29030,FUSION,EDWARDS LIMITED,5100311757,266.07,,
United Kingdom Atomic Energy Authority,United Kingdom Atomic Energy Authority,27/10/2014,F&F,21033,SUPPORT SERVICES,EFG MATTHEWS OFFICE FURNITURE LTD,5100311528,1.00,,
United Kingdom Atomic Energy Authority,United Kingdom Atomic Energy Authority,03/11/2014,F&F,21033,SUPPORT SERVICES,EFG MATTHEWS OFFICE FURNITURE LTD,5100311919,396.00,,
United Kingdom Atomic Energy Authority,United Kingdom Atomic Energy Authority,17/11/2014,F&F,21033,SUPPORT SERVICES,EFG MATTHEWS OFFICE FURNITURE LTD,5100312427,332.50,,
United Kingdom Atomic Energy Authority,United Kingdom Atomic Energy Authority,03/11/2014,F&F,23108,FUSION,EFG MATTHEWS OFFICE FURNITURE LTD,5100311918,142.50,,
United Kingdom Atomic Energy Authority,United Kingdom Atomic Energy Authority,17/11/2014,F&F,23109,FUSION,EFG MATTHEWS OFFICE FURNITURE LTD,5100312424,282.00,,
United Kingdom Atomic Energy Authority,United Kingdom Atomic Energy Authority,27/10/2014,F&F,23128,FUSION,EFG MATTHEWS OFFICE FURNITURE LTD,5100311529,87.20,,
United Kingdom Atomic Energy Authority,United Kingdom Atomic Energy Authority,17/11/2014,F&F,25402,FUSION,EFG MATTHEWS OFFICE FURNITURE LTD,5100312426,217.00,,CUL13926
United Kingdom Atomic Energy Authority,United Kingdom Atomic Energy Authority,17/11/2014,MATERIALS & SPARES,23128,FUSION,ELECTRICAL OIL SERVICES LTD,5100312587,2714.64,,
United Kingdom Atomic Energy Authority,United Kingdom Atomic Energy Authority,19/11/2014,PUBLICATIONS,21033,SUPPORT SERVICES,ELSEVIER SCIENCE B.V,5100312579,19558.38,,
United Kingdom Atomic Energy Authority,United Kingdom Atomic Energy Authority,08/11/2014,MILEAGE ALLOWANCE,21032,SUPPORT SERVICES,EMPLOYEE EXPENSES,100743129,123.30,,
United Kingdom Atomic Energy Authority,United Kingdom Atomic Energy Authority,08/11/2014,PROFESSIONAL SUBSCRIPTION,21032,SUPPORT SERVICES,EMPLOYEE EXPENSES,100743138,170.34,,
United Kingdom Atomic Energy Authority,United Kingdom Atomic Energy Authority,31/10/2014,ROAD TRAVEL,21033,SUPPORT SERVICES,EMPLOYEE EXPENSES,100742955,6.00,,
United Kingdom Atomic Energy Authority,United Kingdom Atomic Energy Authority,31/10/2014,MILEAGE ALLOWANCE,21033,SUPPORT SERVICES,EMPLOYEE EXPENSES,100742956,34.56,,
United Kingdom Atomic Energy Authority,United Kingdom Atomic Energy Authority,31/10/2014,MILEAGE ALLOWANCE,21033,SUPPORT SERVICES,EMPLOYEE EXPENSES,100742982,64.20,,
United Kingdom Atomic Energy Authority,United Kingdom Atomic Energy Authority,31/10/2014,MILEAGE ALLOWANCE,21033,SUPPORT SERVICES,EMPLOYEE EXPENSES,100742985,57.60,,
United Kingdom Atomic Energy Authority,United Kingdom Atomic Energy Authority,06/11/2014,MILEAGE ALLOWANCE,21033,SUPPORT SERVICES,EMPLOYEE EXPENSES,100743071,13.50,,
United Kingdom Atomic Energy Authority,United Kingdom Atomic Energy Authority,08/11/2014,MILEAGE ALLOWANCE,21033,SUPPORT SERVICES,EMPLOYEE EXPENSES,100743159,79.20,,
United Kingdom Atomic Energy Authority,United Kingdom Atomic Energy Authority,13/11/2014,SUBSISTENCE,21033,SUPPORT SERVICES,EMPLOYEE EXPENSES,100743210,438.99,,
United Kingdom Atomic Energy Authority,United Kingdom Atomic Energy Authority,13/11/2014,SUBSISTENCE,21033,SUPPORT SERVICES,EMPLOYEE EXPENSES,100743210,6.67,,
United Kingdom Atomic Energy Authority,United Kingdom Atomic Energy Authority,13/11/2014,MILEAGE ALLOWANCE,21033,SUPPORT SERVICES,EMPLOYEE EXPENSES,100743210,41.40,,
United Kingdom Atomic Energy Authority,United Kingdom Atomic Energy Authority,13/11/2014,RAIL TRAVEL,21033,SUPPORT SERVICES,EMPLOYEE EXPENSES,100743210,3.78,,
United Kingdom Atomic Energy Authority,United Kingdom Atomic Energy Authority,13/11/2014,ROAD TRAVEL,21033,SUPPORT SERVICES,EMPLOYEE EXPENSES,100743210,54.10,,
United Kingdom Atomic Energy Authority,United Kingdom Atomic Energy Authority,15/11/2014,MILEAGE ALLOWANCE,21033,SUPPORT SERVICES,EMPLOYEE EXPENSES,100743274,13.50,,
United Kingdom Atomic Energy Authority,United Kingdom Atomic Energy Authority,15/11/2014,MILEAGE ALLOWANCE,21033,SUPPORT SERVICES,EMPLOYEE EXPENSES,100743278,210.60,,
United Kingdom Atomic Energy Authority,United Kingdom Atomic Energy Authority,15/11/2014,ROAD TRAVEL,21033,SUPPORT SERVICES,EMPLOYEE EXPENSES,100743279,25.17,,
United Kingdom Atomic Energy Authority,United Kingdom Atomic Energy Authority,15/11/2014,MILEAGE ALLOWANCE,21033,SUPPORT SERVICES,EMPLOYEE EXPENSES,100743280,170.10,,
United Kingdom Atomic Energy Authority,United Kingdom Atomic Energy Authority,21/11/2014,SUBSISTENCE,21033,SUPPORT SERVICES,EMPLOYEE EXPENSES,100747177,250.56,,
United Kingdom Atomic Energy Authority,United Kingdom Atomic Energy Authority,21/11/2014,SUBSISTENCE,21033,SUPPORT SERVICES,EMPLOYEE EXPENSES,100747177,33.83,,
United Kingdom Atomic Energy Authority,United Kingdom Atomic Energy Authority,21/11/2014,MILEAGE ALLOWANCE,21033,SUPPORT SERVICES,EMPLOYEE EXPENSES,100747198,68.40,,
United Kingdom Atomic Energy Authority,United Kingdom Atomic Energy Authority,31/10/2014,RELOCATION COSTS,23105,FUSION,EMPLOYEE EXPENSES,100742994,"5,365.00",,
United Kingdom Atomic Energy Authority,United Kingdom Atomic Energy Authority,31/10/2014,RELOCATION COSTS,23105,FUSION,EMPLOYEE EXPENSES,100742994,"2,195.83",,
United Kingdom Atomic Energy Authority,United Kingdom Atomic Energy Authority,31/10/2014,RELOCATION COSTS,23105,FUSION,EMPLOYEE EXPENSES,100742995,"2,750.00",,
United Kingdom Atomic Energy Authority,United Kingdom Atomic Energy Authority,08/11/2014,RELOCATION COSTS,23105,FUSION,EMPLOYEE EXPENSES,100743162,215.60,,
United Kingdom Atomic Energy Authority,United Kingdom Atomic Energy Authority,08/11/2014,RELOCATION COSTS,23105,FUSION,EMPLOYEE EXPENSES,100743162,"2,027.59",,
United Kingdom Atomic Energy Authority,United Kingdom Atomic Energy Authority,08/11/2014,RELOCATION COSTS,23105,FUSION,EMPLOYEE EXPENSES,100743162,500.00,,
United Kingdom Atomic Energy Authority,United Kingdom Atomic Energy Authority,13/11/2014,MILEAGE ALLOWANCE,23105,FUSION,EMPLOYEE EXPENSES,100743211,32.85,,
United Kingdom Atomic Energy Authority,United Kingdom Atomic Energy Authority,13/11/2014,ROAD TRAVEL,23105,FUSION,EMPLOYEE EXPENSES,100743211,2.08,,
United Kingdom Atomic Energy Authority,United Kingdom Atomic Energy Authority,13/11/2014,MILEAGE ALLOWANCE,23105,FUSION,EMPLOYEE EXPENSES,100743212,32.85,,
United Kingdom Atomic Energy Authority,United Kingdom Atomic Energy Authority,13/11/2014,ROAD TRAVEL,23105,FUSION,EMPLOYEE EXPENSES,100743212,4.17,,
United Kingdom Atomic Energy Authority,United Kingdom Atomic Energy Authority,21/11/2014,SUBSISTENCE,23106,FUSION,EMPLOYEE EXPENSES,100747180,6.45,,
United Kingdom Atomic Energy Authority,United Kingdom Atomic Energy Authority,21/11/2014,SUBSISTENCE,23106,FUSION,EMPLOYEE EXPENSES,100747180,21.53,,
United Kingdom Atomic Energy Authority,United Kingdom Atomic Energy Authority,21/11/2014,ROAD TRAVEL,23106,FUSION,EMPLOYEE EXPENSES,100747180,55.59,,
United Kingdom Atomic Energy Authority,United Kingdom Atomic Energy Authority,15/11/2014,SUBSISTENCE,23109,FUSION,EMPLOYEE EXPENSES,100743246,10.00,,
United Kingdom Atomic Energy Authority,United Kingdom Atomic Energy Authority,15/11/2014,SUBSISTENCE,23109,FUSION,EMPLOYEE EXPENSES,100743246,167.08,,
United Kingdom Atomic Energy Authority,United Kingdom Atomic Energy Authority,15/11/2014,ROAD TRAVEL,23109,FUSION,EMPLOYEE EXPENSES,100743246,9.17,,
United Kingdom Atomic Energy Authority,United Kingdom Atomic Energy Authority,31/10/2014,SUBSISTENCE,23119,FUSION,EMPLOYEE EXPENSES,100742957,17.88,,
United Kingdom Atomic Energy Authority,United Kingdom Atomic Energy Authority,31/10/2014,MILEAGE ALLOWANCE,23119,FUSION,EMPLOYEE EXPENSES,100742972,66.60,,
United Kingdom Atomic Energy Authority,United Kingdom Atomic Energy Authority,31/10/2014,MILEAGE ALLOWANCE,23119,FUSION,EMPLOYEE EXPENSES,100742973,66.60,,
United Kingdom Atomic Energy Authority,United Kingdom Atomic Energy Authority,31/10/2014,MILEAGE ALLOWANCE,23119,FUSION,EMPLOYEE EXPENSES,100742975,58.50,,
United Kingdom Atomic Energy Authority,United Kingdom Atomic Energy Authority,31/10/2014,PROFESSIONAL SUBSCRIPTION,23119,FUSION,EMPLOYEE EXPENSES,100742978,60.00,,
United Kingdom Atomic Energy Authority,United Kingdom Atomic Energy Authority,06/11/2014,ROAD TRAVEL,23119,FUSION,EMPLOYEE EXPENSES,100743065,29.84,,
United Kingdom Atomic Energy Authority,United Kingdom Atomic Energy Authority,08/11/2014,TAXIS,23119,FUSION,EMPLOYEE EXPENSES,100743141,13.19,,
United Kingdom Atomic Energy Authority,United Kingdom Atomic Energy Authority,08/11/2014,SUBSISTENCE,23119,FUSION,EMPLOYEE EXPENSES,100743141,120.00,,
United Kingdom Atomic Energy Authority,United Kingdom Atomic Energy Authority,08/11/2014,SUBSISTENCE,23119,FUSION,EMPLOYEE EXPENSES,100743141,2.46,,
United Kingdom Atomic Energy Authority,United Kingdom Atomic Energy Authority,08/11/2014,ROAD TRAVEL,23119,FUSION,EMPLOYEE EXPENSES,100743141,26.34,,
United Kingdom Atomic Energy Authority,United Kingdom Atomic Energy Authority,08/11/2014,MILEAGE ALLOWANCE,23119,FUSION,EMPLOYEE EXPENSES,100743147,69.75,,
United Kingdom Atomic Energy Authority,United Kingdom Atomic Energy Authority,08/11/2014,ROAD TRAVEL,23119,FUSION,EMPLOYEE EXPENSES,100743147,3.00,,
United Kingdom Atomic Energy Authority,United Kingdom Atomic Energy Authority,08/11/2014,MILEAGE ALLOWANCE,23119,FUSION,EMPLOYEE EXPENSES,100743148,69.75,,
United Kingdom Atomic Energy Authority,United Kingdom Atomic Energy Authority,08/11/2014,ROAD TRAVEL,23119,FUSION,EMPLOYEE EXPENSES,100743148,3.00,,
United Kingdom Atomic Energy Authority,United Kingdom Atomic Energy Authority,13/11/2014,MILEAGE ALLOWANCE,23119,FUSION,EMPLOYEE EXPENSES,100743207,66.60,,
United Kingdom Atomic Energy Authority,United Kingdom Atomic Energy Authority,13/11/2014,MILEAGE ALLOWANCE,23119,FUSION,EMPLOYEE EXPENSES,100743209,58.50,,
United Kingdom Atomic Energy Authority,United Kingdom Atomic Energy Authority,15/11/2014,MILEAGE ALLOWANCE,23119,FUSION,EMPLOYEE EXPENSES,100743228,81.00,,
United Kingdom Atomic Energy Authority,United Kingdom Atomic Energy Authority,15/11/2014,MILEAGE ALLOWANCE,23119,FUSION,EMPLOYEE EXPENSES,100743294,69.75,,
United Kingdom Atomic Energy Authority,United Kingdom Atomic Energy Authority,15/11/2014,ROAD TRAVEL,23119,FUSION,EMPLOYEE EXPENSES,100743294,3.00,,
United Kingdom Atomic Energy Authority,United Kingdom Atomic Energy Authority,21/11/2014,MILEAGE ALLOWANCE,23119,FUSION,EMPLOYEE EXPENSES,100747188,66.60,,
United Kingdom Atomic Energy Authority,United Kingdom Atomic Energy Authority,21/11/2014,MILEAGE ALLOWANCE,23119,FUSION,EMPLOYEE EXPENSES,100747193,69.75,,
United Kingdom Atomic Energy Authority,United Kingdom Atomic Energy Authority,21/11/2014,ROAD TRAVEL,23119,FUSION,EMPLOYEE EXPENSES,100747193,3.00,,
United Kingdom Atomic Energy Authority,United Kingdom Atomic Energy Authority,31/10/2014,TAXIS,23120,FUSION,EMPLOYEE EXPENSES,100742968,132.24,,
United Kingdom Atomic Energy Authority,United Kingdom Atomic Energy Authority,31/10/2014,SUBSISTENCE,23120,FUSION,EMPLOYEE EXPENSES,100742968,697.14,,
United Kingdom Atomic Energy Authority,United Kingdom Atomic Energy Authority,31/10/2014,SUBSISTENCE,23120,FUSION,EMPLOYEE EXPENSES,100742968,5.66,,
United Kingdom Atomic Energy Authority,United Kingdom Atomic Energy Authority,31/10/2014,SUBSISTENCE,23123,FUSION,EMPLOYEE EXPENSES,100742964,9.00,,
United Kingdom Atomic Energy Authority,United Kingdom Atomic Energy Authority,31/10/2014,SUBSISTENCE,23123,FUSION,EMPLOYEE EXPENSES,100742964,117.75,,
United Kingdom Atomic Energy Authority,United Kingdom Atomic Energy Authority,31/10/2014,MILEAGE ALLOWANCE,23123,FUSION,EMPLOYEE EXPENSES,100742964,72.00,,
United Kingdom Atomic Energy Authority,United Kingdom Atomic Energy Authority,31/10/2014,PROFESSIONAL SUBSCRIPTION,23123,FUSION,EMPLOYEE EXPENSES,100742976,202.50,,
United Kingdom Atomic Energy Authority,United Kingdom Atomic Energy Authority,21/11/2014,SUBSISTENCE,23123,FUSION,EMPLOYEE EXPENSES,100747194,20.29,,
United Kingdom Atomic Energy Authority,United Kingdom Atomic Energy Authority,21/11/2014,SUBSISTENCE,23123,FUSION,EMPLOYEE EXPENSES,100747194,141.67,,
United Kingdom Atomic Energy Authority,United Kingdom Atomic Energy Authority,21/11/2014,MILEAGE ALLOWANCE,23123,FUSION,EMPLOYEE EXPENSES,100747194,198.00,,
United Kingdom Atomic Energy Authority,United Kingdom Atomic Energy Authority,15/11/2014,PROFESSIONAL SUBSCRIPTION,23124,FUSION,EMPLOYEE EXPENSES,100743241,202.50,,
United Kingdom Atomic Energy Authority,United Kingdom Atomic Energy Authority,21/11/2014,PROFESSIONAL SUBSCRIPTION,23124,FUSION,EMPLOYEE EXPENSES,100747192,89.30,,
United Kingdom Atomic Energy Authority,United Kingdom Atomic Energy Authority,06/11/2014,SUBSISTENCE,23127,FUSION,EMPLOYEE EXPENSES,100743056,10.00,,
United Kingdom Atomic Energy Authority,United Kingdom Atomic Energy Authority,06/11/2014,RAIL TRAVEL,23127,FUSION,EMPLOYEE EXPENSES,100743056,36.70,,
United Kingdom Atomic Energy Authority,United Kingdom Atomic Energy Authority,06/11/2014,ROAD TRAVEL,23127,FUSION,EMPLOYEE EXPENSES,100743056,6.25,,
United Kingdom Atomic Energy Authority,United Kingdom Atomic Energy Authority,06/11/2014,SUBSISTENCE,23127,FUSION,EMPLOYEE EXPENSES,100743057,10.00,,
United Kingdom Atomic Energy Authority,United Kingdom Atomic Energy Authority,06/11/2014,RAIL TRAVEL,23127,FUSION,EMPLOYEE EXPENSES,100743057,36.70,,
United Kingdom Atomic Energy Authority,United Kingdom Atomic Energy Authority,06/11/2014,ROAD TRAVEL,23127,FUSION,EMPLOYEE EXPENSES,100743057,6.25,,
United Kingdom Atomic Energy Authority,United Kingdom Atomic Energy Authority,06/11/2014,SUBSISTENCE,23127,FUSION,EMPLOYEE EXPENSES,100743058,10.00,,
United Kingdom Atomic Energy Authority,United Kingdom Atomic Energy Authority,06/11/2014,RAIL TRAVEL,23127,FUSION,EMPLOYEE EXPENSES,100743058,36.70,,
United Kingdom Atomic Energy Authority,United Kingdom Atomic Energy Authority,06/11/2014,ROAD TRAVEL,23127,FUSION,EMPLOYEE EXPENSES,100743058,5.21,,
United Kingdom Atomic Energy Authority,United Kingdom Atomic Energy Authority,06/11/2014,SUBSISTENCE,23127,FUSION,EMPLOYEE EXPENSES,100743059,10.00,,
United Kingdom Atomic Energy Authority,United Kingdom Atomic Energy Authority,06/11/2014,RAIL TRAVEL,23127,FUSION,EMPLOYEE EXPENSES,100743059,36.70,,
United Kingdom Atomic Energy Authority,United Kingdom Atomic Energy Authority,06/11/2014,ROAD TRAVEL,23127,FUSION,EMPLOYEE EXPENSES,100743059,5.21,,
United Kingdom Atomic Energy Authority,United Kingdom Atomic Energy Authority,13/11/2014,MILEAGE ALLOWANCE,23127,FUSION,EMPLOYEE EXPENSES,100743213,114.24,,
United Kingdom Atomic Energy Authority,United Kingdom Atomic Energy Authority,13/11/2014,ROAD TRAVEL,23127,FUSION,EMPLOYEE EXPENSES,100743213,7.00,,
United Kingdom Atomic Energy Authority,United Kingdom Atomic Energy Authority,15/11/2014,MILEAGE ALLOWANCE,23128,FUSION,EMPLOYEE EXPENSES,100743248,88.20,,
United Kingdom Atomic Energy Authority,United Kingdom Atomic Energy Authority,15/11/2014,ROAD TRAVEL,23128,FUSION,EMPLOYEE EXPENSES,100743248,9.17,,
United Kingdom Atomic Energy Authority,United Kingdom Atomic Energy Authority,13/11/2014,TAXIS,23131,FUSION,EMPLOYEE EXPENSES,100743214,13.25,,
United Kingdom Atomic Energy Authority,United Kingdom Atomic Energy Authority,13/11/2014,SUBSISTENCE,23131,FUSION,EMPLOYEE EXPENSES,100743214,10.00,,
United Kingdom Atomic Energy Authority,United Kingdom Atomic Energy Authority,13/11/2014,SUBSISTENCE,23131,FUSION,EMPLOYEE EXPENSES,100743214,150.00,,
United Kingdom Atomic Energy Authority,United Kingdom Atomic Energy Authority,13/11/2014,RAIL TRAVEL,23131,FUSION,EMPLOYEE EXPENSES,100743214,14.20,,
United Kingdom Atomic Energy Authority,United Kingdom Atomic Energy Authority,13/11/2014,ROAD TRAVEL,23131,FUSION,EMPLOYEE EXPENSES,100743214,19.40,,
United Kingdom Atomic Energy Authority,United Kingdom Atomic Energy Authority,08/11/2014,PROFESSIONAL SUBSCRIPTION,23136,FUSION,EMPLOYEE EXPENSES,100743161,130.00,,
United Kingdom Atomic Energy Authority,United Kingdom Atomic Energy Authority,21/11/2014,PROFESSIONAL SUBSCRIPTION,23136,FUSION,EMPLOYEE EXPENSES,100747182,137.00,,
United Kingdom Atomic Energy Authority,United Kingdom Atomic Energy Authority,21/11/2014,SUBSISTENCE,23136,FUSION,EMPLOYEE EXPENSES,100747183,356.65,,
United Kingdom Atomic Energy Authority,United Kingdom Atomic Energy Authority,21/11/2014,OTHER EMPLOYEE EXPENSES,23136,FUSION,EMPLOYEE EXPENSES,100747183,103.54,,
United Kingdom Atomic Energy Authority,United Kingdom Atomic Energy Authority,31/10/2014,RELOCATION COSTS,23150,FUSION,EMPLOYEE EXPENSES,100742996,298.80,,
United Kingdom Atomic Energy Authority,United Kingdom Atomic Energy Authority,31/10/2014,RELOCATION COSTS,23150,FUSION,EMPLOYEE EXPENSES,100742996,"1,585.67",,
United Kingdom Atomic Energy Authority,United Kingdom Atomic Energy Authority,13/11/2014,SUBSISTENCE,23150,FUSION,EMPLOYEE EXPENSES,100743201,13.75,,
United Kingdom Atomic Energy Authority,United Kingdom Atomic Energy Authority,13/11/2014,ROAD TRAVEL,23150,FUSION,EMPLOYEE EXPENSES,100743201,10.00,,
United Kingdom Atomic Energy Authority,United Kingdom Atomic Energy Authority,15/11/2014,SUBSISTENCE,23150,FUSION,EMPLOYEE EXPENSES,100743240,5.00,,
United Kingdom Atomic Energy Authority,United Kingdom Atomic Energy Authority,15/11/2014,SUBSISTENCE,23150,FUSION,EMPLOYEE EXPENSES,100743240,7.75,,
United Kingdom Atomic Energy Authority,United Kingdom Atomic Energy Authority,15/11/2014,MILEAGE ALLOWANCE,23150,FUSION,EMPLOYEE EXPENSES,100743240,40.32,,
United Kingdom Atomic Energy Authority,United Kingdom Atomic Energy Authority,15/11/2014,ROAD TRAVEL,23150,FUSION,EMPLOYEE EXPENSES,100743275,4.00,,
United Kingdom Atomic Energy Authority,United Kingdom Atomic Energy Authority,15/11/2014,ROAD TRAVEL,23150,FUSION,EMPLOYEE EXPENSES,100743275,15.54,,
United Kingdom Atomic Energy Authority,United Kingdom Atomic Energy Authority,15/11/2014,SUBSISTENCE,23150,FUSION,EMPLOYEE EXPENSES,100743276,5.00,,
United Kingdom Atomic Energy Authority,United Kingdom Atomic Energy Authority,15/11/2014,SUBSISTENCE,23150,FUSION,EMPLOYEE EXPENSES,100743276,6.17,,
United Kingdom Atomic Energy Authority,United Kingdom Atomic Energy Authority,15/11/2014,SUBSISTENCE,23150,FUSION,EMPLOYEE EXPENSES,100743283,14.92,,
United Kingdom Atomic Energy Authority,United Kingdom Atomic Energy Authority,15/11/2014,ROAD TRAVEL,23150,FUSION,EMPLOYEE EXPENSES,100743283,21.17,,
United Kingdom Atomic Energy Authority,United Kingdom Atomic Energy Authority,15/11/2014,SUBSISTENCE,23150,FUSION,EMPLOYEE EXPENSES,100743284,7.69,,
United Kingdom Atomic Energy Authority,United Kingdom Atomic Energy Authority,15/11/2014,RAIL TRAVEL,23150,FUSION,EMPLOYEE EXPENSES,100743284,69.00,,
United Kingdom Atomic Energy Authority,United Kingdom Atomic Energy Authority,15/11/2014,TRAINING COURSE FEES,23150,FUSION,EMPLOYEE EXPENSES,100743284,56.00,,
United Kingdom Atomic Energy Authority,United Kingdom Atomic Energy Authority,21/11/2014,RAIL TRAVEL,23150,FUSION,EMPLOYEE EXPENSES,100747199,65.50,,
United Kingdom Atomic Energy Authority,United Kingdom Atomic Energy Authority,21/11/2014,ROAD TRAVEL,23150,FUSION,EMPLOYEE EXPENSES,100747199,5.00,,
United Kingdom Atomic Energy Authority,United Kingdom Atomic Energy Authority,21/11/2014,SUBSISTENCE,23150,FUSION,EMPLOYEE EXPENSES,100747203,25.16,,
United Kingdom Atomic Energy Authority,United Kingdom Atomic Energy Authority,21/11/2014,SUBSISTENCE,23150,FUSION,EMPLOYEE EXPENSES,100747203,268.26,,
United Kingdom Atomic Energy Authority,United Kingdom Atomic Energy Authority,21/11/2014,ROAD TRAVEL,23150,FUSION,EMPLOYEE EXPENSES,100747203,59.87,,
United Kingdom Atomic Energy Authority,United Kingdom Atomic Energy Authority,21/11/2014,SUBSISTENCE,23150,FUSION,EMPLOYEE EXPENSES,100747204,15.00,,
United Kingdom Atomic Energy Authority,United Kingdom Atomic Energy Authority,21/11/2014,SUBSISTENCE,23150,FUSION,EMPLOYEE EXPENSES,100747204,251.67,,
United Kingdom Atomic Energy Authority,United Kingdom Atomic Energy Authority,21/11/2014,SUBSISTENCE,23150,FUSION,EMPLOYEE EXPENSES,100747211,15.00,,
United Kingdom Atomic Energy Authority,United Kingdom Atomic Energy Authority,21/11/2014,SUBSISTENCE,23150,FUSION,EMPLOYEE EXPENSES,100747211,261.36,,
United Kingdom Atomic Energy Authority,United Kingdom Atomic Energy Authority,21/11/2014,SUBSISTENCE,23150,FUSION,EMPLOYEE EXPENSES,100747212,4.75,,
United Kingdom Atomic Energy Authority,United Kingdom Atomic Energy Authority,21/11/2014,RAIL TRAVEL,23150,FUSION,EMPLOYEE EXPENSES,100747212,64.00,,
United Kingdom Atomic Energy Authority,United Kingdom Atomic Energy Authority,21/11/2014,ROAD TRAVEL,23150,FUSION,EMPLOYEE EXPENSES,100747212,3.50,,
United Kingdom Atomic Energy Authority,United Kingdom Atomic Energy Authority,21/11/2014,TRAINING COURSE FEES,23150,FUSION,EMPLOYEE EXPENSES,100747212,56.00,,
United Kingdom Atomic Energy Authority,United Kingdom Atomic Energy Authority,15/11/2014,SUBSISTENCE,23151,FUSION,EMPLOYEE EXPENSES,100743234,10.00,,
United Kingdom Atomic Energy Authority,United Kingdom Atomic Energy Authority,15/11/2014,SUBSISTENCE,23151,FUSION,EMPLOYEE EXPENSES,100743234,76.67,,
United Kingdom Atomic Energy Authority,United Kingdom Atomic Energy Authority,15/11/2014,ROAD TRAVEL,23151,FUSION,EMPLOYEE EXPENSES,100743234,58.75,,
United Kingdom Atomic Energy Authority,United Kingdom Atomic Energy Authority,15/11/2014,SUBSISTENCE,23151,FUSION,EMPLOYEE EXPENSES,100743262,5.00,,
United Kingdom Atomic Energy Authority,United Kingdom Atomic Energy Authority,15/11/2014,SUBSISTENCE,23151,FUSION,EMPLOYEE EXPENSES,100743262,76.67,,
United Kingdom Atomic Energy Authority,United Kingdom Atomic Energy Authority,31/10/2014,SUBSISTENCE,23152,FUSION,EMPLOYEE EXPENSES,100742988,16.67,,
United Kingdom Atomic Energy Authority,United Kingdom Atomic Energy Authority,31/10/2014,MILEAGE ALLOWANCE,23152,FUSION,EMPLOYEE EXPENSES,100742988,162.00,,
United Kingdom Atomic Energy Authority,United Kingdom Atomic Energy Authority,31/10/2014,ROAD TRAVEL,23152,FUSION,EMPLOYEE EXPENSES,100742988,16.67,,
United Kingdom Atomic Energy Authority,United Kingdom Atomic Energy Authority,13/11/2014,PROFESSIONAL SUBSCRIPTION,23152,FUSION,EMPLOYEE EXPENSES,100743195,137.00,,
United Kingdom Atomic Energy Authority,United Kingdom Atomic Energy Authority,31/10/2014,TAXIS,23153,FUSION,EMPLOYEE EXPENSES,100742961,11.40,,
United Kingdom Atomic Energy Authority,United Kingdom Atomic Energy Authority,31/10/2014,SUBSISTENCE,23153,FUSION,EMPLOYEE EXPENSES,100742961,5.00,,
United Kingdom Atomic Energy Authority,United Kingdom Atomic Energy Authority,31/10/2014,SUBSISTENCE,23153,FUSION,EMPLOYEE EXPENSES,100742961,4.96,,
United Kingdom Atomic Energy Authority,United Kingdom Atomic Energy Authority,31/10/2014,TAXIS,23155,FUSION,EMPLOYEE EXPENSES,100742969,58.54,,
United Kingdom Atomic Energy Authority,United Kingdom Atomic Energy Authority,31/10/2014,SUBSISTENCE,23155,FUSION,EMPLOYEE EXPENSES,100742969,875.86,,
United Kingdom Atomic Energy Authority,United Kingdom Atomic Energy Authority,31/10/2014,SUBSISTENCE,23155,FUSION,EMPLOYEE EXPENSES,100742969,5.49,,
United Kingdom Atomic Energy Authority,United Kingdom Atomic Energy Authority,06/11/2014,SUBSISTENCE,23166,FUSION,EMPLOYEE EXPENSES,100743052,157.38,,
United Kingdom Atomic Energy Authority,United Kingdom Atomic Energy Authority,06/11/2014,SUBSISTENCE,23166,FUSION,EMPLOYEE EXPENSES,100743052,5.87,,
United Kingdom Atomic Energy Authority,United Kingdom Atomic Energy Authority,06/11/2014,MILEAGE ALLOWANCE,23166,FUSION,EMPLOYEE EXPENSES,100743052,149.40,,
United Kingdom Atomic Energy Authority,United Kingdom Atomic Energy Authority,06/11/2014,ROAD TRAVEL,23166,FUSION,EMPLOYEE EXPENSES,100743052,4.58,,
United Kingdom Atomic Energy Authority,United Kingdom Atomic Energy Authority,06/11/2014,EFDA TRAVEL EXPENSES,23700,FUSION,EMPLOYEE EXPENSES,100743077,418.97,,
United Kingdom Atomic Energy Authority,United Kingdom Atomic Energy Authority,31/10/2014,SUBSISTENCE,24501,FUSION,EMPLOYEE EXPENSES,100742959,36.25,,
United Kingdom Atomic Energy Authority,United Kingdom Atomic Energy Authority,31/10/2014,SUBSISTENCE,24501,FUSION,EMPLOYEE EXPENSES,100742959,252.32,,
United Kingdom Atomic Energy Authority,United Kingdom Atomic Energy Authority,06/11/2014,TAXIS,24501,FUSION,EMPLOYEE EXPENSES,100743082,40.80,,
United Kingdom Atomic Energy Authority,United Kingdom Atomic Energy Authority,06/11/2014,SUBSISTENCE,24501,FUSION,EMPLOYEE EXPENSES,100743082,5.00,,
United Kingdom Atomic Energy Authority,United Kingdom Atomic Energy Authority,06/11/2014,SUBSISTENCE,24501,FUSION,EMPLOYEE EXPENSES,100743082,60.99,,
United Kingdom Atomic Energy Authority,United Kingdom Atomic Energy Authority,31/10/2014,SUBSISTENCE,25103,FUSION,EMPLOYEE EXPENSES,100742958,4.50,,
United Kingdom Atomic Energy Authority,United Kingdom Atomic Energy Authority,31/10/2014,SUBSISTENCE,25103,FUSION,EMPLOYEE EXPENSES,100742958,1.04,,
United Kingdom Atomic Energy Authority,United Kingdom Atomic Energy Authority,31/10/2014,ROAD TRAVEL,25103,FUSION,EMPLOYEE EXPENSES,100742990,93.71,,
United Kingdom Atomic Energy Authority,United Kingdom Atomic Energy Authority,06/11/2014,TAXIS,25103,FUSION,EMPLOYEE EXPENSES,100743051,17.32,,CUL13846
United Kingdom Atomic Energy Authority,United Kingdom Atomic Energy Authority,06/11/2014,SUBSISTENCE,25103,FUSION,EMPLOYEE EXPENSES,100743051,359.17,,CUL13845
United Kingdom Atomic Energy Authority,United Kingdom Atomic Energy Authority,06/11/2014,ROAD TRAVEL,25103,FUSION,EMPLOYEE EXPENSES,100743051,25.10,,CUL13843
United Kingdom Atomic Energy Authority,United Kingdom Atomic Energy Authority,06/11/2014,OTHER EMPLOYEE EXPENSES,25103,FUSION,EMPLOYEE EXPENSES,100743051,7.83,,CUL13842
United Kingdom Atomic Energy Authority,United Kingdom Atomic Energy Authority,13/11/2014,SUBSISTENCE,25103,FUSION,EMPLOYEE EXPENSES,100743192,5.42,,CUL13841
United Kingdom Atomic Energy Authority,United Kingdom Atomic Energy Authority,13/11/2014,AIR TRAVEL,25103,FUSION,EMPLOYEE EXPENSES,100743205,395.03,,CUL13847
United Kingdom Atomic Energy Authority,United Kingdom Atomic Energy Authority,13/11/2014,ROAD TRAVEL,25103,FUSION,EMPLOYEE EXPENSES,100743205,42.42,,CUL13848
United Kingdom Atomic Energy Authority,United Kingdom Atomic Energy Authority,15/11/2014,ROAD TRAVEL,25103,FUSION,EMPLOYEE EXPENSES,100743270,37.02,,CUL13849
United Kingdom Atomic Energy Authority,United Kingdom Atomic Energy Authority,15/11/2014,SUBSISTENCE,25103,FUSION,EMPLOYEE EXPENSES,100743271,7.39,,CUL13850
United Kingdom Atomic Energy Authority,United Kingdom Atomic Energy Authority,15/11/2014,ROAD TRAVEL,25103,FUSION,EMPLOYEE EXPENSES,100743271,57.69,,CUL13851
United Kingdom Atomic Energy Authority,United Kingdom Atomic Energy Authority,15/11/2014,ROAD TRAVEL,25103,FUSION,EMPLOYEE EXPENSES,100743272,13.26,,CUL13852
United Kingdom Atomic Energy Authority,United Kingdom Atomic Energy Authority,15/11/2014,SUBSISTENCE,25103,FUSION,EMPLOYEE EXPENSES,100743273,5.65,,CUL13854
United Kingdom Atomic Energy Authority,United Kingdom Atomic Energy Authority,15/11/2014,ROAD TRAVEL,25103,FUSION,EMPLOYEE EXPENSES,100743273,75.78,,CUL13853
United Kingdom Atomic Energy Authority,United Kingdom Atomic Energy Authority,15/11/2014,OTHER EMPLOYEE EXPENSES,25103,FUSION,EMPLOYEE EXPENSES,100743273,5.83,,CUL13860
United Kingdom Atomic Energy Authority,United Kingdom Atomic Energy Authority,31/10/2014,TAXIS,25204,FUSION,EMPLOYEE EXPENSES,100742965,29.19,,CUL13879
United Kingdom Atomic Energy Authority,United Kingdom Atomic Energy Authority,31/10/2014,SUBSISTENCE,25204,FUSION,EMPLOYEE EXPENSES,100742965,679.26,,CUL13878
United Kingdom Atomic Energy Authority,United Kingdom Atomic Energy Authority,31/10/2014,SUBSISTENCE,25204,FUSION,EMPLOYEE EXPENSES,100742965,22.50,,CUL13877
United Kingdom Atomic Energy Authority,United Kingdom Atomic Energy Authority,31/10/2014,RAIL TRAVEL,25204,FUSION,EMPLOYEE EXPENSES,100742965,10.13,,CUL13876
United Kingdom Atomic Energy Authority,United Kingdom Atomic Energy Authority,31/10/2014,TAXIS,25204,FUSION,EMPLOYEE EXPENSES,100742986,7.47,,CUL13875
United Kingdom Atomic Energy Authority,United Kingdom Atomic Energy Authority,31/10/2014,SUBSISTENCE,25204,FUSION,EMPLOYEE EXPENSES,100742986,556.66,,CUL13887
United Kingdom Atomic Energy Authority,United Kingdom Atomic Energy Authority,31/10/2014,ROAD TRAVEL,25204,FUSION,EMPLOYEE EXPENSES,100742986,7.40,,CUL13886
United Kingdom Atomic Energy Authority,United Kingdom Atomic Energy Authority,06/11/2014,TAXIS,25204,FUSION,EMPLOYEE EXPENSES,100743049,26.20,,CUL13885
United Kingdom Atomic Energy Authority,United Kingdom Atomic Energy Authority,06/11/2014,SUBSISTENCE,25204,FUSION,EMPLOYEE EXPENSES,100743049,564.82,,CUL13884
United Kingdom Atomic Energy Authority,United Kingdom Atomic Energy Authority,06/11/2014,SUBSISTENCE,25204,FUSION,EMPLOYEE EXPENSES,100743078,580.59,,CUL13883
United Kingdom Atomic Energy Authority,United Kingdom Atomic Energy Authority,06/11/2014,OTHER EMPLOYEE EXPENSES,25204,FUSION,EMPLOYEE EXPENSES,100743078,70.80,,CUL13882
United Kingdom Atomic Energy Authority,United Kingdom Atomic Energy Authority,08/11/2014,SUBSISTENCE,25204,FUSION,EMPLOYEE EXPENSES,100743146,644.57,,CUL13888
United Kingdom Atomic Energy Authority,United Kingdom Atomic Energy Authority,08/11/2014,ROAD TRAVEL,25204,FUSION,EMPLOYEE EXPENSES,100743146,10.56,,CUL13889
United Kingdom Atomic Energy Authority,United Kingdom Atomic Energy Authority,15/11/2014,TAXIS,25204,FUSION,EMPLOYEE EXPENSES,100743258,58.40,,CUL13890
United Kingdom Atomic Energy Authority,United Kingdom Atomic Energy Authority,15/11/2014,SUBSISTENCE,25204,FUSION,EMPLOYEE EXPENSES,100743258,187.81,,CUL13892
United Kingdom Atomic Energy Authority,United Kingdom Atomic Energy Authority,15/11/2014,OTHER EMPLOYEE EXPENSES,25204,FUSION,EMPLOYEE EXPENSES,100743258,16.42,,CUL13893
United Kingdom Atomic Energy Authority,United Kingdom Atomic Energy Authority,21/11/2014,SUBSISTENCE,25204,FUSION,EMPLOYEE EXPENSES,100747209,5.25,,CUL13896
United Kingdom Atomic Energy Authority,United Kingdom Atomic Energy Authority,21/11/2014,ROAD TRAVEL,25204,FUSION,EMPLOYEE EXPENSES,100747209,24.55,,CUL13895
United Kingdom Atomic Energy Authority,United Kingdom Atomic Energy Authority,21/11/2014,ROAD TRAVEL,25204,FUSION,EMPLOYEE EXPENSES,100747209,8.33,,CUL13897
United Kingdom Atomic Energy Authority,United Kingdom Atomic Energy Authority,08/11/2014,SUBSISTENCE,25205,FUSION,EMPLOYEE EXPENSES,100743154,485.54,,CUL13903
United Kingdom Atomic Energy Authority,United Kingdom Atomic Energy Authority,15/11/2014,SUBSISTENCE,25205,FUSION,EMPLOYEE EXPENSES,100743257,193.97,,CUL13904
United Kingdom Atomic Energy Authority,United Kingdom Atomic Energy Authority,15/11/2014,RAIL TRAVEL,25205,FUSION,EMPLOYEE EXPENSES,100743257,17.93,,CUL13905
United Kingdom Atomic Energy Authority,United Kingdom Atomic Energy Authority,15/11/2014,ROAD TRAVEL,25205,FUSION,EMPLOYEE EXPENSES,100743257,33.50,,CUL13906
United Kingdom Atomic Energy Authority,United Kingdom Atomic Energy Authority,15/11/2014,SUBSISTENCE,25205,FUSION,EMPLOYEE EXPENSES,100743266,188.90,,CUL13913
United Kingdom Atomic Energy Authority,United Kingdom Atomic Energy Authority,15/11/2014,ROAD TRAVEL,25205,FUSION,EMPLOYEE EXPENSES,100743266,22.87,,CUL13912
United Kingdom Atomic Energy Authority,United Kingdom Atomic Energy Authority,15/11/2014,SUBSISTENCE,25205,FUSION,EMPLOYEE EXPENSES,100743287,200.86,,CUL13911
United Kingdom Atomic Energy Authority,United Kingdom Atomic Energy Authority,15/11/2014,SUBSISTENCE,25205,FUSION,EMPLOYEE EXPENSES,100743289,250.14,,CUL13915
United Kingdom Atomic Energy Authority,United Kingdom Atomic Energy Authority,15/11/2014,SUBSISTENCE,25205,FUSION,EMPLOYEE EXPENSES,100743289,3.62,,CUL13914
United Kingdom Atomic Energy Authority,United Kingdom Atomic Energy Authority,15/11/2014,RAIL TRAVEL,25205,FUSION,EMPLOYEE EXPENSES,100743289,26.70,,CUL13916
United Kingdom Atomic Energy Authority,United Kingdom Atomic Energy Authority,15/11/2014,RAIL TRAVEL,25205,FUSION,EMPLOYEE EXPENSES,100743289,23.66,,CUL13918
United Kingdom Atomic Energy Authority,United Kingdom Atomic Energy Authority,21/11/2014,TAXIS,25205,FUSION,EMPLOYEE EXPENSES,100747178,46.21,,CUL13919
United Kingdom Atomic Energy Authority,United Kingdom Atomic Energy Authority,21/11/2014,SUBSISTENCE,25205,FUSION,EMPLOYEE EXPENSES,100747178,112.61,,CUL13920
United Kingdom Atomic Energy Authority,United Kingdom Atomic Energy Authority,21/11/2014,SUBSISTENCE,25205,FUSION,EMPLOYEE EXPENSES,100747178,11.42,,CUL13921
United Kingdom Atomic Energy Authority,United Kingdom Atomic Energy Authority,21/11/2014,AIR TRAVEL,25205,FUSION,EMPLOYEE EXPENSES,100747178,384.07,,CUL13922
United Kingdom Atomic Energy Authority,United Kingdom Atomic Energy Authority,21/11/2014,RAIL TRAVEL,25205,FUSION,EMPLOYEE EXPENSES,100747178,69.83,,CUL13924
United Kingdom Atomic Energy Authority,United Kingdom Atomic Energy Authority,31/10/2014,SUBSISTENCE,25402,FUSION,EMPLOYEE EXPENSES,100742963,896.49,,CUL13930
United Kingdom Atomic Energy Authority,United Kingdom Atomic Energy Authority,31/10/2014,SUBSISTENCE,25402,FUSION,EMPLOYEE EXPENSES,100742963,12.50,,CUL13929
United Kingdom Atomic Energy Authority,United Kingdom Atomic Energy Authority,31/10/2014,RAIL TRAVEL,25402,FUSION,EMPLOYEE EXPENSES,100742963,16.81,,CUL13928
United Kingdom Atomic Energy Authority,United Kingdom Atomic Energy Authority,31/10/2014,ROAD TRAVEL,25402,FUSION,EMPLOYEE EXPENSES,100742963,1.44,,CUL13927
United Kingdom Atomic Energy Authority,United Kingdom Atomic Energy Authority,13/11/2014,ROAD TRAVEL,25402,FUSION,EMPLOYEE EXPENSES,100743215,47.00,,CUL13933
United Kingdom Atomic Energy Authority,United Kingdom Atomic Energy Authority,15/11/2014,CAR HIRE,25402,FUSION,EMPLOYEE EXPENSES,100743231,152.53,,CUL13935
United Kingdom Atomic Energy Authority,United Kingdom Atomic Energy Authority,15/11/2014,TAXIS,25402,FUSION,EMPLOYEE EXPENSES,100743231,45.45,,CUL13934
United Kingdom Atomic Energy Authority,United Kingdom Atomic Energy Authority,15/11/2014,SUBSISTENCE,25402,FUSION,EMPLOYEE EXPENSES,100743231,778.09,,CUL13932
United Kingdom Atomic Energy Authority,United Kingdom Atomic Energy Authority,15/11/2014,SUBSISTENCE,25402,FUSION,EMPLOYEE EXPENSES,100743231,13.58,,CUL13936
United Kingdom Atomic Energy Authority,United Kingdom Atomic Energy Authority,15/11/2014,RAIL TRAVEL,25402,FUSION,EMPLOYEE EXPENSES,100743231,41.59,,CUL13937
United Kingdom Atomic Energy Authority,United Kingdom Atomic Energy Authority,15/11/2014,ROAD TRAVEL,25402,FUSION,EMPLOYEE EXPENSES,100743231,29.00,,CUL13943
United Kingdom Atomic Energy Authority,United Kingdom Atomic Energy Authority,15/11/2014,ROAD TRAVEL,25402,FUSION,EMPLOYEE EXPENSES,100743231,60.05,,CUL13942
United Kingdom Atomic Energy Authority,United Kingdom Atomic Energy Authority,15/11/2014,OTHER EMPLOYEE EXPENSES,25402,FUSION,EMPLOYEE EXPENSES,100743231,6.95,,CUL13941
United Kingdom Atomic Energy Authority,United Kingdom Atomic Energy Authority,15/11/2014,SUBSISTENCE,25402,FUSION,EMPLOYEE EXPENSES,100743267,71.92,,CUL13944
United Kingdom Atomic Energy Authority,United Kingdom Atomic Energy Authority,15/11/2014,SUBSISTENCE,25402,FUSION,EMPLOYEE EXPENSES,100743267,12.04,,
United Kingdom Atomic Energy Authority,United Kingdom Atomic Energy Authority,15/11/2014,RAIL TRAVEL,25402,FUSION,EMPLOYEE EXPENSES,100743267,17.41,,
United Kingdom Atomic Energy Authority,United Kingdom Atomic Energy Authority,15/11/2014,ROAD TRAVEL,25402,FUSION,EMPLOYEE EXPENSES,100743267,29.00,,
United Kingdom Atomic Energy Authority,United Kingdom Atomic Energy Authority,15/11/2014,TAXIS,25402,FUSION,EMPLOYEE EXPENSES,100743285,7.63,,
United Kingdom Atomic Energy Authority,United Kingdom Atomic Energy Authority,15/11/2014,SUBSISTENCE,25402,FUSION,EMPLOYEE EXPENSES,100743285,"1,049.19",,
United Kingdom Atomic Energy Authority,United Kingdom Atomic Energy Authority,15/11/2014,SUBSISTENCE,25402,FUSION,EMPLOYEE EXPENSES,100743285,7.67,,
United Kingdom Atomic Energy Authority,United Kingdom Atomic Energy Authority,15/11/2014,RAIL TRAVEL,25402,FUSION,EMPLOYEE EXPENSES,100743285,13.22,,
United Kingdom Atomic Energy Authority,United Kingdom Atomic Energy Authority,15/11/2014,ROAD TRAVEL,25402,FUSION,EMPLOYEE EXPENSES,100743285,25.50,,
United Kingdom Atomic Energy Authority,United Kingdom Atomic Energy Authority,31/10/2014,SUBSISTENCE,25403,FUSION,EMPLOYEE EXPENSES,100742979,15.00,,
United Kingdom Atomic Energy Authority,United Kingdom Atomic Energy Authority,31/10/2014,SUBSISTENCE,25403,FUSION,EMPLOYEE EXPENSES,100742979,195.83,,
United Kingdom Atomic Energy Authority,United Kingdom Atomic Energy Authority,06/11/2014,CAR HIRE,25403,FUSION,EMPLOYEE EXPENSES,100743048,218.29,,
United Kingdom Atomic Energy Authority,United Kingdom Atomic Energy Authority,06/11/2014,SUBSISTENCE,25403,FUSION,EMPLOYEE EXPENSES,100743048,781.61,,
United Kingdom Atomic Energy Authority,United Kingdom Atomic Energy Authority,06/11/2014,MILEAGE ALLOWANCE,25403,FUSION,EMPLOYEE EXPENSES,100743048,54.00,,
United Kingdom Atomic Energy Authority,United Kingdom Atomic Energy Authority,06/11/2014,ROAD TRAVEL,25403,FUSION,EMPLOYEE EXPENSES,100743048,119.90,,
United Kingdom Atomic Energy Authority,United Kingdom Atomic Energy Authority,08/11/2014,ROAD TRAVEL,25403,FUSION,EMPLOYEE EXPENSES,100743152,43.72,,
United Kingdom Atomic Energy Authority,United Kingdom Atomic Energy Authority,08/11/2014,SUBSISTENCE,25403,FUSION,EMPLOYEE EXPENSES,100743153,10.00,,
United Kingdom Atomic Energy Authority,United Kingdom Atomic Energy Authority,08/11/2014,SUBSISTENCE,25403,FUSION,EMPLOYEE EXPENSES,100743153,125.00,,
United Kingdom Atomic Energy Authority,United Kingdom Atomic Energy Authority,15/11/2014,TAXIS,25403,FUSION,EMPLOYEE EXPENSES,100743264,56.28,,
United Kingdom Atomic Energy Authority,United Kingdom Atomic Energy Authority,15/11/2014,TAXIS,25403,FUSION,EMPLOYEE EXPENSES,100743264,17.50,,
United Kingdom Atomic Energy Authority,United Kingdom Atomic Energy Authority,15/11/2014,SUBSISTENCE,25403,FUSION,EMPLOYEE EXPENSES,100743264,982.60,,
United Kingdom Atomic Energy Authority,United Kingdom Atomic Energy Authority,15/11/2014,SUBSISTENCE,25403,FUSION,EMPLOYEE EXPENSES,100743264,11.04,,
United Kingdom Atomic Energy Authority,United Kingdom Atomic Energy Authority,15/11/2014,RAIL TRAVEL,25403,FUSION,EMPLOYEE EXPENSES,100743264,37.21,,
United Kingdom Atomic Energy Authority,United Kingdom Atomic Energy Authority,15/11/2014,OTHER EMPLOYEE EXPENSES,25403,FUSION,EMPLOYEE EXPENSES,100743264,10.00,,
United Kingdom Atomic Energy Authority,United Kingdom Atomic Energy Authority,06/11/2014,ROAD TRAVEL,25500,FUSION,EMPLOYEE EXPENSES,100743044,26.51,,
United Kingdom Atomic Energy Authority,United Kingdom Atomic Energy Authority,15/11/2014,PROFESSIONAL SUBSCRIPTION,25500,FUSION,EMPLOYEE EXPENSES,100743229,159.00,,
United Kingdom Atomic Energy Authority,United Kingdom Atomic Energy Authority,21/11/2014,SUBSISTENCE,25500,FUSION,EMPLOYEE EXPENSES,100747171,2.15,,
United Kingdom Atomic Energy Authority,United Kingdom Atomic Energy Authority,21/11/2014,SUBSISTENCE,25500,FUSION,EMPLOYEE EXPENSES,100747171,2.50,,
United Kingdom Atomic Energy Authority,United Kingdom Atomic Energy Authority,21/11/2014,SUBSISTENCE,25500,FUSION,EMPLOYEE EXPENSES,100747172,1.49,,
United Kingdom Atomic Energy Authority,United Kingdom Atomic Energy Authority,21/11/2014,SUBSISTENCE,25500,FUSION,EMPLOYEE EXPENSES,100747172,1.83,,
United Kingdom Atomic Energy Authority,United Kingdom Atomic Energy Authority,21/11/2014,OTHER EMPLOYEE EXPENSES,25500,FUSION,EMPLOYEE EXPENSES,100747172,7.99,,
United Kingdom Atomic Energy Authority,United Kingdom Atomic Energy Authority,21/11/2014,SUBSISTENCE,25500,FUSION,EMPLOYEE EXPENSES,100747179,4.40,,
United Kingdom Atomic Energy Authority,United Kingdom Atomic Energy Authority,21/11/2014,MILEAGE ALLOWANCE,25500,FUSION,EMPLOYEE EXPENSES,100747179,7.65,,
United Kingdom Atomic Energy Authority,United Kingdom Atomic Energy Authority,31/10/2014,SUBSISTENCE,25501,FUSION,EMPLOYEE EXPENSES,100742977,23.00,,
United Kingdom Atomic Energy Authority,United Kingdom Atomic Energy Authority,31/10/2014,MILEAGE ALLOWANCE,25501,FUSION,EMPLOYEE EXPENSES,100742977,14.10,,
United Kingdom Atomic Energy Authority,United Kingdom Atomic Energy Authority,31/10/2014,ROAD TRAVEL,25501,FUSION,EMPLOYEE EXPENSES,100742977,6.50,,
United Kingdom Atomic Energy Authority,United Kingdom Atomic Energy Authority,31/10/2014,PROFESSIONAL SUBSCRIPTION,25501,FUSION,EMPLOYEE EXPENSES,100742980,137.00,,
United Kingdom Atomic Energy Authority,United Kingdom Atomic Energy Authority,31/10/2014,SUBSISTENCE,25501,FUSION,EMPLOYEE EXPENSES,100742991,28.08,,
United Kingdom Atomic Energy Authority,United Kingdom Atomic Energy Authority,31/10/2014,ROAD TRAVEL,25501,FUSION,EMPLOYEE EXPENSES,100742991,21.78,,
United Kingdom Atomic Energy Authority,United Kingdom Atomic Energy Authority,31/10/2014,SUBSISTENCE,25501,FUSION,EMPLOYEE EXPENSES,100742992,5.60,,
United Kingdom Atomic Energy Authority,United Kingdom Atomic Energy Authority,31/10/2014,SUBSISTENCE,25501,FUSION,EMPLOYEE EXPENSES,100742992,98.87,,
United Kingdom Atomic Energy Authority,United Kingdom Atomic Energy Authority,31/10/2014,RAIL TRAVEL,25501,FUSION,EMPLOYEE EXPENSES,100742993,18.95,,
United Kingdom Atomic Energy Authority,United Kingdom Atomic Energy Authority,31/10/2014,ROAD TRAVEL,25501,FUSION,EMPLOYEE EXPENSES,100742993,6.25,,
United Kingdom Atomic Energy Authority,United Kingdom Atomic Energy Authority,31/10/2014,SUBSISTENCE,25501,FUSION,EMPLOYEE EXPENSES,100742997,19.10,,
United Kingdom Atomic Energy Authority,United Kingdom Atomic Energy Authority,31/10/2014,SUBSISTENCE,25501,FUSION,EMPLOYEE EXPENSES,100742997,3.25,,
United Kingdom Atomic Energy Authority,United Kingdom Atomic Energy Authority,31/10/2014,RAIL TRAVEL,25501,FUSION,EMPLOYEE EXPENSES,100742997,41.70,,
United Kingdom Atomic Energy Authority,United Kingdom Atomic Energy Authority,31/10/2014,SUBSISTENCE,25501,FUSION,EMPLOYEE EXPENSES,100742998,15.14,,
United Kingdom Atomic Energy Authority,United Kingdom Atomic Energy Authority,31/10/2014,SUBSISTENCE,25501,FUSION,EMPLOYEE EXPENSES,100742998,74.42,,
United Kingdom Atomic Energy Authority,United Kingdom Atomic Energy Authority,06/11/2014,SUBSISTENCE,25501,FUSION,EMPLOYEE EXPENSES,100743060,23.80,,
United Kingdom Atomic Energy Authority,United Kingdom Atomic Energy Authority,06/11/2014,SUBSISTENCE,25501,FUSION,EMPLOYEE EXPENSES,100743060,6.33,,
United Kingdom Atomic Energy Authority,United Kingdom Atomic Energy Authority,06/11/2014,MILEAGE ALLOWANCE,25501,FUSION,EMPLOYEE EXPENSES,100743060,117.60,,
United Kingdom Atomic Energy Authority,United Kingdom Atomic Energy Authority,06/11/2014,ROAD TRAVEL,25501,FUSION,EMPLOYEE EXPENSES,100743060,18.30,,
United Kingdom Atomic Energy Authority,United Kingdom Atomic Energy Authority,06/11/2014,ROAD TRAVEL,25501,FUSION,EMPLOYEE EXPENSES,100743060,5.33,,
United Kingdom Atomic Energy Authority,United Kingdom Atomic Energy Authority,06/11/2014,SUBSISTENCE,25501,FUSION,EMPLOYEE EXPENSES,100743061,32.17,,
United Kingdom Atomic Energy Authority,United Kingdom Atomic Energy Authority,06/11/2014,ROAD TRAVEL,25501,FUSION,EMPLOYEE EXPENSES,100743061,6.00,,
United Kingdom Atomic Energy Authority,United Kingdom Atomic Energy Authority,06/11/2014,SUBSISTENCE,25501,FUSION,EMPLOYEE EXPENSES,100743062,19.41,,
United Kingdom Atomic Energy Authority,United Kingdom Atomic Energy Authority,06/11/2014,MILEAGE ALLOWANCE,25501,FUSION,EMPLOYEE EXPENSES,100743062,14.40,,
United Kingdom Atomic Energy Authority,United Kingdom Atomic Energy Authority,06/11/2014,ROAD TRAVEL,25501,FUSION,EMPLOYEE EXPENSES,100743062,6.50,,
United Kingdom Atomic Energy Authority,United Kingdom Atomic Energy Authority,06/11/2014,SUBSISTENCE,25501,FUSION,EMPLOYEE EXPENSES,100743063,7.08,,
United Kingdom Atomic Energy Authority,United Kingdom Atomic Energy Authority,06/11/2014,MILEAGE ALLOWANCE,25501,FUSION,EMPLOYEE EXPENSES,100743063,13.50,,
United Kingdom Atomic Energy Authority,United Kingdom Atomic Energy Authority,06/11/2014,ROAD TRAVEL,25501,FUSION,EMPLOYEE EXPENSES,100743063,14.30,,
United Kingdom Atomic Energy Authority,United Kingdom Atomic Energy Authority,06/11/2014,ROAD TRAVEL,25501,FUSION,EMPLOYEE EXPENSES,100743066,20.15,,
United Kingdom Atomic Energy Authority,United Kingdom Atomic Energy Authority,06/11/2014,SUBSISTENCE,25501,FUSION,EMPLOYEE EXPENSES,100743067,3.90,,
United Kingdom Atomic Energy Authority,United Kingdom Atomic Energy Authority,06/11/2014,ROAD TRAVEL,25501,FUSION,EMPLOYEE EXPENSES,100743067,3.00,,
United Kingdom Atomic Energy Authority,United Kingdom Atomic Energy Authority,06/11/2014,SUBSISTENCE,25501,FUSION,EMPLOYEE EXPENSES,100743072,25.58,,
United Kingdom Atomic Energy Authority,United Kingdom Atomic Energy Authority,06/11/2014,RAIL TRAVEL,25501,FUSION,EMPLOYEE EXPENSES,100743072,13.75,,
United Kingdom Atomic Energy Authority,United Kingdom Atomic Energy Authority,06/11/2014,OTHER EMPLOYEE EXPENSES,25501,FUSION,EMPLOYEE EXPENSES,100743072,2.85,,
United Kingdom Atomic Energy Authority,United Kingdom Atomic Energy Authority,06/11/2014,RAIL TRAVEL,25501,FUSION,EMPLOYEE EXPENSES,100743073,19.55,,
United Kingdom Atomic Energy Authority,United Kingdom Atomic Energy Authority,06/11/2014,SUBSISTENCE,25501,FUSION,EMPLOYEE EXPENSES,100743074,609.00,,
United Kingdom Atomic Energy Authority,United Kingdom Atomic Energy Authority,06/11/2014,RAIL TRAVEL,25501,FUSION,EMPLOYEE EXPENSES,100743074,132.00,,
United Kingdom Atomic Energy Authority,United Kingdom Atomic Energy Authority,06/11/2014,RAIL TRAVEL,25501,FUSION,EMPLOYEE EXPENSES,100743074,18.19,,
United Kingdom Atomic Energy Authority,United Kingdom Atomic Energy Authority,06/11/2014,TAXIS,25501,FUSION,EMPLOYEE EXPENSES,100743076,6.00,,
United Kingdom Atomic Energy Authority,United Kingdom Atomic Energy Authority,06/11/2014,SUBSISTENCE,25501,FUSION,EMPLOYEE EXPENSES,100743076,5.42,,
United Kingdom Atomic Energy Authority,United Kingdom Atomic Energy Authority,06/11/2014,RAIL TRAVEL,25501,FUSION,EMPLOYEE EXPENSES,100743076,79.90,,
United Kingdom Atomic Energy Authority,United Kingdom Atomic Energy Authority,06/11/2014,PROFESSIONAL SUBSCRIPTION,25501,FUSION,EMPLOYEE EXPENSES,100743079,60.00,,
United Kingdom Atomic Energy Authority,United Kingdom Atomic Energy Authority,06/11/2014,SUBSISTENCE,25501,FUSION,EMPLOYEE EXPENSES,100743080,671.16,,
United Kingdom Atomic Energy Authority,United Kingdom Atomic Energy Authority,06/11/2014,SUBSISTENCE,25501,FUSION,EMPLOYEE EXPENSES,100743080,6.00,,
United Kingdom Atomic Energy Authority,United Kingdom Atomic Energy Authority,06/11/2014,RAIL TRAVEL,25501,FUSION,EMPLOYEE EXPENSES,100743080,132.00,,
United Kingdom Atomic Energy Authority,United Kingdom Atomic Energy Authority,06/11/2014,RAIL TRAVEL,25501,FUSION,EMPLOYEE EXPENSES,100743080,20.74,,
United Kingdom Atomic Energy Authority,United Kingdom Atomic Energy Authority,06/11/2014,SUBSISTENCE,25501,FUSION,EMPLOYEE EXPENSES,100743081,162.00,,
United Kingdom Atomic Energy Authority,United Kingdom Atomic Energy Authority,06/11/2014,SUBSISTENCE,25501,FUSION,EMPLOYEE EXPENSES,100743081,6.25,,
United Kingdom Atomic Energy Authority,United Kingdom Atomic Energy Authority,06/11/2014,SUBSISTENCE,25501,FUSION,EMPLOYEE EXPENSES,100743083,9.62,,
United Kingdom Atomic Energy Authority,United Kingdom Atomic Energy Authority,08/11/2014,PROFESSIONAL SUBSCRIPTION,25501,FUSION,EMPLOYEE EXPENSES,100743151,98.00,,
United Kingdom Atomic Energy Authority,United Kingdom Atomic Energy Authority,08/11/2014,SUBSISTENCE,25501,FUSION,EMPLOYEE EXPENSES,100743155,5.40,,
United Kingdom Atomic Energy Authority,United Kingdom Atomic Energy Authority,08/11/2014,SUBSISTENCE,25501,FUSION,EMPLOYEE EXPENSES,100743155,1.66,,
United Kingdom Atomic Energy Authority,United Kingdom Atomic Energy Authority,08/11/2014,RAIL TRAVEL,25501,FUSION,EMPLOYEE EXPENSES,100743155,15.70,,
United Kingdom Atomic Energy Authority,United Kingdom Atomic Energy Authority,08/11/2014,ROAD TRAVEL,25501,FUSION,EMPLOYEE EXPENSES,100743155,2.00,,
United Kingdom Atomic Energy Authority,United Kingdom Atomic Energy Authority,08/11/2014,SUBSISTENCE,25501,FUSION,EMPLOYEE EXPENSES,100743156,12.60,,
United Kingdom Atomic Energy Authority,United Kingdom Atomic Energy Authority,08/11/2014,SUBSISTENCE,25501,FUSION,EMPLOYEE EXPENSES,100743156,5.42,,
United Kingdom Atomic Energy Authority,United Kingdom Atomic Energy Authority,08/11/2014,SUBSISTENCE,25501,FUSION,EMPLOYEE EXPENSES,100743157,4.75,,
United Kingdom Atomic Energy Authority,United Kingdom Atomic Energy Authority,08/11/2014,SUBSISTENCE,25501,FUSION,EMPLOYEE EXPENSES,100743160,4.49,,
United Kingdom Atomic Energy Authority,United Kingdom Atomic Energy Authority,08/11/2014,SUBSISTENCE,25501,FUSION,EMPLOYEE EXPENSES,100743160,1.67,,
United Kingdom Atomic Energy Authority,United Kingdom Atomic Energy Authority,08/11/2014,RAIL TRAVEL,25501,FUSION,EMPLOYEE EXPENSES,100743160,23.80,,
United Kingdom Atomic Energy Authority,United Kingdom Atomic Energy Authority,08/11/2014,ROAD TRAVEL,25501,FUSION,EMPLOYEE EXPENSES,100743160,2.00,,
United Kingdom Atomic Energy Authority,United Kingdom Atomic Energy Authority,13/11/2014,MILEAGE ALLOWANCE,25501,FUSION,EMPLOYEE EXPENSES,100743216,27.00,,
United Kingdom Atomic Energy Authority,United Kingdom Atomic Energy Authority,13/11/2014,ROAD TRAVEL,25501,FUSION,EMPLOYEE EXPENSES,100743216,2.00,,
United Kingdom Atomic Energy Authority,United Kingdom Atomic Energy Authority,13/11/2014,SUBSISTENCE,25501,FUSION,EMPLOYEE EXPENSES,100743217,6.46,,
United Kingdom Atomic Energy Authority,United Kingdom Atomic Energy Authority,15/11/2014,ROAD TRAVEL,25501,FUSION,EMPLOYEE EXPENSES,100743225,38.61,,
United Kingdom Atomic Energy Authority,United Kingdom Atomic Energy Authority,15/11/2014,TAXIS,25501,FUSION,EMPLOYEE EXPENSES,100743227,72.82,,
United Kingdom Atomic Energy Authority,United Kingdom Atomic Energy Authority,15/11/2014,SUBSISTENCE,25501,FUSION,EMPLOYEE EXPENSES,100743227,"1,178.11",,
United Kingdom Atomic Energy Authority,United Kingdom Atomic Energy Authority,15/11/2014,SUBSISTENCE,25501,FUSION,EMPLOYEE EXPENSES,100743227,10.50,,
United Kingdom Atomic Energy Authority,United Kingdom Atomic Energy Authority,15/11/2014,ROAD TRAVEL,25501,FUSION,EMPLOYEE EXPENSES,100743227,29.00,,
United Kingdom Atomic Energy Authority,United Kingdom Atomic Energy Authority,15/11/2014,OTHER EMPLOYEE EXPENSES,25501,FUSION,EMPLOYEE EXPENSES,100743227,8.86,,
United Kingdom Atomic Energy Authority,United Kingdom Atomic Energy Authority,15/11/2014,ROAD TRAVEL,25501,FUSION,EMPLOYEE EXPENSES,100743256,6.30,,
United Kingdom Atomic Energy Authority,United Kingdom Atomic Energy Authority,15/11/2014,TAXIS,25501,FUSION,EMPLOYEE EXPENSES,100743259,25.00,,
United Kingdom Atomic Energy Authority,United Kingdom Atomic Energy Authority,15/11/2014,SUBSISTENCE,25501,FUSION,EMPLOYEE EXPENSES,100743259,5.00,,
United Kingdom Atomic Energy Authority,United Kingdom Atomic Energy Authority,15/11/2014,SUBSISTENCE,25501,FUSION,EMPLOYEE EXPENSES,100743259,120.00,,
United Kingdom Atomic Energy Authority,United Kingdom Atomic Energy Authority,15/11/2014,TAXIS,25501,FUSION,EMPLOYEE EXPENSES,100743263,23.00,,
United Kingdom Atomic Energy Authority,United Kingdom Atomic Energy Authority,15/11/2014,SUBSISTENCE,25501,FUSION,EMPLOYEE EXPENSES,100743263,5.00,,
United Kingdom Atomic Energy Authority,United Kingdom Atomic Energy Authority,15/11/2014,SUBSISTENCE,25501,FUSION,EMPLOYEE EXPENSES,100743263,70.62,,
United Kingdom Atomic Energy Authority,United Kingdom Atomic Energy Authority,15/11/2014,SUBSISTENCE,25501,FUSION,EMPLOYEE EXPENSES,100743265,5.58,,
United Kingdom Atomic Energy Authority,United Kingdom Atomic Energy Authority,15/11/2014,ROAD TRAVEL,25501,FUSION,EMPLOYEE EXPENSES,100743265,3.50,,
United Kingdom Atomic Energy Authority,United Kingdom Atomic Energy Authority,15/11/2014,SUBSISTENCE,25501,FUSION,EMPLOYEE EXPENSES,100743291,64.36,,
United Kingdom Atomic Energy Authority,United Kingdom Atomic Energy Authority,15/11/2014,SUBSISTENCE,25501,FUSION,EMPLOYEE EXPENSES,100743291,234.49,,
United Kingdom Atomic Energy Authority,United Kingdom Atomic Energy Authority,15/11/2014,RAIL TRAVEL,25501,FUSION,EMPLOYEE EXPENSES,100743291,88.70,,
United Kingdom Atomic Energy Authority,United Kingdom Atomic Energy Authority,15/11/2014,ROAD TRAVEL,25501,FUSION,EMPLOYEE EXPENSES,100743291,8.60,,
United Kingdom Atomic Energy Authority,United Kingdom Atomic Energy Authority,21/11/2014,SUBSISTENCE,25501,FUSION,EMPLOYEE EXPENSES,100747196,2.71,,
United Kingdom Atomic Energy Authority,United Kingdom Atomic Energy Authority,21/11/2014,RAIL TRAVEL,25501,FUSION,EMPLOYEE EXPENSES,100747196,43.25,,
United Kingdom Atomic Energy Authority,United Kingdom Atomic Energy Authority,21/11/2014,ROAD TRAVEL,25501,FUSION,EMPLOYEE EXPENSES,100747196,4.80,,
United Kingdom Atomic Energy Authority,United Kingdom Atomic Energy Authority,21/11/2014,SUBSISTENCE,25501,FUSION,EMPLOYEE EXPENSES,100747202,33.30,,
United Kingdom Atomic Energy Authority,United Kingdom Atomic Energy Authority,21/11/2014,SUBSISTENCE,25501,FUSION,EMPLOYEE EXPENSES,100747202,125.29,,
United Kingdom Atomic Energy Authority,United Kingdom Atomic Energy Authority,21/11/2014,PROFESSIONAL SUBSCRIPTION,25501,FUSION,EMPLOYEE EXPENSES,100747205,53.00,,
United Kingdom Atomic Energy Authority,United Kingdom Atomic Energy Authority,21/11/2014,SUBSISTENCE,25503,FUSION,EMPLOYEE EXPENSES,100747195,69.17,,
United Kingdom Atomic Energy Authority,United Kingdom Atomic Energy Authority,21/11/2014,MILEAGE ALLOWANCE,25503,FUSION,EMPLOYEE EXPENSES,100747195,94.50,,
United Kingdom Atomic Energy Authority,United Kingdom Atomic Energy Authority,21/11/2014,ROAD TRAVEL,25503,FUSION,EMPLOYEE EXPENSES,100747195,8.00,,
United Kingdom Atomic Energy Authority,United Kingdom Atomic Energy Authority,13/11/2014,RELOCATION COSTS,25600,FUSION,EMPLOYEE EXPENSES,100743218,"1,260.00",,
United Kingdom Atomic Energy Authority,United Kingdom Atomic Energy Authority,13/11/2014,RELOCATION COSTS,25600,FUSION,EMPLOYEE EXPENSES,100743218,410.00,,
United Kingdom Atomic Energy Authority,United Kingdom Atomic Energy Authority,08/11/2014,TAXIS,25603,FUSION,EMPLOYEE EXPENSES,100743140,184.40,,
United Kingdom Atomic Energy Authority,United Kingdom Atomic Energy Authority,08/11/2014,SUBSISTENCE,25603,FUSION,EMPLOYEE EXPENSES,100743140,814.67,,
United Kingdom Atomic Energy Authority,United Kingdom Atomic Energy Authority,08/11/2014,MILEAGE ALLOWANCE,25603,FUSION,EMPLOYEE EXPENSES,100743140,91.20,,
United Kingdom Atomic Energy Authority,United Kingdom Atomic Energy Authority,08/11/2014,AIR TRAVEL,25603,FUSION,EMPLOYEE EXPENSES,100743140,128.51,,
United Kingdom Atomic Energy Authority,United Kingdom Atomic Energy Authority,08/11/2014,ROAD TRAVEL,25603,FUSION,EMPLOYEE EXPENSES,100743140,46.99,,
United Kingdom Atomic Energy Authority,United Kingdom Atomic Energy Authority,13/11/2014,SUBSISTENCE,25603,FUSION,EMPLOYEE EXPENSES,100743196,821.79,,
United Kingdom Atomic Energy Authority,United Kingdom Atomic Energy Authority,13/11/2014,ROAD TRAVEL,25603,FUSION,EMPLOYEE EXPENSES,100743196,12.90,,
United Kingdom Atomic Energy Authority,United Kingdom Atomic Energy Authority,13/11/2014,SUBSISTENCE,25603,FUSION,EMPLOYEE EXPENSES,100743198,252.12,,
United Kingdom Atomic Energy Authority,United Kingdom Atomic Energy Authority,13/11/2014,SUBSISTENCE,25603,FUSION,EMPLOYEE EXPENSES,100743198,8.21,,
United Kingdom Atomic Energy Authority,United Kingdom Atomic Energy Authority,13/11/2014,ROAD TRAVEL,25603,FUSION,EMPLOYEE EXPENSES,100743198,9.07,,
United Kingdom Atomic Energy Authority,United Kingdom Atomic Energy Authority,13/11/2014,OTHER EMPLOYEE EXPENSES,25603,FUSION,EMPLOYEE EXPENSES,100743198,3.00,,
United Kingdom Atomic Energy Authority,United Kingdom Atomic Energy Authority,13/11/2014,SUBSISTENCE,25603,FUSION,EMPLOYEE EXPENSES,100743199,334.23,,
United Kingdom Atomic Energy Authority,United Kingdom Atomic Energy Authority,13/11/2014,SUBSISTENCE,25603,FUSION,EMPLOYEE EXPENSES,100743199,8.83,,
United Kingdom Atomic Energy Authority,United Kingdom Atomic Energy Authority,13/11/2014,ROAD TRAVEL,25603,FUSION,EMPLOYEE EXPENSES,100743199,18.58,,
United Kingdom Atomic Energy Authority,United Kingdom Atomic Energy Authority,13/11/2014,OTHER EMPLOYEE EXPENSES,25603,FUSION,EMPLOYEE EXPENSES,100743199,3.00,,
United Kingdom Atomic Energy Authority,United Kingdom Atomic Energy Authority,15/11/2014,SUBSISTENCE,25603,FUSION,EMPLOYEE EXPENSES,100743242,780.01,,
United Kingdom Atomic Energy Authority,United Kingdom Atomic Energy Authority,15/11/2014,ROAD TRAVEL,25603,FUSION,EMPLOYEE EXPENSES,100743242,13.28,,
United Kingdom Atomic Energy Authority,United Kingdom Atomic Energy Authority,31/10/2014,TAXIS,25700,FUSION,EMPLOYEE EXPENSES,100742953,85.00,,
United Kingdom Atomic Energy Authority,United Kingdom Atomic Energy Authority,31/10/2014,SUBSISTENCE,25700,FUSION,EMPLOYEE EXPENSES,100742953,660.81,,
United Kingdom Atomic Energy Authority,United Kingdom Atomic Energy Authority,31/10/2014,TAXIS,25700,FUSION,EMPLOYEE EXPENSES,100742960,21.71,,
United Kingdom Atomic Energy Authority,United Kingdom Atomic Energy Authority,31/10/2014,SUBSISTENCE,25700,FUSION,EMPLOYEE EXPENSES,100742960,456.96,,
United Kingdom Atomic Energy Authority,United Kingdom Atomic Energy Authority,31/10/2014,OTHER EMPLOYEE EXPENSES,25700,FUSION,EMPLOYEE EXPENSES,100742960,3.99,,
United Kingdom Atomic Energy Authority,United Kingdom Atomic Energy Authority,06/11/2014,SUBSISTENCE,25700,FUSION,EMPLOYEE EXPENSES,100743046,460.46,,
United Kingdom Atomic Energy Authority,United Kingdom Atomic Energy Authority,06/11/2014,SUBSISTENCE,25700,FUSION,EMPLOYEE EXPENSES,100743046,3.54,,
United Kingdom Atomic Energy Authority,United Kingdom Atomic Energy Authority,06/11/2014,RAIL TRAVEL,25700,FUSION,EMPLOYEE EXPENSES,100743046,45.10,,
United Kingdom Atomic Energy Authority,United Kingdom Atomic Energy Authority,06/11/2014,ROAD TRAVEL,25700,FUSION,EMPLOYEE EXPENSES,100743046,13.00,,
United Kingdom Atomic Energy Authority,United Kingdom Atomic Energy Authority,06/11/2014,TAXIS,25700,FUSION,EMPLOYEE EXPENSES,100743047,22.74,,
United Kingdom Atomic Energy Authority,United Kingdom Atomic Energy Authority,06/11/2014,SUBSISTENCE,25700,FUSION,EMPLOYEE EXPENSES,100743047,523.83,,
United Kingdom Atomic Energy Authority,United Kingdom Atomic Energy Authority,06/11/2014,OTHER EMPLOYEE EXPENSES,25700,FUSION,EMPLOYEE EXPENSES,100743047,4.99,,
United Kingdom Atomic Energy Authority,United Kingdom Atomic Energy Authority,06/11/2014,SUBSISTENCE,25700,FUSION,EMPLOYEE EXPENSES,100743053,554.16,,
United Kingdom Atomic Energy Authority,United Kingdom Atomic Energy Authority,06/11/2014,OTHER EMPLOYEE EXPENSES,25700,FUSION,EMPLOYEE EXPENSES,100743053,3.00,,
United Kingdom Atomic Energy Authority,United Kingdom Atomic Energy Authority,06/11/2014,TAXIS,25700,FUSION,EMPLOYEE EXPENSES,100743054,15.41,,
United Kingdom Atomic Energy Authority,United Kingdom Atomic Energy Authority,06/11/2014,SUBSISTENCE,25700,FUSION,EMPLOYEE EXPENSES,100743054,522.03,,
United Kingdom Atomic Energy Authority,United Kingdom Atomic Energy Authority,06/11/2014,PROFESSIONAL SUBSCRIPTION,25700,FUSION,EMPLOYEE EXPENSES,100743055,95.70,,
United Kingdom Atomic Energy Authority,United Kingdom Atomic Energy Authority,06/11/2014,SUBSISTENCE,25700,FUSION,EMPLOYEE EXPENSES,100743075,704.14,,
United Kingdom Atomic Energy Authority,United Kingdom Atomic Energy Authority,06/11/2014,SUBSISTENCE,25700,FUSION,EMPLOYEE EXPENSES,100743075,9.17,,
United Kingdom Atomic Energy Authority,United Kingdom Atomic Energy Authority,06/11/2014,ROAD TRAVEL,25700,FUSION,EMPLOYEE EXPENSES,100743075,29.00,,
United Kingdom Atomic Energy Authority,United Kingdom Atomic Energy Authority,06/11/2014,OTHER EMPLOYEE EXPENSES,25700,FUSION,EMPLOYEE EXPENSES,100743075,89.98,,
United Kingdom Atomic Energy Authority,United Kingdom Atomic Energy Authority,08/11/2014,TAXIS,25700,FUSION,EMPLOYEE EXPENSES,100743133,25.47,,
United Kingdom Atomic Energy Authority,United Kingdom Atomic Energy Authority,08/11/2014,SUBSISTENCE,25700,FUSION,EMPLOYEE EXPENSES,100743133,611.34,,
United Kingdom Atomic Energy Authority,United Kingdom Atomic Energy Authority,08/11/2014,AIR TRAVEL,25700,FUSION,EMPLOYEE EXPENSES,100743133,36.61,,
United Kingdom Atomic Energy Authority,United Kingdom Atomic Energy Authority,08/11/2014,ROAD TRAVEL,25700,FUSION,EMPLOYEE EXPENSES,100743133,6.77,,
United Kingdom Atomic Energy Authority,United Kingdom Atomic Energy Authority,08/11/2014,TAXIS,25700,FUSION,EMPLOYEE EXPENSES,100743134,164.29,,
United Kingdom Atomic Energy Authority,United Kingdom Atomic Energy Authority,08/11/2014,SUBSISTENCE,25700,FUSION,EMPLOYEE EXPENSES,100743134,"1,038.15",,
United Kingdom Atomic Energy Authority,United Kingdom Atomic Energy Authority,08/11/2014,SUBSISTENCE,25700,FUSION,EMPLOYEE EXPENSES,100743134,19.17,,
United Kingdom Atomic Energy Authority,United Kingdom Atomic Energy Authority,08/11/2014,TAXIS,25700,FUSION,EMPLOYEE EXPENSES,100743135,58.12,,
United Kingdom Atomic Energy Authority,United Kingdom Atomic Energy Authority,08/11/2014,SUBSISTENCE,25700,FUSION,EMPLOYEE EXPENSES,100743135,622.42,,
United Kingdom Atomic Energy Authority,United Kingdom Atomic Energy Authority,08/11/2014,SUBSISTENCE,25700,FUSION,EMPLOYEE EXPENSES,100743135,7.67,,
United Kingdom Atomic Energy Authority,United Kingdom Atomic Energy Authority,08/11/2014,ROAD TRAVEL,25700,FUSION,EMPLOYEE EXPENSES,100743135,29.00,,
United Kingdom Atomic Energy Authority,United Kingdom Atomic Energy Authority,08/11/2014,TAXIS,25700,FUSION,EMPLOYEE EXPENSES,100743136,30.84,,
United Kingdom Atomic Energy Authority,United Kingdom Atomic Energy Authority,08/11/2014,SUBSISTENCE,25700,FUSION,EMPLOYEE EXPENSES,100743136,359.65,,
United Kingdom Atomic Energy Authority,United Kingdom Atomic Energy Authority,08/11/2014,SUBSISTENCE,25700,FUSION,EMPLOYEE EXPENSES,100743136,11.50,,
United Kingdom Atomic Energy Authority,United Kingdom Atomic Energy Authority,08/11/2014,ROAD TRAVEL,25700,FUSION,EMPLOYEE EXPENSES,100743136,7.49,,
United Kingdom Atomic Energy Authority,United Kingdom Atomic Energy Authority,13/11/2014,SUBSISTENCE,25700,FUSION,EMPLOYEE EXPENSES,100743190,539.46,,
United Kingdom Atomic Energy Authority,United Kingdom Atomic Energy Authority,13/11/2014,OTHER EMPLOYEE EXPENSES,25700,FUSION,EMPLOYEE EXPENSES,100743190,12.59,,
United Kingdom Atomic Energy Authority,United Kingdom Atomic Energy Authority,13/11/2014,TAXIS,25700,FUSION,EMPLOYEE EXPENSES,100743194,51.49,,
United Kingdom Atomic Energy Authority,United Kingdom Atomic Energy Authority,13/11/2014,SUBSISTENCE,25700,FUSION,EMPLOYEE EXPENSES,100743194,484.21,,
United Kingdom Atomic Energy Authority,United Kingdom Atomic Energy Authority,13/11/2014,SUBSISTENCE,25700,FUSION,EMPLOYEE EXPENSES,100743194,6.86,,
United Kingdom Atomic Energy Authority,United Kingdom Atomic Energy Authority,13/11/2014,ROAD TRAVEL,25700,FUSION,EMPLOYEE EXPENSES,100743194,56.82,,
United Kingdom Atomic Energy Authority,United Kingdom Atomic Energy Authority,13/11/2014,SUBSISTENCE,25700,FUSION,EMPLOYEE EXPENSES,100743203,608.23,,
United Kingdom Atomic Energy Authority,United Kingdom Atomic Energy Authority,13/11/2014,SUBSISTENCE,25700,FUSION,EMPLOYEE EXPENSES,100743203,3.16,,
United Kingdom Atomic Energy Authority,United Kingdom Atomic Energy Authority,13/11/2014,ROAD TRAVEL,25700,FUSION,EMPLOYEE EXPENSES,100743203,24.00,,
United Kingdom Atomic Energy Authority,United Kingdom Atomic Energy Authority,13/11/2014,TAXIS,25700,FUSION,EMPLOYEE EXPENSES,100743204,8.83,,
United Kingdom Atomic Energy Authority,United Kingdom Atomic Energy Authority,13/11/2014,SUBSISTENCE,25700,FUSION,EMPLOYEE EXPENSES,100743204,599.12,,
United Kingdom Atomic Energy Authority,United Kingdom Atomic Energy Authority,13/11/2014,ROAD TRAVEL,25700,FUSION,EMPLOYEE EXPENSES,100743204,2.20,,
United Kingdom Atomic Energy Authority,United Kingdom Atomic Energy Authority,13/11/2014,OTHER EMPLOYEE EXPENSES,25700,FUSION,EMPLOYEE EXPENSES,100743204,68.00,,
United Kingdom Atomic Energy Authority,United Kingdom Atomic Energy Authority,15/11/2014,SUBSISTENCE,25700,FUSION,EMPLOYEE EXPENSES,100743226,78.07,,
United Kingdom Atomic Energy Authority,United Kingdom Atomic Energy Authority,15/11/2014,RAIL TRAVEL,25700,FUSION,EMPLOYEE EXPENSES,100743226,67.64,,
United Kingdom Atomic Energy Authority,United Kingdom Atomic Energy Authority,15/11/2014,TAXIS,25700,FUSION,EMPLOYEE EXPENSES,100743230,15.52,,
United Kingdom Atomic Energy Authority,United Kingdom Atomic Energy Authority,15/11/2014,SUBSISTENCE,25700,FUSION,EMPLOYEE EXPENSES,100743230,487.00,,
United Kingdom Atomic Energy Authority,United Kingdom Atomic Energy Authority,15/11/2014,SUBSISTENCE,25700,FUSION,EMPLOYEE EXPENSES,100743230,10.42,,
United Kingdom Atomic Energy Authority,United Kingdom Atomic Energy Authority,15/11/2014,ROAD TRAVEL,25700,FUSION,EMPLOYEE EXPENSES,100743230,32.10,,
United Kingdom Atomic Energy Authority,United Kingdom Atomic Energy Authority,15/11/2014,TAXIS,25700,FUSION,EMPLOYEE EXPENSES,100743233,7.59,,
United Kingdom Atomic Energy Authority,United Kingdom Atomic Energy Authority,15/11/2014,SUBSISTENCE,25700,FUSION,EMPLOYEE EXPENSES,100743233,113.69,,
United Kingdom Atomic Energy Authority,United Kingdom Atomic Energy Authority,15/11/2014,SUBSISTENCE,25700,FUSION,EMPLOYEE EXPENSES,100743233,7.96,,
United Kingdom Atomic Energy Authority,United Kingdom Atomic Energy Authority,15/11/2014,SUBSISTENCE,25700,FUSION,EMPLOYEE EXPENSES,100743236,544.10,,
United Kingdom Atomic Energy Authority,United Kingdom Atomic Energy Authority,15/11/2014,ROAD TRAVEL,25700,FUSION,EMPLOYEE EXPENSES,100743236,13.06,,
United Kingdom Atomic Energy Authority,United Kingdom Atomic Energy Authority,15/11/2014,TAXIS,25700,FUSION,EMPLOYEE EXPENSES,100743237,40.90,,
United Kingdom Atomic Energy Authority,United Kingdom Atomic Energy Authority,15/11/2014,SUBSISTENCE,25700,FUSION,EMPLOYEE EXPENSES,100743237,510.27,,
United Kingdom Atomic Energy Authority,United Kingdom Atomic Energy Authority,15/11/2014,ROAD TRAVEL,25700,FUSION,EMPLOYEE EXPENSES,100743238,2.00,,
United Kingdom Atomic Energy Authority,United Kingdom Atomic Energy Authority,15/11/2014,MILEAGE ALLOWANCE,25700,FUSION,EMPLOYEE EXPENSES,100743239,4.50,,
United Kingdom Atomic Energy Authority,United Kingdom Atomic Energy Authority,15/11/2014,ROAD TRAVEL,25700,FUSION,EMPLOYEE EXPENSES,100743239,2.40,,
United Kingdom Atomic Energy Authority,United Kingdom Atomic Energy Authority,15/11/2014,ROAD TRAVEL,25700,FUSION,EMPLOYEE EXPENSES,100743239,2.00,,
United Kingdom Atomic Energy Authority,United Kingdom Atomic Energy Authority,15/11/2014,SUBSISTENCE,25700,FUSION,EMPLOYEE EXPENSES,100743243,604.14,,
United Kingdom Atomic Energy Authority,United Kingdom Atomic Energy Authority,15/11/2014,SUBSISTENCE,25700,FUSION,EMPLOYEE EXPENSES,100743244,840.61,,
United Kingdom Atomic Energy Authority,United Kingdom Atomic Energy Authority,15/11/2014,AIR TRAVEL,25700,FUSION,EMPLOYEE EXPENSES,100743244,15.94,,
United Kingdom Atomic Energy Authority,United Kingdom Atomic Energy Authority,15/11/2014,ROAD TRAVEL,25700,FUSION,EMPLOYEE EXPENSES,100743244,24.22,,
United Kingdom Atomic Energy Authority,United Kingdom Atomic Energy Authority,15/11/2014,TAXIS,25700,FUSION,EMPLOYEE EXPENSES,100743249,24.91,,
United Kingdom Atomic Energy Authority,United Kingdom Atomic Energy Authority,15/11/2014,SUBSISTENCE,25700,FUSION,EMPLOYEE EXPENSES,100743249,"1,527.94",,
United Kingdom Atomic Energy Authority,United Kingdom Atomic Energy Authority,15/11/2014,ROAD TRAVEL,25700,FUSION,EMPLOYEE EXPENSES,100743249,26.10,,
United Kingdom Atomic Energy Authority,United Kingdom Atomic Energy Authority,15/11/2014,ROAD TRAVEL,25700,FUSION,EMPLOYEE EXPENSES,100743249,49.89,,
United Kingdom Atomic Energy Authority,United Kingdom Atomic Energy Authority,15/11/2014,OTHER EMPLOYEE EXPENSES,25700,FUSION,EMPLOYEE EXPENSES,100743249,65.63,,
United Kingdom Atomic Energy Authority,United Kingdom Atomic Energy Authority,21/11/2014,TAXIS,25700,FUSION,EMPLOYEE EXPENSES,100747207,33.10,,
United Kingdom Atomic Energy Authority,United Kingdom Atomic Energy Authority,21/11/2014,SUBSISTENCE,25700,FUSION,EMPLOYEE EXPENSES,100747207,878.40,,
United Kingdom Atomic Energy Authority,United Kingdom Atomic Energy Authority,21/11/2014,SUBSISTENCE,25700,FUSION,EMPLOYEE EXPENSES,100747207,3.12,,
United Kingdom Atomic Energy Authority,United Kingdom Atomic Energy Authority,21/11/2014,ROAD TRAVEL,25700,FUSION,EMPLOYEE EXPENSES,100747207,2.00,,
United Kingdom Atomic Energy Authority,United Kingdom Atomic Energy Authority,21/11/2014,ROAD TRAVEL,25700,FUSION,EMPLOYEE EXPENSES,100747207,29.00,,
United Kingdom Atomic Energy Authority,United Kingdom Atomic Energy Authority,21/11/2014,OTHER EMPLOYEE EXPENSES,25700,FUSION,EMPLOYEE EXPENSES,100747207,8.72,,
United Kingdom Atomic Energy Authority,United Kingdom Atomic Energy Authority,15/11/2014,SUBSISTENCE,25701,FUSION,EMPLOYEE EXPENSES,100743288,97.66,,
United Kingdom Atomic Energy Authority,United Kingdom Atomic Energy Authority,15/11/2014,MILEAGE ALLOWANCE,25701,FUSION,EMPLOYEE EXPENSES,100743288,152.10,,
United Kingdom Atomic Energy Authority,United Kingdom Atomic Energy Authority,15/11/2014,ROAD TRAVEL,25701,FUSION,EMPLOYEE EXPENSES,100743288,9.17,,
United Kingdom Atomic Energy Authority,United Kingdom Atomic Energy Authority,08/11/2014,ROAD TRAVEL,25702,FUSION,EMPLOYEE EXPENSES,100743139,80.00,,
United Kingdom Atomic Energy Authority,United Kingdom Atomic Energy Authority,31/10/2014,SUBSISTENCE,25704,FUSION,EMPLOYEE EXPENSES,100742966,30.57,,
United Kingdom Atomic Energy Authority,United Kingdom Atomic Energy Authority,31/10/2014,SUBSISTENCE,25704,FUSION,EMPLOYEE EXPENSES,100742966,10.62,,
United Kingdom Atomic Energy Authority,United Kingdom Atomic Energy Authority,31/10/2014,ROAD TRAVEL,25704,FUSION,EMPLOYEE EXPENSES,100742966,72.53,,
United Kingdom Atomic Energy Authority,United Kingdom Atomic Energy Authority,08/11/2014,SUBSISTENCE,25704,FUSION,EMPLOYEE EXPENSES,100743137,9.25,,
United Kingdom Atomic Energy Authority,United Kingdom Atomic Energy Authority,08/11/2014,SUBSISTENCE,25704,FUSION,EMPLOYEE EXPENSES,100743137,4.50,,
United Kingdom Atomic Energy Authority,United Kingdom Atomic Energy Authority,08/11/2014,ROAD TRAVEL,25704,FUSION,EMPLOYEE EXPENSES,100743137,33.42,,
United Kingdom Atomic Energy Authority,United Kingdom Atomic Energy Authority,21/11/2014,SUBSISTENCE,25704,FUSION,EMPLOYEE EXPENSES,100747189,10.00,,
United Kingdom Atomic Energy Authority,United Kingdom Atomic Energy Authority,21/11/2014,SUBSISTENCE,25704,FUSION,EMPLOYEE EXPENSES,100747189,198.17,,
United Kingdom Atomic Energy Authority,United Kingdom Atomic Energy Authority,21/11/2014,MILEAGE ALLOWANCE,25704,FUSION,EMPLOYEE EXPENSES,100747189,238.05,,
United Kingdom Atomic Energy Authority,United Kingdom Atomic Energy Authority,21/11/2014,CAR HIRE,25704,FUSION,EMPLOYEE EXPENSES,100747190,176.71,,
United Kingdom Atomic Energy Authority,United Kingdom Atomic Energy Authority,21/11/2014,SUBSISTENCE,25704,FUSION,EMPLOYEE EXPENSES,100747190,235.58,,
United Kingdom Atomic Energy Authority,United Kingdom Atomic Energy Authority,21/11/2014,ROAD TRAVEL,25704,FUSION,EMPLOYEE EXPENSES,100747190,22.78,,
United Kingdom Atomic Energy Authority,United Kingdom Atomic Energy Authority,21/11/2014,OTHER EMPLOYEE EXPENSES,25704,FUSION,EMPLOYEE EXPENSES,100747190,10.00,,
United Kingdom Atomic Energy Authority,United Kingdom Atomic Energy Authority,31/10/2014,TAXIS,25811,FUSION,EMPLOYEE EXPENSES,100742967,21.34,,
United Kingdom Atomic Energy Authority,United Kingdom Atomic Energy Authority,31/10/2014,SUBSISTENCE,25811,FUSION,EMPLOYEE EXPENSES,100742967,234.79,,
United Kingdom Atomic Energy Authority,United Kingdom Atomic Energy Authority,31/10/2014,SUBSISTENCE,25811,FUSION,EMPLOYEE EXPENSES,100742967,5.66,,
United Kingdom Atomic Energy Authority,United Kingdom Atomic Energy Authority,31/10/2014,ROAD TRAVEL,25811,FUSION,EMPLOYEE EXPENSES,100742967,16.00,,
United Kingdom Atomic Energy Authority,United Kingdom Atomic Energy Authority,13/11/2014,TAXIS,25811,FUSION,EMPLOYEE EXPENSES,100743202,15.00,,
United Kingdom Atomic Energy Authority,United Kingdom Atomic Energy Authority,13/11/2014,SUBSISTENCE,25811,FUSION,EMPLOYEE EXPENSES,100743202,188.51,,
United Kingdom Atomic Energy Authority,United Kingdom Atomic Energy Authority,13/11/2014,SUBSISTENCE,25811,FUSION,EMPLOYEE EXPENSES,100743202,3.33,,
United Kingdom Atomic Energy Authority,United Kingdom Atomic Energy Authority,13/11/2014,ROAD TRAVEL,25811,FUSION,EMPLOYEE EXPENSES,100743202,24.00,,
United Kingdom Atomic Energy Authority,United Kingdom Atomic Energy Authority,13/11/2014,ROAD TRAVEL,25811,FUSION,EMPLOYEE EXPENSES,100743202,19.56,,
United Kingdom Atomic Energy Authority,United Kingdom Atomic Energy Authority,15/11/2014,SUBSISTENCE,25811,FUSION,EMPLOYEE EXPENSES,100743247,"1,425.78",,
United Kingdom Atomic Energy Authority,United Kingdom Atomic Energy Authority,15/11/2014,MILEAGE ALLOWANCE,25811,FUSION,EMPLOYEE EXPENSES,100743247,32.40,,
United Kingdom Atomic Energy Authority,United Kingdom Atomic Energy Authority,31/10/2014,RAIL TRAVEL,25821,FUSION,EMPLOYEE EXPENSES,100742970,21.50,,
United Kingdom Atomic Energy Authority,United Kingdom Atomic Energy Authority,31/10/2014,SUBSISTENCE,25821,FUSION,EMPLOYEE EXPENSES,100742984,29.60,,
United Kingdom Atomic Energy Authority,United Kingdom Atomic Energy Authority,31/10/2014,SUBSISTENCE,25821,FUSION,EMPLOYEE EXPENSES,100742984,71.45,,
United Kingdom Atomic Energy Authority,United Kingdom Atomic Energy Authority,31/10/2014,RAIL TRAVEL,25821,FUSION,EMPLOYEE EXPENSES,100742984,90.30,,
United Kingdom Atomic Energy Authority,United Kingdom Atomic Energy Authority,31/10/2014,ROAD TRAVEL,25821,FUSION,EMPLOYEE EXPENSES,100742984,4.00,,
United Kingdom Atomic Energy Authority,United Kingdom Atomic Energy Authority,31/10/2014,OTHER EMPLOYEE EXPENSES,25821,FUSION,EMPLOYEE EXPENSES,100742984,2.40,,
United Kingdom Atomic Energy Authority,United Kingdom Atomic Energy Authority,08/11/2014,TAXIS,25821,FUSION,EMPLOYEE EXPENSES,100743144,19.18,,
United Kingdom Atomic Energy Authority,United Kingdom Atomic Energy Authority,08/11/2014,SUBSISTENCE,25821,FUSION,EMPLOYEE EXPENSES,100743144,256.35,,
United Kingdom Atomic Energy Authority,United Kingdom Atomic Energy Authority,08/11/2014,SUBSISTENCE,25821,FUSION,EMPLOYEE EXPENSES,100743145,48.91,,
United Kingdom Atomic Energy Authority,United Kingdom Atomic Energy Authority,15/11/2014,PROFESSIONAL SUBSCRIPTION,25821,FUSION,EMPLOYEE EXPENSES,100743235,157.00,,
United Kingdom Atomic Energy Authority,United Kingdom Atomic Energy Authority,15/11/2014,RAIL TRAVEL,25821,FUSION,EMPLOYEE EXPENSES,100743281,63.05,,
United Kingdom Atomic Energy Authority,United Kingdom Atomic Energy Authority,15/11/2014,SUBSISTENCE,25821,FUSION,EMPLOYEE EXPENSES,100743282,105.00,,
United Kingdom Atomic Energy Authority,United Kingdom Atomic Energy Authority,15/11/2014,SUBSISTENCE,25821,FUSION,EMPLOYEE EXPENSES,100743282,16.71,,
United Kingdom Atomic Energy Authority,United Kingdom Atomic Energy Authority,15/11/2014,RAIL TRAVEL,25821,FUSION,EMPLOYEE EXPENSES,100743282,86.65,,
United Kingdom Atomic Energy Authority,United Kingdom Atomic Energy Authority,15/11/2014,ROAD TRAVEL,25821,FUSION,EMPLOYEE EXPENSES,100743282,5.60,,
United Kingdom Atomic Energy Authority,United Kingdom Atomic Energy Authority,15/11/2014,PROFESSIONAL SUBSCRIPTION,25821,FUSION,EMPLOYEE EXPENSES,100743286,35.00,,
United Kingdom Atomic Energy Authority,United Kingdom Atomic Energy Authority,21/11/2014,MILEAGE ALLOWANCE,25821,FUSION,EMPLOYEE EXPENSES,100747170,60.30,,
United Kingdom Atomic Energy Authority,United Kingdom Atomic Energy Authority,21/11/2014,PROFESSIONAL SUBSCRIPTION,25821,FUSION,EMPLOYEE EXPENSES,100747187,150.00,,
United Kingdom Atomic Energy Authority,United Kingdom Atomic Energy Authority,21/11/2014,PROFESSIONAL SUBSCRIPTION,25821,FUSION,EMPLOYEE EXPENSES,100747191,245.70,,
United Kingdom Atomic Energy Authority,United Kingdom Atomic Energy Authority,21/11/2014,SUBSISTENCE,25821,FUSION,EMPLOYEE EXPENSES,100747200,20.46,,
United Kingdom Atomic Energy Authority,United Kingdom Atomic Energy Authority,21/11/2014,ROAD TRAVEL,25821,FUSION,EMPLOYEE EXPENSES,100747200,3.50,,
United Kingdom Atomic Energy Authority,United Kingdom Atomic Energy Authority,21/11/2014,PROFESSIONAL SUBSCRIPTION,25821,FUSION,EMPLOYEE EXPENSES,100747201,94.50,,
United Kingdom Atomic Energy Authority,United Kingdom Atomic Energy Authority,21/11/2014,PROFESSIONAL SUBSCRIPTION,25821,FUSION,EMPLOYEE EXPENSES,100747206,245.70,,
United Kingdom Atomic Energy Authority,United Kingdom Atomic Energy Authority,21/11/2014,PROFESSIONAL SUBSCRIPTION,25821,FUSION,EMPLOYEE EXPENSES,100747208,137.00,,
United Kingdom Atomic Energy Authority,United Kingdom Atomic Energy Authority,21/11/2014,SUBSISTENCE,25836,FUSION,EMPLOYEE EXPENSES,100747176,15.00,,
United Kingdom Atomic Energy Authority,United Kingdom Atomic Energy Authority,21/11/2014,SUBSISTENCE,25836,FUSION,EMPLOYEE EXPENSES,100747176,127.62,,
United Kingdom Atomic Energy Authority,United Kingdom Atomic Energy Authority,08/11/2014,ROAD TRAVEL,25838,FUSION,EMPLOYEE EXPENSES,100743142,25.70,,
United Kingdom Atomic Energy Authority,United Kingdom Atomic Energy Authority,08/11/2014,SUBSISTENCE,25838,FUSION,EMPLOYEE EXPENSES,100743143,101.84,,
United Kingdom Atomic Energy Authority,United Kingdom Atomic Energy Authority,08/11/2014,SUBSISTENCE,25838,FUSION,EMPLOYEE EXPENSES,100743143,11.41,,
United Kingdom Atomic Energy Authority,United Kingdom Atomic Energy Authority,08/11/2014,ROAD TRAVEL,25838,FUSION,EMPLOYEE EXPENSES,100743143,2.84,,
United Kingdom Atomic Energy Authority,United Kingdom Atomic Energy Authority,21/11/2014,SUBSISTENCE,25917,FUSION,EMPLOYEE EXPENSES,100747197,"1,028.36",,
United Kingdom Atomic Energy Authority,United Kingdom Atomic Energy Authority,21/11/2014,SUBSISTENCE,25917,FUSION,EMPLOYEE EXPENSES,100747197,2.12,,
United Kingdom Atomic Energy Authority,United Kingdom Atomic Energy Authority,21/11/2014,RAIL TRAVEL,25917,FUSION,EMPLOYEE EXPENSES,100747197,32.70,,
United Kingdom Atomic Energy Authority,United Kingdom Atomic Energy Authority,21/11/2014,RAIL TRAVEL,25917,FUSION,EMPLOYEE EXPENSES,100747197,46.94,,
United Kingdom Atomic Energy Authority,United Kingdom Atomic Energy Authority,21/11/2014,ROAD TRAVEL,25917,FUSION,EMPLOYEE EXPENSES,100747197,3.10,,
United Kingdom Atomic Energy Authority,United Kingdom Atomic Energy Authority,21/11/2014,OTHER EMPLOYEE EXPENSES,25917,FUSION,EMPLOYEE EXPENSES,100747197,31.05,,
United Kingdom Atomic Energy Authority,United Kingdom Atomic Energy Authority,15/11/2014,ROAD TRAVEL,25952,FUSION,EMPLOYEE EXPENSES,100743292,33.62,,
United Kingdom Atomic Energy Authority,United Kingdom Atomic Energy Authority,21/11/2014,RAIL TRAVEL,25952,FUSION,EMPLOYEE EXPENSES,100747210,26.70,,
United Kingdom Atomic Energy Authority,United Kingdom Atomic Energy Authority,31/10/2014,SUBSISTENCE,26000,,EMPLOYEE EXPENSES,100742962,"2,238.44",,
United Kingdom Atomic Energy Authority,United Kingdom Atomic Energy Authority,31/10/2014,SUBSISTENCE,26000,,EMPLOYEE EXPENSES,100742962,19.25,,
United Kingdom Atomic Energy Authority,United Kingdom Atomic Energy Authority,31/10/2014,MILEAGE ALLOWANCE,26000,,EMPLOYEE EXPENSES,100742962,59.40,,
United Kingdom Atomic Energy Authority,United Kingdom Atomic Energy Authority,31/10/2014,ROAD TRAVEL,26000,,EMPLOYEE EXPENSES,100742962,29.00,,
United Kingdom Atomic Energy Authority,United Kingdom Atomic Energy Authority,31/10/2014,OTHER EMPLOYEE EXPENSES,26000,,EMPLOYEE EXPENSES,100742962,433.91,,
United Kingdom Atomic Energy Authority,United Kingdom Atomic Energy Authority,31/10/2014,MILEAGE ALLOWANCE,26000,,EMPLOYEE EXPENSES,100742987,138.60,,
United Kingdom Atomic Energy Authority,United Kingdom Atomic Energy Authority,31/10/2014,SUBSISTENCE,26000,,EMPLOYEE EXPENSES,100742989,5.00,,
United Kingdom Atomic Energy Authority,United Kingdom Atomic Energy Authority,31/10/2014,SUBSISTENCE,26000,,EMPLOYEE EXPENSES,100742989,68.58,,
United Kingdom Atomic Energy Authority,United Kingdom Atomic Energy Authority,06/11/2014,TAXIS,26000,,EMPLOYEE EXPENSES,100743045,32.10,,
United Kingdom Atomic Energy Authority,United Kingdom Atomic Energy Authority,06/11/2014,SUBSISTENCE,26000,,EMPLOYEE EXPENSES,100743045,149.90,,
United Kingdom Atomic Energy Authority,United Kingdom Atomic Energy Authority,13/11/2014,SUBSISTENCE,26000,,EMPLOYEE EXPENSES,100743188,625.38,,
United Kingdom Atomic Energy Authority,United Kingdom Atomic Energy Authority,13/11/2014,SUBSISTENCE,26000,,EMPLOYEE EXPENSES,100743188,12.50,,
United Kingdom Atomic Energy Authority,United Kingdom Atomic Energy Authority,13/11/2014,TAXIS,26000,,EMPLOYEE EXPENSES,100743193,30.20,,
United Kingdom Atomic Energy Authority,United Kingdom Atomic Energy Authority,13/11/2014,SUBSISTENCE,26000,,EMPLOYEE EXPENSES,100743193,85.90,,
United Kingdom Atomic Energy Authority,United Kingdom Atomic Energy Authority,13/11/2014,RAIL TRAVEL,26000,,EMPLOYEE EXPENSES,100743193,4.70,,
United Kingdom Atomic Energy Authority,United Kingdom Atomic Energy Authority,15/11/2014,TAXIS,26000,,EMPLOYEE EXPENSES,100743232,45.92,,
United Kingdom Atomic Energy Authority,United Kingdom Atomic Energy Authority,15/11/2014,SUBSISTENCE,26000,,EMPLOYEE EXPENSES,100743232,326.17,,
United Kingdom Atomic Energy Authority,United Kingdom Atomic Energy Authority,15/11/2014,OTHER EMPLOYEE EXPENSES,26000,,EMPLOYEE EXPENSES,100743232,9.98,,
United Kingdom Atomic Energy Authority,United Kingdom Atomic Energy Authority,15/11/2014,CAR HIRE,26000,,EMPLOYEE EXPENSES,100743244,184.74,,
United Kingdom Atomic Energy Authority,United Kingdom Atomic Energy Authority,15/11/2014,SUBSISTENCE,26000,,EMPLOYEE EXPENSES,100743244,386.76,,
United Kingdom Atomic Energy Authority,United Kingdom Atomic Energy Authority,15/11/2014,ROAD TRAVEL,26000,,EMPLOYEE EXPENSES,100743244,26.10,,
United Kingdom Atomic Energy Authority,United Kingdom Atomic Energy Authority,15/11/2014,SUBSISTENCE,26000,,EMPLOYEE EXPENSES,100743245,360.90,,
United Kingdom Atomic Energy Authority,United Kingdom Atomic Energy Authority,15/11/2014,SUBSISTENCE,26000,,EMPLOYEE EXPENSES,100743245,3.87,,
United Kingdom Atomic Energy Authority,United Kingdom Atomic Energy Authority,15/11/2014,ROAD TRAVEL,26000,,EMPLOYEE EXPENSES,100743245,29.00,,
United Kingdom Atomic Energy Authority,United Kingdom Atomic Energy Authority,15/11/2014,ROAD TRAVEL,26000,,EMPLOYEE EXPENSES,100743245,8.00,,
United Kingdom Atomic Energy Authority,United Kingdom Atomic Energy Authority,15/11/2014,OTHER EMPLOYEE EXPENSES,26000,,EMPLOYEE EXPENSES,100743245,7.45,,
United Kingdom Atomic Energy Authority,United Kingdom Atomic Energy Authority,15/11/2014,CAR HIRE,26000,,EMPLOYEE EXPENSES,100743253,137.92,,
United Kingdom Atomic Energy Authority,United Kingdom Atomic Energy Authority,15/11/2014,SUBSISTENCE,26000,,EMPLOYEE EXPENSES,100743253,180.43,,
United Kingdom Atomic Energy Authority,United Kingdom Atomic Energy Authority,15/11/2014,SUBSISTENCE,26000,,EMPLOYEE EXPENSES,100743268,"2,376.54",,
United Kingdom Atomic Energy Authority,United Kingdom Atomic Energy Authority,15/11/2014,OTHER EMPLOYEE EXPENSES,26000,,EMPLOYEE EXPENSES,100743268,71.06,,
United Kingdom Atomic Energy Authority,United Kingdom Atomic Energy Authority,15/11/2014,SUBSISTENCE,26000,,EMPLOYEE EXPENSES,100743293,214.16,,
United Kingdom Atomic Energy Authority,United Kingdom Atomic Energy Authority,15/11/2014,SUBSISTENCE,26000,,EMPLOYEE EXPENSES,100743293,1.12,,
United Kingdom Atomic Energy Authority,United Kingdom Atomic Energy Authority,21/11/2014,SUBSISTENCE,26000,,EMPLOYEE EXPENSES,100747173,54.98,,
United Kingdom Atomic Energy Authority,United Kingdom Atomic Energy Authority,21/11/2014,SUBSISTENCE,26000,,EMPLOYEE EXPENSES,100747174,5.00,,
United Kingdom Atomic Energy Authority,United Kingdom Atomic Energy Authority,21/11/2014,SUBSISTENCE,26000,,EMPLOYEE EXPENSES,100747174,71.67,,
United Kingdom Atomic Energy Authority,United Kingdom Atomic Energy Authority,21/11/2014,MILEAGE ALLOWANCE,26000,,EMPLOYEE EXPENSES,100747174,54.00,,
United Kingdom Atomic Energy Authority,United Kingdom Atomic Energy Authority,21/11/2014,SUBSISTENCE,26000,,EMPLOYEE EXPENSES,100747181,464.68,,
United Kingdom Atomic Energy Authority,United Kingdom Atomic Energy Authority,21/11/2014,SUBSISTENCE,26000,,EMPLOYEE EXPENSES,100747181,2.71,,
United Kingdom Atomic Energy Authority,United Kingdom Atomic Energy Authority,13/11/2014,EFDA TRAVEL EXPENSES,26900,,EMPLOYEE EXPENSES,100743200,392.29,,
United Kingdom Atomic Energy Authority,United Kingdom Atomic Energy Authority,15/11/2014,EFDA TRAVEL EXPENSES,26900,,EMPLOYEE EXPENSES,100743250,2.73,,
United Kingdom Atomic Energy Authority,United Kingdom Atomic Energy Authority,15/11/2014,EFDA TRAVEL EXPENSES,26900,,EMPLOYEE EXPENSES,100743251,165.55,,
United Kingdom Atomic Energy Authority,United Kingdom Atomic Energy Authority,15/11/2014,EFDA TRAVEL EXPENSES,26900,,EMPLOYEE EXPENSES,100743252,487.21,,
United Kingdom Atomic Energy Authority,United Kingdom Atomic Energy Authority,21/11/2014,EFDA TRAVEL EXPENSES,26900,,EMPLOYEE EXPENSES,100747184,355.37,,
United Kingdom Atomic Energy Authority,United Kingdom Atomic Energy Authority,21/11/2014,EFDA TRAVEL EXPENSES,26900,,EMPLOYEE EXPENSES,100747185,429.90,,
United Kingdom Atomic Energy Authority,United Kingdom Atomic Energy Authority,21/11/2014,EFDA TRAVEL EXPENSES,26900,,EMPLOYEE EXPENSES,100747186,283.82,,
United Kingdom Atomic Energy Authority,United Kingdom Atomic Energy Authority,06/11/2014,MILEAGE ALLOWANCE,29001,FUSION,EMPLOYEE EXPENSES,100743050,72.00,,
United Kingdom Atomic Energy Authority,United Kingdom Atomic Energy Authority,06/11/2014,TAXIS,29001,FUSION,EMPLOYEE EXPENSES,100743064,31.60,,
United Kingdom Atomic Energy Authority,United Kingdom Atomic Energy Authority,06/11/2014,SUBSISTENCE,29001,FUSION,EMPLOYEE EXPENSES,100743064,504.92,,
United Kingdom Atomic Energy Authority,United Kingdom Atomic Energy Authority,06/11/2014,OTHER EMPLOYEE EXPENSES,29001,FUSION,EMPLOYEE EXPENSES,100743064,34.35,,
United Kingdom Atomic Energy Authority,United Kingdom Atomic Energy Authority,08/11/2014,BUSINESS ENTERTAINMENT,29001,FUSION,EMPLOYEE EXPENSES,100743149,113.84,,
United Kingdom Atomic Energy Authority,United Kingdom Atomic Energy Authority,08/11/2014,PROFESSIONAL SUBSCRIPTION,29001,FUSION,EMPLOYEE EXPENSES,100743150,225.50,,
United Kingdom Atomic Energy Authority,United Kingdom Atomic Energy Authority,15/11/2014,SUBSISTENCE,29001,FUSION,EMPLOYEE EXPENSES,100743260,5.39,,
United Kingdom Atomic Energy Authority,United Kingdom Atomic Energy Authority,15/11/2014,SUBSISTENCE,29001,FUSION,EMPLOYEE EXPENSES,100743260,5.08,,
United Kingdom Atomic Energy Authority,United Kingdom Atomic Energy Authority,15/11/2014,SUBSISTENCE,29001,FUSION,EMPLOYEE EXPENSES,100743261,13.70,,
United Kingdom Atomic Energy Authority,United Kingdom Atomic Energy Authority,15/11/2014,SUBSISTENCE,29001,FUSION,EMPLOYEE EXPENSES,100743261,250.08,,
United Kingdom Atomic Energy Authority,United Kingdom Atomic Energy Authority,15/11/2014,ROAD TRAVEL,29001,FUSION,EMPLOYEE EXPENSES,100743261,73.70,,
United Kingdom Atomic Energy Authority,United Kingdom Atomic Energy Authority,15/11/2014,SUBSISTENCE,29001,FUSION,EMPLOYEE EXPENSES,100743290,29.40,,
United Kingdom Atomic Energy Authority,United Kingdom Atomic Energy Authority,15/11/2014,SUBSISTENCE,29001,FUSION,EMPLOYEE EXPENSES,100743290,80.96,,
United Kingdom Atomic Energy Authority,United Kingdom Atomic Energy Authority,15/11/2014,ROAD TRAVEL,29001,FUSION,EMPLOYEE EXPENSES,100743290,9.58,,
United Kingdom Atomic Energy Authority,United Kingdom Atomic Energy Authority,31/10/2014,MILEAGE ALLOWANCE,29030,FUSION,EMPLOYEE EXPENSES,100742952,7.20,,
United Kingdom Atomic Energy Authority,United Kingdom Atomic Energy Authority,31/10/2014,SUBSISTENCE,29030,FUSION,EMPLOYEE EXPENSES,100742971,15.00,,
United Kingdom Atomic Energy Authority,United Kingdom Atomic Energy Authority,31/10/2014,SUBSISTENCE,29030,FUSION,EMPLOYEE EXPENSES,100742971,271.46,,
United Kingdom Atomic Energy Authority,United Kingdom Atomic Energy Authority,31/10/2014,ROAD TRAVEL,29030,FUSION,EMPLOYEE EXPENSES,100742971,43.78,,
United Kingdom Atomic Energy Authority,United Kingdom Atomic Energy Authority,31/10/2014,SUBSISTENCE,29030,FUSION,EMPLOYEE EXPENSES,100742983,15.00,,
United Kingdom Atomic Energy Authority,United Kingdom Atomic Energy Authority,31/10/2014,SUBSISTENCE,29030,FUSION,EMPLOYEE EXPENSES,100742983,256.08,,
United Kingdom Atomic Energy Authority,United Kingdom Atomic Energy Authority,31/10/2014,ROAD TRAVEL,29030,FUSION,EMPLOYEE EXPENSES,100742983,5.33,,
United Kingdom Atomic Energy Authority,United Kingdom Atomic Energy Authority,06/11/2014,MILEAGE ALLOWANCE,29030,FUSION,EMPLOYEE EXPENSES,100743043,14.40,,
United Kingdom Atomic Energy Authority,United Kingdom Atomic Energy Authority,13/11/2014,MILEAGE ALLOWANCE,29030,FUSION,EMPLOYEE EXPENSES,100743189,19.80,,
United Kingdom Atomic Energy Authority,United Kingdom Atomic Energy Authority,15/11/2014,SUBSISTENCE,29030,FUSION,EMPLOYEE EXPENSES,100743255,7.48,,
United Kingdom Atomic Energy Authority,United Kingdom Atomic Energy Authority,15/11/2014,SUBSISTENCE,29030,FUSION,EMPLOYEE EXPENSES,100743255,6.20,,
United Kingdom Atomic Energy Authority,United Kingdom Atomic Energy Authority,15/11/2014,ROAD TRAVEL,29030,FUSION,EMPLOYEE EXPENSES,100743255,22.49,,
United Kingdom Atomic Energy Authority,United Kingdom Atomic Energy Authority,21/11/2014,MILEAGE ALLOWANCE,29030,FUSION,EMPLOYEE EXPENSES,100747169,7.20,,
United Kingdom Atomic Energy Authority,United Kingdom Atomic Energy Authority,15/11/2014,SUBSISTENCE,29050,FUSION,EMPLOYEE EXPENSES,100743254,77.57,,
United Kingdom Atomic Energy Authority,United Kingdom Atomic Energy Authority,15/11/2014,SUBSISTENCE,29050,FUSION,EMPLOYEE EXPENSES,100743254,1.66,,
United Kingdom Atomic Energy Authority,United Kingdom Atomic Energy Authority,15/11/2014,ROAD TRAVEL,29050,FUSION,EMPLOYEE EXPENSES,100743254,20.90,,
United Kingdom Atomic Energy Authority,United Kingdom Atomic Energy Authority,15/11/2014,SUBSISTENCE,29050,FUSION,EMPLOYEE EXPENSES,100743277,82.23,,
United Kingdom Atomic Energy Authority,United Kingdom Atomic Energy Authority,13/11/2014,SUBSISTENCE,29060,FUSION,EMPLOYEE EXPENSES,100743197,150.70,,
United Kingdom Atomic Energy Authority,United Kingdom Atomic Energy Authority,13/11/2014,SUBSISTENCE,29060,FUSION,EMPLOYEE EXPENSES,100743197,10.74,,
United Kingdom Atomic Energy Authority,United Kingdom Atomic Energy Authority,13/11/2014,RAIL TRAVEL,29060,FUSION,EMPLOYEE EXPENSES,100743197,5.88,,
United Kingdom Atomic Energy Authority,United Kingdom Atomic Energy Authority,13/11/2014,OTHER EMPLOYEE EXPENSES,29060,FUSION,EMPLOYEE EXPENSES,100743197,2.00,,
United Kingdom Atomic Energy Authority,United Kingdom Atomic Energy Authority,13/11/2014,SUBSISTENCE,29200,FUSION,EMPLOYEE EXPENSES,100743191,"1,117.86",,
United Kingdom Atomic Energy Authority,United Kingdom Atomic Energy Authority,13/11/2014,SUBSISTENCE,29200,FUSION,EMPLOYEE EXPENSES,100743191,7.56,,
United Kingdom Atomic Energy Authority,United Kingdom Atomic Energy Authority,13/11/2014,ROAD TRAVEL,29200,FUSION,EMPLOYEE EXPENSES,100743191,5.71,,
United Kingdom Atomic Energy Authority,United Kingdom Atomic Energy Authority,13/11/2014,OTHER EMPLOYEE EXPENSES,29200,FUSION,EMPLOYEE EXPENSES,100743191,53.25,,
United Kingdom Atomic Energy Authority,United Kingdom Atomic Energy Authority,31/10/2014,SUBSISTENCE,63523,SUPPORT SERVICES,EMPLOYEE EXPENSES,100742974,4.42,,
United Kingdom Atomic Energy Authority,United Kingdom Atomic Energy Authority,31/10/2014,MILEAGE ALLOWANCE,63523,SUPPORT SERVICES,EMPLOYEE EXPENSES,100742974,54.00,,
United Kingdom Atomic Energy Authority,United Kingdom Atomic Energy Authority,31/10/2014,ROAD TRAVEL,63523,SUPPORT SERVICES,EMPLOYEE EXPENSES,100742974,11.50,,
United Kingdom Atomic Energy Authority,United Kingdom Atomic Energy Authority,31/10/2014,ROAD TRAVEL,63523,SUPPORT SERVICES,EMPLOYEE EXPENSES,100742974,25.88,,
United Kingdom Atomic Energy Authority,United Kingdom Atomic Energy Authority,31/10/2014,MILEAGE ALLOWANCE,63602,SUPPORT SERVICES,EMPLOYEE EXPENSES,100742954,12.60,,
United Kingdom Atomic Energy Authority,United Kingdom Atomic Energy Authority,31/10/2014,RAIL TRAVEL,63602,SUPPORT SERVICES,EMPLOYEE EXPENSES,100742954,28.70,,
United Kingdom Atomic Energy Authority,United Kingdom Atomic Energy Authority,31/10/2014,ROAD TRAVEL,63602,SUPPORT SERVICES,EMPLOYEE EXPENSES,100742954,4.75,,
United Kingdom Atomic Energy Authority,United Kingdom Atomic Energy Authority,31/10/2014,SUBSISTENCE,63602,SUPPORT SERVICES,EMPLOYEE EXPENSES,100742981,33.25,,
United Kingdom Atomic Energy Authority,United Kingdom Atomic Energy Authority,31/10/2014,MILEAGE ALLOWANCE,63602,SUPPORT SERVICES,EMPLOYEE EXPENSES,100742981,96.75,,
United Kingdom Atomic Energy Authority,United Kingdom Atomic Energy Authority,08/11/2014,SUBSISTENCE,63602,SUPPORT SERVICES,EMPLOYEE EXPENSES,100743132,4.12,,
United Kingdom Atomic Energy Authority,United Kingdom Atomic Energy Authority,08/11/2014,MILEAGE ALLOWANCE,63602,SUPPORT SERVICES,EMPLOYEE EXPENSES,100743132,12.60,,
United Kingdom Atomic Energy Authority,United Kingdom Atomic Energy Authority,08/11/2014,RAIL TRAVEL,63602,SUPPORT SERVICES,EMPLOYEE EXPENSES,100743132,28.70,,
United Kingdom Atomic Energy Authority,United Kingdom Atomic Energy Authority,08/11/2014,ROAD TRAVEL,63602,SUPPORT SERVICES,EMPLOYEE EXPENSES,100743132,4.75,,
United Kingdom Atomic Energy Authority,United Kingdom Atomic Energy Authority,08/11/2014,TAXIS,63602,SUPPORT SERVICES,EMPLOYEE EXPENSES,100743158,54.21,,
United Kingdom Atomic Energy Authority,United Kingdom Atomic Energy Authority,08/11/2014,SUBSISTENCE,63602,SUPPORT SERVICES,EMPLOYEE EXPENSES,100743158,769.42,,
United Kingdom Atomic Energy Authority,United Kingdom Atomic Energy Authority,08/11/2014,SUBSISTENCE,63602,SUPPORT SERVICES,EMPLOYEE EXPENSES,100743158,3.04,,
United Kingdom Atomic Energy Authority,United Kingdom Atomic Energy Authority,08/11/2014,RAIL TRAVEL,63602,SUPPORT SERVICES,EMPLOYEE EXPENSES,100743158,32.43,,
United Kingdom Atomic Energy Authority,United Kingdom Atomic Energy Authority,08/11/2014,ROAD TRAVEL,63602,SUPPORT SERVICES,EMPLOYEE EXPENSES,100743158,9.37,,
United Kingdom Atomic Energy Authority,United Kingdom Atomic Energy Authority,08/11/2014,OTHER EMPLOYEE EXPENSES,63602,SUPPORT SERVICES,EMPLOYEE EXPENSES,100743158,23.33,,
United Kingdom Atomic Energy Authority,United Kingdom Atomic Energy Authority,15/11/2014,MILEAGE ALLOWANCE,63602,SUPPORT SERVICES,EMPLOYEE EXPENSES,100743269,3.60,,
United Kingdom Atomic Energy Authority,United Kingdom Atomic Energy Authority,15/11/2014,RAIL TRAVEL,63602,SUPPORT SERVICES,EMPLOYEE EXPENSES,100743269,18.95,,
United Kingdom Atomic Energy Authority,United Kingdom Atomic Energy Authority,15/11/2014,ROAD TRAVEL,63602,SUPPORT SERVICES,EMPLOYEE EXPENSES,100743269,6.50,,
United Kingdom Atomic Energy Authority,United Kingdom Atomic Energy Authority,21/11/2014,MILEAGE ALLOWANCE,63602,SUPPORT SERVICES,EMPLOYEE EXPENSES,100747175,17.10,,
United Kingdom Atomic Energy Authority,United Kingdom Atomic Energy Authority,21/11/2014,RAIL TRAVEL,63602,SUPPORT SERVICES,EMPLOYEE EXPENSES,100747175,28.70,,
United Kingdom Atomic Energy Authority,United Kingdom Atomic Energy Authority,21/11/2014,ROAD TRAVEL,63602,SUPPORT SERVICES,EMPLOYEE EXPENSES,100747175,6.00,,
United Kingdom Atomic Energy Authority,United Kingdom Atomic Energy Authority,08/11/2014,MILEAGE ALLOWANCE,63608,SUPPORT SERVICES,EMPLOYEE EXPENSES,100743130,4.50,,
United Kingdom Atomic Energy Authority,United Kingdom Atomic Energy Authority,08/11/2014,ROAD TRAVEL,63608,SUPPORT SERVICES,EMPLOYEE EXPENSES,100743130,9.50,,
United Kingdom Atomic Energy Authority,United Kingdom Atomic Energy Authority,08/11/2014,SUBSISTENCE,63608,SUPPORT SERVICES,EMPLOYEE EXPENSES,100743131,5.00,,
United Kingdom Atomic Energy Authority,United Kingdom Atomic Energy Authority,08/11/2014,SUBSISTENCE,63608,SUPPORT SERVICES,EMPLOYEE EXPENSES,100743131,83.95,,
United Kingdom Atomic Energy Authority,United Kingdom Atomic Energy Authority,08/11/2014,MILEAGE ALLOWANCE,63608,SUPPORT SERVICES,EMPLOYEE EXPENSES,100743131,13.05,,
United Kingdom Atomic Energy Authority,United Kingdom Atomic Energy Authority,08/11/2014,ROAD TRAVEL,63608,SUPPORT SERVICES,EMPLOYEE EXPENSES,100743131,10.83,,
United Kingdom Atomic Energy Authority,United Kingdom Atomic Energy Authority,08/11/2014,OTHER EMPLOYEE EXPENSES,63608,SUPPORT SERVICES,EMPLOYEE EXPENSES,100743131,1.26,,
United Kingdom Atomic Energy Authority,United Kingdom Atomic Energy Authority,12/11/2014,MATERIALS & SPARES,25103,FUSION,Enclustra GmbH,5100312474,1310.62,,
United Kingdom Atomic Energy Authority,United Kingdom Atomic Energy Authority,19/11/2014,OTHER EXTERNAL COSTS,25501,FUSION,Engineering Development Trust,1900060548,2500.00,,
United Kingdom Atomic Energy Authority,United Kingdom Atomic Energy Authority,17/11/2014,PROFESSIONAL SERVICES,63523,SUPPORT SERVICES,ERNST and YOUNG LLP,5100312492,6840.00,,
United Kingdom Atomic Energy Authority,United Kingdom Atomic Energy Authority,17/11/2014,PROFESSIONAL SERVICES,63523,SUPPORT SERVICES,ERNST and YOUNG LLP,5100312493,5760.00,,
United Kingdom Atomic Energy Authority,United Kingdom Atomic Energy Authority,12/11/2014,PROFESSIONAL SERVICES,21032,SUPPORT SERVICES,FAITHFUL & GOULD,5100311900,11975.00,,
United Kingdom Atomic Energy Authority,United Kingdom Atomic Energy Authority,27/10/2014,PROFESSIONAL SERVICES,29200,FUSION,FAITHFUL & GOULD,5100310351,20415.00,,
United Kingdom Atomic Energy Authority,United Kingdom Atomic Energy Authority,27/10/2014,MATERIALS & SPARES,23106,FUSION,FARNELL ELECTRONIC,5100311357,194.13,,
United Kingdom Atomic Energy Authority,United Kingdom Atomic Energy Authority,03/11/2014,MATERIALS & SPARES,23106,FUSION,FARNELL ELECTRONIC,5100311783,733.70,,
United Kingdom Atomic Energy Authority,United Kingdom Atomic Energy Authority,03/11/2014,MATERIALS & SPARES,23106,FUSION,FARNELL ELECTRONIC,5100311793,51.57,,
United Kingdom Atomic Energy Authority,United Kingdom Atomic Energy Authority,10/11/2014,MATERIALS & SPARES,23106,FUSION,FARNELL ELECTRONIC,5100312350,409.70,,
United Kingdom Atomic Energy Authority,United Kingdom Atomic Energy Authority,17/11/2014,MATERIALS & SPARES,23106,FUSION,FARNELL ELECTRONIC,5100312523,228.11,,
United Kingdom Atomic Energy Authority,United Kingdom Atomic Energy Authority,17/11/2014,MATERIALS & SPARES,23106,FUSION,FARNELL ELECTRONIC,5100312684,150.09,,
United Kingdom Atomic Energy Authority,United Kingdom Atomic Energy Authority,27/10/2014,MATERIALS & SPARES,23120,FUSION,FARNELL ELECTRONIC,5100311333,24.14,,
United Kingdom Atomic Energy Authority,United Kingdom Atomic Energy Authority,27/10/2014,MATERIALS & SPARES,23120,FUSION,FARNELL ELECTRONIC,5100311360,7.55,,
United Kingdom Atomic Energy Authority,United Kingdom Atomic Energy Authority,03/11/2014,MATERIALS & SPARES,23120,FUSION,FARNELL ELECTRONIC,5100311779,127.09,,
United Kingdom Atomic Energy Authority,United Kingdom Atomic Energy Authority,27/10/2014,MATERIALS & SPARES,23121,FUSION,FARNELL ELECTRONIC,5100311318,495.15,,
United Kingdom Atomic Energy Authority,United Kingdom Atomic Energy Authority,27/10/2014,MATERIALS & SPARES,23121,FUSION,FARNELL ELECTRONIC,5100311359,156.35,,
United Kingdom Atomic Energy Authority,United Kingdom Atomic Energy Authority,03/11/2014,MATERIALS & SPARES,23121,FUSION,FARNELL ELECTRONIC,5100311787,1009.20,,
United Kingdom Atomic Energy Authority,United Kingdom Atomic Energy Authority,12/11/2014,MATERIALS & SPARES,23121,FUSION,FARNELL ELECTRONIC,5100312008,2.44,,
United Kingdom Atomic Energy Authority,United Kingdom Atomic Energy Authority,17/11/2014,MATERIALS & SPARES,23121,FUSION,FARNELL ELECTRONIC,5100312301,392.00,,
United Kingdom Atomic Energy Authority,United Kingdom Atomic Energy Authority,12/11/2014,MATERIALS & SPARES,23121,FUSION,FARNELL ELECTRONIC,5100312327,274.04,,
United Kingdom Atomic Energy Authority,United Kingdom Atomic Energy Authority,12/11/2014,MATERIALS & SPARES,23121,FUSION,FARNELL ELECTRONIC,5100312344,425.05,,
United Kingdom Atomic Energy Authority,United Kingdom Atomic Energy Authority,17/11/2014,MATERIALS & SPARES,23121,FUSION,FARNELL ELECTRONIC,5100312522,5.80,,
United Kingdom Atomic Energy Authority,United Kingdom Atomic Energy Authority,17/11/2014,MATERIALS & SPARES,23121,FUSION,FARNELL ELECTRONIC,5100312688,41.33,,
United Kingdom Atomic Energy Authority,United Kingdom Atomic Energy Authority,27/10/2014,MATERIALS & SPARES,23122,FUSION,FARNELL ELECTRONIC,5100311367,68.19,,
United Kingdom Atomic Energy Authority,United Kingdom Atomic Energy Authority,27/10/2014,MATERIALS & SPARES,23123,FUSION,FARNELL ELECTRONIC,5100311354,25.90,,
United Kingdom Atomic Energy Authority,United Kingdom Atomic Energy Authority,27/10/2014,MATERIALS & SPARES,23123,FUSION,FARNELL ELECTRONIC,5100311365,6.30,,
United Kingdom Atomic Energy Authority,United Kingdom Atomic Energy Authority,10/11/2014,MATERIALS & SPARES,23123,FUSION,FARNELL ELECTRONIC,5100312302,0.23,,
United Kingdom Atomic Energy Authority,United Kingdom Atomic Energy Authority,10/11/2014,MATERIALS & SPARES,23123,FUSION,FARNELL ELECTRONIC,5100312338,116.00,,
United Kingdom Atomic Energy Authority,United Kingdom Atomic Energy Authority,12/11/2014,MATERIALS & SPARES,23123,FUSION,FARNELL ELECTRONIC,5100312343,15.67,,
United Kingdom Atomic Energy Authority,United Kingdom Atomic Energy Authority,17/11/2014,MATERIALS & SPARES,23123,FUSION,FARNELL ELECTRONIC,5100312529,249.57,,
United Kingdom Atomic Energy Authority,United Kingdom Atomic Energy Authority,05/11/2014,MATERIALS & SPARES,23124,FUSION,FARNELL ELECTRONIC,5100311795,561.91,,
United Kingdom Atomic Energy Authority,United Kingdom Atomic Energy Authority,27/10/2014,MATERIALS & SPARES,23128,FUSION,FARNELL ELECTRONIC,5100311502,118.16,,
United Kingdom Atomic Energy Authority,United Kingdom Atomic Energy Authority,10/11/2014,MATERIALS & SPARES,23128,FUSION,FARNELL ELECTRONIC,5100311790,167.31,,
United Kingdom Atomic Energy Authority,United Kingdom Atomic Energy Authority,05/11/2014,MATERIALS & SPARES,23128,FUSION,FARNELL ELECTRONIC,5100312151,30.00,,
United Kingdom Atomic Energy Authority,United Kingdom Atomic Energy Authority,10/11/2014,MATERIALS & SPARES,23128,FUSION,FARNELL ELECTRONIC,5100312308,31.45,,
United Kingdom Atomic Energy Authority,United Kingdom Atomic Energy Authority,17/11/2014,MATERIALS & SPARES,23128,FUSION,FARNELL ELECTRONIC,5100312525,180.33,,
United Kingdom Atomic Energy Authority,United Kingdom Atomic Energy Authority,17/11/2014,MATERIALS & SPARES,23128,FUSION,FARNELL ELECTRONIC,5100312694,26.04,,
United Kingdom Atomic Energy Authority,United Kingdom Atomic Energy Authority,19/11/2014,MATERIALS & SPARES,23129,FUSION,FARNELL ELECTRONIC,5100310889,4.94,,
United Kingdom Atomic Energy Authority,United Kingdom Atomic Energy Authority,27/10/2014,MATERIALS & SPARES,23129,FUSION,FARNELL ELECTRONIC,5100311349,165.25,,
United Kingdom Atomic Energy Authority,United Kingdom Atomic Energy Authority,27/10/2014,MATERIALS & SPARES,23129,FUSION,FARNELL ELECTRONIC,5100311351,18.96,,
United Kingdom Atomic Energy Authority,United Kingdom Atomic Energy Authority,27/10/2014,MATERIALS & SPARES,23129,FUSION,FARNELL ELECTRONIC,5100311352,106.05,,
United Kingdom Atomic Energy Authority,United Kingdom Atomic Energy Authority,27/10/2014,MATERIALS & SPARES,23129,FUSION,FARNELL ELECTRONIC,5100311366,6.90,,
United Kingdom Atomic Energy Authority,United Kingdom Atomic Energy Authority,03/11/2014,MATERIALS & SPARES,23129,FUSION,FARNELL ELECTRONIC,5100311782,135.00,,
United Kingdom Atomic Energy Authority,United Kingdom Atomic Energy Authority,03/11/2014,MATERIALS & SPARES,23129,FUSION,FARNELL ELECTRONIC,5100311794,132.64,,
United Kingdom Atomic Energy Authority,United Kingdom Atomic Energy Authority,10/11/2014,MATERIALS & SPARES,23129,FUSION,FARNELL ELECTRONIC,5100312001,124.60,,
United Kingdom Atomic Energy Authority,United Kingdom Atomic Energy Authority,10/11/2014,MATERIALS & SPARES,23129,FUSION,FARNELL ELECTRONIC,5100312014,90.51,,
United Kingdom Atomic Energy Authority,United Kingdom Atomic Energy Authority,10/11/2014,MATERIALS & SPARES,23129,FUSION,FARNELL ELECTRONIC,5100312021,24.50,,
United Kingdom Atomic Energy Authority,United Kingdom Atomic Energy Authority,10/11/2014,MATERIALS & SPARES,23129,FUSION,FARNELL ELECTRONIC,5100312025,94.62,,
United Kingdom Atomic Energy Authority,United Kingdom Atomic Energy Authority,10/11/2014,MATERIALS & SPARES,23129,FUSION,FARNELL ELECTRONIC,5100312339,103.10,,
United Kingdom Atomic Energy Authority,United Kingdom Atomic Energy Authority,17/11/2014,MATERIALS & SPARES,23129,FUSION,FARNELL ELECTRONIC,5100312519,20.25,,
United Kingdom Atomic Energy Authority,United Kingdom Atomic Energy Authority,17/11/2014,MATERIALS & SPARES,23129,FUSION,FARNELL ELECTRONIC,5100312521,105.10,,
United Kingdom Atomic Energy Authority,United Kingdom Atomic Energy Authority,17/11/2014,MATERIALS & SPARES,23129,FUSION,FARNELL ELECTRONIC,5100312528,272.98,,
United Kingdom Atomic Energy Authority,United Kingdom Atomic Energy Authority,17/11/2014,MATERIALS & SPARES,23129,FUSION,FARNELL ELECTRONIC,5100312530,29.84,,
United Kingdom Atomic Energy Authority,United Kingdom Atomic Energy Authority,17/11/2014,MATERIALS & SPARES,23129,FUSION,FARNELL ELECTRONIC,5100312681,25.28,,
United Kingdom Atomic Energy Authority,United Kingdom Atomic Energy Authority,17/11/2014,MATERIALS & SPARES,23129,FUSION,FARNELL ELECTRONIC,5100312686,114.03,,
United Kingdom Atomic Energy Authority,United Kingdom Atomic Energy Authority,17/11/2014,MATERIALS & SPARES,23129,FUSION,FARNELL ELECTRONIC,5100312692,132.67,,
United Kingdom Atomic Energy Authority,United Kingdom Atomic Energy Authority,17/11/2014,MATERIALS & SPARES,23129,FUSION,FARNELL ELECTRONIC,5100312715,166.25,,
United Kingdom Atomic Energy Authority,United Kingdom Atomic Energy Authority,27/10/2014,MATERIALS & SPARES,23131,FUSION,FARNELL ELECTRONIC,5100311313,18.91,,
United Kingdom Atomic Energy Authority,United Kingdom Atomic Energy Authority,27/10/2014,MATERIALS & SPARES,23131,FUSION,FARNELL ELECTRONIC,5100311314,2.08,,
United Kingdom Atomic Energy Authority,United Kingdom Atomic Energy Authority,27/10/2014,MATERIALS & SPARES,23131,FUSION,FARNELL ELECTRONIC,5100311335,19.62,,
United Kingdom Atomic Energy Authority,United Kingdom Atomic Energy Authority,27/10/2014,MATERIALS & SPARES,23131,FUSION,FARNELL ELECTRONIC,5100311363,14.10,,
United Kingdom Atomic Energy Authority,United Kingdom Atomic Energy Authority,10/11/2014,MATERIALS & SPARES,23131,FUSION,FARNELL ELECTRONIC,5100311785,1.57,,
United Kingdom Atomic Energy Authority,United Kingdom Atomic Energy Authority,03/11/2014,MATERIALS & SPARES,23131,FUSION,FARNELL ELECTRONIC,5100311789,25.98,,
United Kingdom Atomic Energy Authority,United Kingdom Atomic Energy Authority,10/11/2014,MATERIALS & SPARES,23131,FUSION,FARNELL ELECTRONIC,5100312330,20.57,,
United Kingdom Atomic Energy Authority,United Kingdom Atomic Energy Authority,10/11/2014,MATERIALS & SPARES,23131,FUSION,FARNELL ELECTRONIC,5100312345,103.57,,
United Kingdom Atomic Energy Authority,United Kingdom Atomic Energy Authority,17/11/2014,MATERIALS & SPARES,23131,FUSION,FARNELL ELECTRONIC,5100312524,28.58,,
United Kingdom Atomic Energy Authority,United Kingdom Atomic Energy Authority,27/10/2014,MATERIALS & SPARES,23134,FUSION,FARNELL ELECTRONIC,5100311504,29.22,,
United Kingdom Atomic Energy Authority,United Kingdom Atomic Energy Authority,27/10/2014,MATERIALS & SPARES,23134,FUSION,FARNELL ELECTRONIC,5100311507,171.10,,
United Kingdom Atomic Energy Authority,United Kingdom Atomic Energy Authority,10/11/2014,MATERIALS & SPARES,23134,FUSION,FARNELL ELECTRONIC,5100312337,100.63,,
United Kingdom Atomic Energy Authority,United Kingdom Atomic Energy Authority,17/11/2014,MATERIALS & SPARES,23134,FUSION,FARNELL ELECTRONIC,5100312527,535.90,,
United Kingdom Atomic Energy Authority,United Kingdom Atomic Energy Authority,17/11/2014,MATERIALS & SPARES,23134,FUSION,FARNELL ELECTRONIC,5100312682,82.54,,
United Kingdom Atomic Energy Authority,United Kingdom Atomic Energy Authority,17/11/2014,MATERIALS & SPARES,23134,FUSION,FARNELL ELECTRONIC,5100312701,70.98,,
United Kingdom Atomic Energy Authority,United Kingdom Atomic Energy Authority,27/10/2014,MATERIALS & SPARES,23150,FUSION,FARNELL ELECTRONIC,5100309011,408.46,,
United Kingdom Atomic Energy Authority,United Kingdom Atomic Energy Authority,27/10/2014,MATERIALS & SPARES,23150,FUSION,FARNELL ELECTRONIC,5100309036,16.56,,
United Kingdom Atomic Energy Authority,United Kingdom Atomic Energy Authority,27/10/2014,MATERIALS & SPARES,23150,FUSION,FARNELL ELECTRONIC,5100311500,79.74,,
United Kingdom Atomic Energy Authority,United Kingdom Atomic Energy Authority,03/11/2014,MATERIALS & SPARES,23150,FUSION,FARNELL ELECTRONIC,5100311780,237.59,,
United Kingdom Atomic Energy Authority,United Kingdom Atomic Energy Authority,03/11/2014,MATERIALS & SPARES,23150,FUSION,FARNELL ELECTRONIC,5100311786,86.25,,
United Kingdom Atomic Energy Authority,United Kingdom Atomic Energy Authority,10/11/2014,MATERIALS & SPARES,23150,FUSION,FARNELL ELECTRONIC,5100311999,9.36,,
United Kingdom Atomic Energy Authority,United Kingdom Atomic Energy Authority,10/11/2014,MATERIALS & SPARES,23152,FUSION,FARNELL ELECTRONIC,5100309620,602.09,,
United Kingdom Atomic Energy Authority,United Kingdom Atomic Energy Authority,27/10/2014,MATERIALS & SPARES,23152,FUSION,FARNELL ELECTRONIC,5100311358,25.96,,
United Kingdom Atomic Energy Authority,United Kingdom Atomic Energy Authority,03/11/2014,MATERIALS & SPARES,23152,FUSION,FARNELL ELECTRONIC,5100311792,104.69,,
United Kingdom Atomic Energy Authority,United Kingdom Atomic Energy Authority,12/11/2014,MATERIALS & SPARES,23152,FUSION,FARNELL ELECTRONIC,5100312323,712.21,,
United Kingdom Atomic Energy Authority,United Kingdom Atomic Energy Authority,12/11/2014,MATERIALS & SPARES,23152,FUSION,FARNELL ELECTRONIC,5100312346,88.02,,
United Kingdom Atomic Energy Authority,United Kingdom Atomic Energy Authority,17/11/2014,MATERIALS & SPARES,23152,FUSION,FARNELL ELECTRONIC,5100312520,656.21,,
United Kingdom Atomic Energy Authority,United Kingdom Atomic Energy Authority,17/11/2014,MATERIALS & SPARES,23152,FUSION,FARNELL ELECTRONIC,5100312526,137.93,,
United Kingdom Atomic Energy Authority,United Kingdom Atomic Energy Authority,17/11/2014,MATERIALS & SPARES,23152,FUSION,FARNELL ELECTRONIC,5100312690,6.75,,
United Kingdom Atomic Energy Authority,United Kingdom Atomic Energy Authority,17/11/2014,MATERIALS & SPARES,23152,FUSION,FARNELL ELECTRONIC,5100312691,4.20,,
United Kingdom Atomic Energy Authority,United Kingdom Atomic Energy Authority,17/11/2014,MATERIALS & SPARES,23152,FUSION,FARNELL ELECTRONIC,5100312693,13.74,,
United Kingdom Atomic Energy Authority,United Kingdom Atomic Energy Authority,10/11/2014,MATERIALS & SPARES,23161,FUSION,FARNELL ELECTRONIC,5100310877,62.71,,
United Kingdom Atomic Energy Authority,United Kingdom Atomic Energy Authority,27/10/2014,MATERIALS & SPARES,23161,FUSION,FARNELL ELECTRONIC,5100311505,154.80,,
United Kingdom Atomic Energy Authority,United Kingdom Atomic Energy Authority,10/11/2014,MATERIALS & SPARES,23161,FUSION,FARNELL ELECTRONIC,5100311992,108.87,,
United Kingdom Atomic Energy Authority,United Kingdom Atomic Energy Authority,10/11/2014,MATERIALS & SPARES,23161,FUSION,FARNELL ELECTRONIC,5100312349,991.70,,
United Kingdom Atomic Energy Authority,United Kingdom Atomic Energy Authority,03/11/2014,MATERIALS & SPARES,23617,FUSION,FARNELL ELECTRONIC,5100311791,185.75,,
United Kingdom Atomic Energy Authority,United Kingdom Atomic Energy Authority,17/11/2014,MATERIALS & SPARES,23617,FUSION,FARNELL ELECTRONIC,5100312720,36.52,,
United Kingdom Atomic Energy Authority,United Kingdom Atomic Energy Authority,27/10/2014,MATERIALS & SPARES,25103,FUSION,FARNELL ELECTRONIC,5100311362,1786.27,,
United Kingdom Atomic Energy Authority,United Kingdom Atomic Energy Authority,27/10/2014,MATERIALS & SPARES,25103,FUSION,FARNELL ELECTRONIC,5100311364,3.39,,
United Kingdom Atomic Energy Authority,United Kingdom Atomic Energy Authority,27/10/2014,MATERIALS & SPARES,25103,FUSION,FARNELL ELECTRONIC,5100311503,29.51,,
United Kingdom Atomic Energy Authority,United Kingdom Atomic Energy Authority,29/10/2014,MATERIALS & SPARES,25103,FUSION,FARNELL ELECTRONIC,5100311506,43.30,,
United Kingdom Atomic Energy Authority,United Kingdom Atomic Energy Authority,03/11/2014,MATERIALS & SPARES,25103,FUSION,FARNELL ELECTRONIC,5100311784,49.22,,
United Kingdom Atomic Energy Authority,United Kingdom Atomic Energy Authority,03/11/2014,MATERIALS & SPARES,25103,FUSION,FARNELL ELECTRONIC,5100311788,17.84,,
United Kingdom Atomic Energy Authority,United Kingdom Atomic Energy Authority,10/11/2014,MATERIALS & SPARES,25103,FUSION,FARNELL ELECTRONIC,5100312024,257.01,,
United Kingdom Atomic Energy Authority,United Kingdom Atomic Energy Authority,10/11/2014,MATERIALS & SPARES,25103,FUSION,FARNELL ELECTRONIC,5100312311,342.43,,
United Kingdom Atomic Energy Authority,United Kingdom Atomic Energy Authority,12/11/2014,MATERIALS & SPARES,25103,FUSION,FARNELL ELECTRONIC,5100312314,2217.72,,
United Kingdom Atomic Energy Authority,United Kingdom Atomic Energy Authority,10/11/2014,MATERIALS & SPARES,25103,FUSION,FARNELL ELECTRONIC,5100312341,583.10,,
United Kingdom Atomic Energy Authority,United Kingdom Atomic Energy Authority,17/11/2014,MATERIALS & SPARES,25103,FUSION,FARNELL ELECTRONIC,5100312683,608.76,,
United Kingdom Atomic Energy Authority,United Kingdom Atomic Energy Authority,17/11/2014,MATERIALS & SPARES,25103,FUSION,FARNELL ELECTRONIC,5100312685,312.39,,
United Kingdom Atomic Energy Authority,United Kingdom Atomic Energy Authority,17/11/2014,MATERIALS & SPARES,25103,FUSION,FARNELL ELECTRONIC,5100312689,682.86,,
United Kingdom Atomic Energy Authority,United Kingdom Atomic Energy Authority,17/11/2014,MATERIALS & SPARES,25103,FUSION,FARNELL ELECTRONIC,5100312697,23.53,,
United Kingdom Atomic Energy Authority,United Kingdom Atomic Energy Authority,19/11/2014,MATERIALS & SPARES,25103,FUSION,FARNELL ELECTRONIC,5100312700,60.76,,
United Kingdom Atomic Energy Authority,United Kingdom Atomic Energy Authority,17/11/2014,MATERIALS & SPARES,25103,FUSION,FARNELL ELECTRONIC,5100312703,411.60,,
United Kingdom Atomic Energy Authority,United Kingdom Atomic Energy Authority,19/11/2014,MATERIALS & SPARES,25103,FUSION,FARNELL ELECTRONIC,5100312721,254.16,,
United Kingdom Atomic Energy Authority,United Kingdom Atomic Energy Authority,27/10/2014,MATERIALS & SPARES,25701,FUSION,FARNELL ELECTRONIC,5100311340,4.47,,
United Kingdom Atomic Energy Authority,United Kingdom Atomic Energy Authority,27/10/2014,MATERIALS & SPARES,25701,FUSION,FARNELL ELECTRONIC,5100311501,349.23,,
United Kingdom Atomic Energy Authority,United Kingdom Atomic Energy Authority,10/11/2014,MATERIALS & SPARES,25701,FUSION,FARNELL ELECTRONIC,5100312336,1954.70,,
United Kingdom Atomic Energy Authority,United Kingdom Atomic Energy Authority,10/11/2014,MATERIALS & SPARES,25701,FUSION,FARNELL ELECTRONIC,5100312342,3.85,,
United Kingdom Atomic Energy Authority,United Kingdom Atomic Energy Authority,10/11/2014,MATERIALS & SPARES,25701,FUSION,FARNELL ELECTRONIC,5100312347,74.70,,
United Kingdom Atomic Energy Authority,United Kingdom Atomic Energy Authority,27/10/2014,MATERIALS & SPARES,25702,FUSION,FARNELL ELECTRONIC,5100311355,11.71,,
United Kingdom Atomic Energy Authority,United Kingdom Atomic Energy Authority,17/11/2014,MATERIALS & SPARES,25704,FUSION,FARNELL ELECTRONIC,5100312695,67.39,,
United Kingdom Atomic Energy Authority,United Kingdom Atomic Energy Authority,27/10/2014,SOFTWARE,23621,FUSION,FARO UK LTD,5100311511,34950.00,,
United Kingdom Atomic Energy Authority,United Kingdom Atomic Energy Authority,10/11/2014,SOFTWARE,29030,FUSION,FARO UK LTD,5100311959,6325.00,,
United Kingdom Atomic Energy Authority,United Kingdom Atomic Energy Authority,10/11/2014,PLANT & EQUIPMENT,25836,FUSION,FEI UK,5100311952,1698.00,,
United Kingdom Atomic Energy Authority,United Kingdom Atomic Energy Authority,30/10/2014,MATERIALS & SPARES,25702,FUSION,FH Brundle,1900060468,635.04,,
United Kingdom Atomic Energy Authority,United Kingdom Atomic Energy Authority,10/11/2014,PLANT & EQUIPMENT,23104,FUSION,FISHER SCIENTIFIC UK LTD,5100312205,172.24,,
United Kingdom Atomic Energy Authority,United Kingdom Atomic Energy Authority,19/11/2014,PLANT & EQUIPMENT,23131,FUSION,FISHER SCIENTIFIC UK LTD,5100312637,27.04,,
United Kingdom Atomic Energy Authority,United Kingdom Atomic Energy Authority,03/11/2014,PLANT & EQUIPMENT,23151,FUSION,FISHER SCIENTIFIC UK LTD,5100311671,56.53,,
United Kingdom Atomic Energy Authority,United Kingdom Atomic Energy Authority,17/11/2014,PLANT & EQUIPMENT,23151,FUSION,FISHER SCIENTIFIC UK LTD,5100312634,1412.46,,
United Kingdom Atomic Energy Authority,United Kingdom Atomic Energy Authority,03/11/2014,PLANT & EQUIPMENT,23161,FUSION,FISHER SCIENTIFIC UK LTD,5100311874,659.37,,
United Kingdom Atomic Energy Authority,United Kingdom Atomic Energy Authority,29/10/2014,PLANT & EQUIPMENT,23164,FUSION,FISHER SCIENTIFIC UK LTD,5100311406,551.53,,
United Kingdom Atomic Energy Authority,United Kingdom Atomic Energy Authority,17/11/2014,PLANT & EQUIPMENT,23164,FUSION,FISHER SCIENTIFIC UK LTD,5100312636,62.09,,
United Kingdom Atomic Energy Authority,United Kingdom Atomic Energy Authority,03/11/2014,PLANT & EQUIPMENT,25403,FUSION,FISHER SCIENTIFIC UK LTD,5100311697,27.98,,
United Kingdom Atomic Energy Authority,United Kingdom Atomic Energy Authority,27/10/2014,PLANT & EQUIPMENT,29030,FUSION,FISHER SCIENTIFIC UK LTD,5100311404,11.82,,
United Kingdom Atomic Energy Authority,United Kingdom Atomic Energy Authority,03/11/2014,MATERIALS & SPARES,23161,FUSION,FLEXIBLE REINFORCEMENT LIMITED,5100311802,737.50,,
United Kingdom Atomic Energy Authority,United Kingdom Atomic Energy Authority,03/11/2014,MATERIALS & SPARES,23161,FUSION,FLEXIBLE REINFORCEMENT LIMITED,5100311803,737.50,,
United Kingdom Atomic Energy Authority,United Kingdom Atomic Energy Authority,18/11/2014,PLANT & EQUIPMENT,23150,FUSION,Flowquip Ltd,1900060543,1216.50,,
United Kingdom Atomic Energy Authority,United Kingdom Atomic Energy Authority,17/11/2014,MATERIALS & SPARES,23103,FUSION,FORGEWELD LTD,5100312368,27.88,,
United Kingdom Atomic Energy Authority,United Kingdom Atomic Energy Authority,17/11/2014,MATERIALS & SPARES,23103,FUSION,FORGEWELD LTD,5100312369,258.29,,
United Kingdom Atomic Energy Authority,United Kingdom Atomic Energy Authority,17/11/2014,MATERIALS & SPARES,23103,FUSION,FORGEWELD LTD,5100312370,223.00,,
United Kingdom Atomic Energy Authority,United Kingdom Atomic Energy Authority,03/11/2014,MATERIALS & SPARES,23104,FUSION,FORGEWELD LTD,5100311897,2271.26,,
United Kingdom Atomic Energy Authority,United Kingdom Atomic Energy Authority,03/11/2014,MATERIALS & SPARES,25704,FUSION,FORGEWELD LTD,5100311898,88.00,,
United Kingdom Atomic Energy Authority,United Kingdom Atomic Energy Authority,10/11/2014,MATERIALS & SPARES,23128,FUSION,FORWARD 2000 LTD,5100312265,69.20,,
United Kingdom Atomic Energy Authority,United Kingdom Atomic Energy Authority,03/11/2014,MATERIALS & SPARES,23150,FUSION,FORWARD 2000 LTD,5100311558,446.36,,
United Kingdom Atomic Energy Authority,United Kingdom Atomic Energy Authority,10/11/2014,RESEARCH & DEVELOPMENT,21037,FUSION,FRAZER NASH CONSULTANCY,5100311083,20170.50,,
United Kingdom Atomic Energy Authority,United Kingdom Atomic Energy Authority,19/11/2014,MATERIALS & SPARES,23152,FUSION,FTI LTD,5100312055,492.50,,
United Kingdom Atomic Energy Authority,United Kingdom Atomic Energy Authority,17/11/2014,MATERIALS & SPARES,25701,FUSION,G&B PROJECTS COMPANY,5100312687,759.20,,
United Kingdom Atomic Energy Authority,United Kingdom Atomic Energy Authority,10/11/2014,PROFESSIONAL SERVICES,21033,SUPPORT SERVICES,GAEL LTD,5100312353,1175.00,,
United Kingdom Atomic Energy Authority,United Kingdom Atomic Energy Authority,29/10/2014,PLANT & EQUIPMENT,23152,FUSION,GARDNER DENVER ALTON LTD,5100310650,946.50,,
United Kingdom Atomic Energy Authority,United Kingdom Atomic Energy Authority,29/10/2014,MATERIALS & SPARES,25103,FUSION,Gear Cutting Ltd,5100311311,4570.60,,
United Kingdom Atomic Energy Authority,United Kingdom Atomic Energy Authority,03/11/2014,MATERIALS & SPARES,25103,FUSION,Gear Cutting Ltd,5100311807,131.00,,
United Kingdom Atomic Energy Authority,United Kingdom Atomic Energy Authority,17/11/2014,HIRED STAFF,0,FUSION,GENTLE ASSOCIATES LTD,5100312396,3344.86,,
United Kingdom Atomic Energy Authority,United Kingdom Atomic Energy Authority,12/11/2014,SOFTWARE,23103,FUSION,GEODETIC SERVICES INC,5100310970,3101.92,,
United Kingdom Atomic Energy Authority,United Kingdom Atomic Energy Authority,17/11/2014,PROFESSIONAL SERVICES,23122,FUSION,GLANVILLE CONSULTANTS,5100312441,496.03,,
United Kingdom Atomic Energy Authority,United Kingdom Atomic Energy Authority,03/11/2014,PROFESSIONAL SERVICES,23151,FUSION,GLANVILLE CONSULTANTS,5100310275,253.72,,
United Kingdom Atomic Energy Authority,United Kingdom Atomic Energy Authority,12/11/2014,PROFESSIONAL SERVICES,25704,FUSION,GLANVILLE CONSULTANTS,5100312540,1017.73,,
United Kingdom Atomic Energy Authority,United Kingdom Atomic Energy Authority,12/11/2014,PROFESSIONAL SERVICES,28200,PROPERTY,GLANVILLE CONSULTANTS,5100312542,168.36,,
United Kingdom Atomic Energy Authority,United Kingdom Atomic Energy Authority,17/11/2014,PLANT & EQUIPMENT,25704,FUSION,GLASSMAN EUROPE,5100312386,4701.00,,
United Kingdom Atomic Energy Authority,United Kingdom Atomic Energy Authority,06/11/2014,TRAINING COURSE FEES,23168,FUSION,Global Edge,1900060512,484.00,,
United Kingdom Atomic Energy Authority,United Kingdom Atomic Energy Authority,10/11/2014,PROFESSIONAL SERVICES,63523,SUPPORT SERVICES,Government Actuary's Department,5100312112,18637.58,,
United Kingdom Atomic Energy Authority,United Kingdom Atomic Energy Authority,27/10/2014,MATERIALS & SPARES,23151,FUSION,Green Machine Computers Ltd,5100311448,160.00,,
United Kingdom Atomic Energy Authority,United Kingdom Atomic Energy Authority,06/11/2014,OTHER EXTERNAL COSTS,28030,PROPERTY,Greenfield Partnership,1900060509,120.00,,
United Kingdom Atomic Energy Authority,United Kingdom Atomic Energy Authority,27/10/2014,MATERIALS & SPARES,23164,FUSION,GREYHOUND CHROMATOGRAPHY,5100311320,534.50,,
United Kingdom Atomic Energy Authority,United Kingdom Atomic Energy Authority,27/10/2014,PROFESSIONAL SERVICES,28030,PROPERTY,GRUNDON WASTE MANAGEMENT LTD,5100310858,795.90,,
United Kingdom Atomic Energy Authority,United Kingdom Atomic Energy Authority,27/10/2014,PROFESSIONAL SERVICES,28030,PROPERTY,GRUNDON WASTE MANAGEMENT LTD,5100310868,100.00,,
United Kingdom Atomic Energy Authority,United Kingdom Atomic Energy Authority,27/10/2014,PROFESSIONAL SERVICES,28030,PROPERTY,GRUNDON WASTE MANAGEMENT LTD,5100310869,100.00,,
United Kingdom Atomic Energy Authority,United Kingdom Atomic Energy Authority,27/10/2014,PROFESSIONAL SERVICES,28030,PROPERTY,GRUNDON WASTE MANAGEMENT LTD,5100310871,474.60,,
United Kingdom Atomic Energy Authority,United Kingdom Atomic Energy Authority,27/10/2014,PROFESSIONAL SERVICES,28030,PROPERTY,GRUNDON WASTE MANAGEMENT LTD,5100310872,237.30,,
United Kingdom Atomic Energy Authority,United Kingdom Atomic Energy Authority,27/10/2014,PROFESSIONAL SERVICES,28030,PROPERTY,GRUNDON WASTE MANAGEMENT LTD,5100310873,118.65,,
United Kingdom Atomic Energy Authority,United Kingdom Atomic Energy Authority,27/10/2014,PROFESSIONAL SERVICES,28030,PROPERTY,GRUNDON WASTE MANAGEMENT LTD,5100310875,102.80,,
United Kingdom Atomic Energy Authority,United Kingdom Atomic Energy Authority,27/10/2014,PROFESSIONAL SERVICES,28040,PROPERTY,GRUNDON WASTE MANAGEMENT LTD,5100310865,118.65,,
United Kingdom Atomic Energy Authority,United Kingdom Atomic Energy Authority,27/10/2014,PROFESSIONAL SERVICES,28040,PROPERTY,GRUNDON WASTE MANAGEMENT LTD,5100310866,267.30,,
United Kingdom Atomic Energy Authority,United Kingdom Atomic Energy Authority,27/10/2014,PROFESSIONAL SERVICES,28040,PROPERTY,GRUNDON WASTE MANAGEMENT LTD,5100310867,267.30,,
United Kingdom Atomic Energy Authority,United Kingdom Atomic Energy Authority,03/11/2014,REPAIRS & MAINTENANCE,25103,FUSION,GUYSON INTERNATIONAL,5100311954,142.88,,
United Kingdom Atomic Energy Authority,United Kingdom Atomic Energy Authority,03/11/2014,REPAIRS & MAINTENANCE,29030,FUSION,GUYSON INTERNATIONAL,5100311836,55.01,,
United Kingdom Atomic Energy Authority,United Kingdom Atomic Energy Authority,27/10/2014,TAXIS,21035,FUSION,HAROLDS CARS,5100310421,7832.86,,
United Kingdom Atomic Energy Authority,United Kingdom Atomic Energy Authority,17/11/2014,TAXIS,21035,FUSION,HAROLDS CARS,5100312268,10134.90,,
United Kingdom Atomic Energy Authority,United Kingdom Atomic Energy Authority,10/11/2014,MATERIALS & SPARES,25701,FUSION,Harting Ltd,5100311965,706.25,,
United Kingdom Atomic Energy Authority,United Kingdom Atomic Energy Authority,17/11/2014,MATERIALS & SPARES,25701,FUSION,Harting Ltd,5100312373,3613.50,,
United Kingdom Atomic Energy Authority,United Kingdom Atomic Energy Authority,17/11/2014,PLANT & EQUIPMENT,23103,FUSION,HEWDEN,5100310332,700.00,,
United Kingdom Atomic Energy Authority,United Kingdom Atomic Energy Authority,12/11/2014,DESIGN & CONSTRUCTION,28200,PROPERTY,HILLMOORE FIRE PROTECTION LIMITED,5100312293,3250.00,,
United Kingdom Atomic Energy Authority,United Kingdom Atomic Energy Authority,12/11/2014,DESIGN & CONSTRUCTION,28200,PROPERTY,HILLMOORE FIRE PROTECTION LIMITED,5100312294,3305.40,,
United Kingdom Atomic Energy Authority,United Kingdom Atomic Energy Authority,17/11/2014,PROFESSIONAL SERVICES,23151,FUSION,HILLS WASTE SOLUTIONS LTD,5100312254,225.00,,
United Kingdom Atomic Energy Authority,United Kingdom Atomic Energy Authority,17/11/2014,PROFESSIONAL SERVICES,23151,FUSION,HILLS WASTE SOLUTIONS LTD,5100312255,200.00,,
United Kingdom Atomic Energy Authority,United Kingdom Atomic Energy Authority,17/11/2014,PROFESSIONAL SERVICES,23151,FUSION,HILLS WASTE SOLUTIONS LTD,5100312256,10.00,,
United Kingdom Atomic Energy Authority,United Kingdom Atomic Energy Authority,17/11/2014,PROFESSIONAL SERVICES,23151,FUSION,HILLS WASTE SOLUTIONS LTD,5100312258,30.00,,
United Kingdom Atomic Energy Authority,United Kingdom Atomic Energy Authority,17/11/2014,PROFESSIONAL SERVICES,23151,FUSION,HILLS WASTE SOLUTIONS LTD,5100312259,15.00,,
United Kingdom Atomic Energy Authority,United Kingdom Atomic Energy Authority,17/11/2014,PROFESSIONAL SERVICES,23151,FUSION,HILLS WASTE SOLUTIONS LTD,5100312261,1212.32,,
United Kingdom Atomic Energy Authority,United Kingdom Atomic Energy Authority,03/11/2014,MATERIALS & SPARES,25701,FUSION,Himag Planar Magnetics Ltd,5100311869,4925.00,,
United Kingdom Atomic Energy Authority,United Kingdom Atomic Energy Authority,10/11/2014,REPAIRS & MAINTENANCE,23129,FUSION,HITEK LTD,5100312022,6890.00,,
United Kingdom Atomic Energy Authority,United Kingdom Atomic Energy Authority,10/11/2014,REPAIRS & MAINTENANCE,23161,FUSION,HITEK LTD,5100312233,1315.00,,
United Kingdom Atomic Energy Authority,United Kingdom Atomic Energy Authority,27/10/2014,STATIONERY,21034,FUSION,HOBS REPROGRAPHICS PLC,5100310227,432.00,,
United Kingdom Atomic Energy Authority,United Kingdom Atomic Energy Authority,27/10/2014,STATIONERY,21034,FUSION,HOBS REPROGRAPHICS PLC,5100310850,80.00,,
United Kingdom Atomic Energy Authority,United Kingdom Atomic Energy Authority,27/10/2014,STATIONERY,21034,FUSION,HOBS REPROGRAPHICS PLC,5100310965,52.00,,
United Kingdom Atomic Energy Authority,United Kingdom Atomic Energy Authority,27/10/2014,STATIONERY,21034,FUSION,HOBS REPROGRAPHICS PLC,5100310966,52.00,,
United Kingdom Atomic Energy Authority,United Kingdom Atomic Energy Authority,27/10/2014,STATIONERY,21034,FUSION,HOBS REPROGRAPHICS PLC,5100310967,45.00,,
United Kingdom Atomic Energy Authority,United Kingdom Atomic Energy Authority,10/11/2014,STATIONERY,21034,FUSION,HOBS REPROGRAPHICS PLC,5100311969,249.00,,
United Kingdom Atomic Energy Authority,United Kingdom Atomic Energy Authority,10/11/2014,STATIONERY,21034,FUSION,HOBS REPROGRAPHICS PLC,5100311970,10.00,,
United Kingdom Atomic Energy Authority,United Kingdom Atomic Energy Authority,10/11/2014,STATIONERY,21034,FUSION,HOBS REPROGRAPHICS PLC,5100312135,175.00,,
United Kingdom Atomic Energy Authority,United Kingdom Atomic Energy Authority,03/11/2014,STATIONERY,23108,FUSION,HOBS REPROGRAPHICS PLC,5100310961,11.34,,
United Kingdom Atomic Energy Authority,United Kingdom Atomic Energy Authority,17/11/2014,TRAVEL,0,TRAVEL,Hogg Robinson(Travel)Ltd T/A HRG UK,5100312300,36842.26,,
United Kingdom Atomic Energy Authority,United Kingdom Atomic Energy Authority,03/11/2014,PROFESSIONAL SERVICES,23164,FUSION,HSE - FINANCIAL OPERATIONS,5100311678,161.00,,
United Kingdom Atomic Energy Authority,United Kingdom Atomic Energy Authority,17/11/2014,PROFESSIONAL SERVICES,23120,FUSION,HUTTON ENGINEERING (PRECISION) LTD,5100312580,785.40,,
United Kingdom Atomic Energy Authority,United Kingdom Atomic Energy Authority,05/11/2014,PROFESSIONAL SERVICES,25103,FUSION,HUTTON ENGINEERING (PRECISION) LTD,5100311518,312.00,,
United Kingdom Atomic Energy Authority,United Kingdom Atomic Energy Authority,17/11/2014,PROFESSIONAL SERVICES,25103,FUSION,HUTTON ENGINEERING (PRECISION) LTD,5100312321,428.70,,
United Kingdom Atomic Energy Authority,United Kingdom Atomic Energy Authority,17/11/2014,CLEANING,23103,FUSION,HYDROBLAST,5100312270,205.00,,
United Kingdom Atomic Energy Authority,United Kingdom Atomic Energy Authority,03/11/2014,CLEANING,25103,FUSION,HYDROBLAST,5100311684,660.00,,
United Kingdom Atomic Energy Authority,United Kingdom Atomic Energy Authority,17/11/2014,CLEANING,25103,FUSION,HYDROBLAST,5100312269,875.00,,
United Kingdom Atomic Energy Authority,United Kingdom Atomic Energy Authority,03/11/2014,PROFESSIONAL SERVICES,23151,FUSION,i2 Security Services,5100311755,729.00,,
United Kingdom Atomic Energy Authority,United Kingdom Atomic Energy Authority,10/11/2014,MATERIALS & SPARES,23617,FUSION,Idom Merebrook Ltd,5100312279,49888.68,,
